Body Name,Body,Organisational unit,Service division,Expenditure category,Date,Transacton number,Net amount,Supplier,Narrative
Tendring DC,http://statistics.data.gov.uk/id/local-authority-district/22UN,Corporate Services,1620 - IT Section Service Unit,3300 - Public Transport - Officers,06/01/2015,1062361-1,16,REDACTED PERSONAL DATA,REDACTED PERSONAL DATA
Tendring DC,http://statistics.data.gov.uk/id/local-authority-district/22UN,Corporate Services,1620 - IT Section Service Unit,3311 - Travelling Career Track,27/01/2015,2117541-1,48.5,REDACTED PERSONAL DATA,REDACTED PERSONAL DATA
Tendring DC,http://statistics.data.gov.uk/id/local-authority-district/22UN,Corporate Services,1620 - IT Section Service Unit,3300 - Public Transport - Officers,20/01/2015,7016982-1,16.5,REDACTED PERSONAL DATA,REDACTED PERSONAL DATA
Tendring DC,http://statistics.data.gov.uk/id/local-authority-district/22UN,Corporate Services,1100 - Corporate Director (Corporate Services) and Admin Service Unit,1710 - Training - Central Department Budget,20/01/2015,7016926-1,195,2110605 - ACAS,CONDUCTING INVESTIGATIONS
Tendring DC,http://statistics.data.gov.uk/id/local-authority-district/22UN,Corporate Services,1100 - Corporate Director (Corporate Services) and Admin Service Unit,1710 - Training - Central Department Budget,20/01/2015,7016864-1,1677.8,2113636 - Act Now Training,RIPA TRAINING
Tendring DC,http://statistics.data.gov.uk/id/local-authority-district/22UN,Corporate Services,1100 - Corporate Director (Corporate Services) and Admin Service Unit,1710 - Training - Central Department Budget,20/01/2015,7016867-1,300,2114691 - Advent IM Ltd,SIRO TRAINING COURSE
Tendring DC,http://statistics.data.gov.uk/id/local-authority-district/22UN,Corporate Services,1950 - Transport,3062 - Running Costs - Petrol,13/01/2015,7016847-1,113.8,2101825 - Allstar Business Solutions Ltd,COURIER FUEL
Tendring DC,http://statistics.data.gov.uk/id/local-authority-district/22UN,Corporate Services,6560 - Other Democratic Costs,4110 - General Provisions,06/01/2015,1062188-1,44.53,2100111 - Banner Business Supplies Ltd,GLASSES AND JUGS
Tendring DC,http://statistics.data.gov.uk/id/local-authority-district/22UN,Corporate Services,1100 - Corporate Director (Corporate Services) and Admin Service Unit,4300 - Printing & Stationery,06/01/2015,1062310-1,6.38,2100111 - Banner Business Supplies Ltd,STATIONERY
Tendring DC,http://statistics.data.gov.uk/id/local-authority-district/22UN,Corporate Services,6560 - Other Democratic Costs,4110 - General Provisions,06/01/2015,1062310-2,36.14,2100111 - Banner Business Supplies Ltd,STATIONERY
Tendring DC,http://statistics.data.gov.uk/id/local-authority-district/22UN,Corporate Services,H880 - New Build Initiatives and Acquisitions,C101 - Acquisition of land - acquisition,29/01/2015,7800816-0,440000,2114676 - Barlow Robbins Solicitors,Purchase 4 land titles Jaywick
Tendring DC,http://statistics.data.gov.uk/id/local-authority-district/22UN,Corporate Services,1760 - IT Direct Service Costs,4715 - Data Communication Charge,06/01/2015,1062385-1,54.57,2100168 - British Telecommunications plc,7234 BT DEC 14
Tendring DC,http://statistics.data.gov.uk/id/local-authority-district/22UN,Corporate Services,1760 - IT Direct Service Costs,4715 - Data Communication Charge,06/01/2015,1062386-1,49.89,2100168 - British Telecommunications plc,0166 BT DEC 14
Tendring DC,http://statistics.data.gov.uk/id/local-authority-district/22UN,Corporate Services,1760 - IT Direct Service Costs,4715 - Data Communication Charge,06/01/2015,1062387-1,931.91,2100168 - British Telecommunications plc,3820 BT DEC 14
Tendring DC,http://statistics.data.gov.uk/id/local-authority-district/22UN,Corporate Services,1760 - IT Direct Service Costs,4715 - Data Communication Charge,06/01/2015,1062388-1,49.89,2100168 - British Telecommunications plc,8827 BT DEC 14
Tendring DC,http://statistics.data.gov.uk/id/local-authority-district/22UN,Corporate Services,1760 - IT Direct Service Costs,4715 - Data Communication Charge,06/01/2015,1062389-1,49.89,2100168 - British Telecommunications plc,8418 BT DEC 14
Tendring DC,http://statistics.data.gov.uk/id/local-authority-district/22UN,Corporate Services,1760 - IT Direct Service Costs,4715 - Data Communication Charge,06/01/2015,1062390-1,49.89,2100168 - British Telecommunications plc,7071 BT DEC 14
Tendring DC,http://statistics.data.gov.uk/id/local-authority-district/22UN,Corporate Services,1760 - IT Direct Service Costs,4715 - Data Communication Charge,06/01/2015,1062391-1,159,2100168 - British Telecommunications plc,BT 7437 DEC 14
Tendring DC,http://statistics.data.gov.uk/id/local-authority-district/22UN,Corporate Services,1760 - IT Direct Service Costs,4715 - Data Communication Charge,06/01/2015,1062392-1,49.9,2100168 - British Telecommunications plc,7075 BT DEC 14
Tendring DC,http://statistics.data.gov.uk/id/local-authority-district/22UN,Corporate Services,1760 - IT Direct Service Costs,4715 - Data Communication Charge,13/01/2015,1062501-1,61.14,2100168 - British Telecommunications plc,2531 DEC 2014 (BT)
Tendring DC,http://statistics.data.gov.uk/id/local-authority-district/22UN,Corporate Services,1760 - IT Direct Service Costs,4715 - Data Communication Charge,20/01/2015,7016869-1,186,2100168 - British Telecommunications plc,BROADBAND LINK TO COMMS CAB
Tendring DC,http://statistics.data.gov.uk/id/local-authority-district/22UN,Corporate Services,1760 - IT Direct Service Costs,4715 - Data Communication Charge,27/01/2015,7017154-1,191.93,2100168 - British Telecommunications plc,2194 DEC 2014 BT
Tendring DC,http://statistics.data.gov.uk/id/local-authority-district/22UN,Corporate Services,1760 - IT Direct Service Costs,6325 - Additional Services,27/01/2015,1062668-1,3551.25,2100202 - Capita Business Services Ltd,PAYMENTS PORTAL SOFTWARE
Tendring DC,http://statistics.data.gov.uk/id/local-authority-district/22UN,Corporate Services,1180 - Benefit Fraud Investigation Service Unit,5500 - Miscellaneous Expenses,27/01/2015,7017066-1,83.15,2109766 - Cintra Ltd,INTERPRETER
Tendring DC,http://statistics.data.gov.uk/id/local-authority-district/22UN,Corporate Services,1120 - Accountancy Service Unit,4753 - Computer - Application Software,06/01/2015,1062186-1,500,2109394 - CIPFA Business Ltd,REVALUATION S/S
Tendring DC,http://statistics.data.gov.uk/id/local-authority-district/22UN,Corporate Services,1120 - Accountancy Service Unit,4753 - Computer - Application Software,06/01/2015,1062187-1,2403.05,2109394 - CIPFA Business Ltd,NET TRAINING
Tendring DC,http://statistics.data.gov.uk/id/local-authority-district/22UN,Corporate Services,9900 - General Fund Balance Sheet,B382 - Rechargeable Works - Other,06/01/2015,1062287-1,350,REDACTED PERSONAL DATA,REDACTED PERSONAL DATA
Tendring DC,http://statistics.data.gov.uk/id/local-authority-district/22UN,Corporate Services,9900 - General Fund Balance Sheet,B382 - Rechargeable Works - Other,06/01/2015,1062287-2,-350,REDACTED PERSONAL DATA,REDACTED PERSONAL DATA
Tendring DC,http://statistics.data.gov.uk/id/local-authority-district/22UN,Corporate Services,8680 - Rural Infrastructure Improvement Fund,4884 - Credit Union Joining Fees,13/01/2015,1062449-1,99,2114332 - Colchester Credit Union Ltd,
Tendring DC,http://statistics.data.gov.uk/id/local-authority-district/22UN,Corporate Services,1320 - Print Unit Service Unit,4400 - Maintenance Under Service Agreements,27/01/2015,7017060-1,195,2100353 - Consensus Guillotine Engineering Ltd,GUILOTINE SERVICE
Tendring DC,http://statistics.data.gov.uk/id/local-authority-district/22UN,Corporate Services,"1580 - Benefits, Revenues and Customer Contact SU",4461 - Court Fees,01/01/2015,7800809-3,2064,2100304 - CO-OP Bank,Court Costs and Desk JB Dec 14
Tendring DC,http://statistics.data.gov.uk/id/local-authority-district/22UN,Corporate Services,6740 - Careline,4040 - Equipment & Tools,01/01/2015,7800809-4,375,2100304 - CO-OP Bank,Court Costs and Desk JB Dec 14
Tendring DC,http://statistics.data.gov.uk/id/local-authority-district/22UN,Corporate Services,H880 - New Build Initiatives and Acquisitions,C200 - Main Contractor,01/01/2015,7800849-1,244,2100304 - CO-OP Bank,RB Credit Card Dec 14
Tendring DC,http://statistics.data.gov.uk/id/local-authority-district/22UN,Corporate Services,H880 - New Build Initiatives and Acquisitions,C200 - Main Contractor,01/01/2015,7800849-2,136.5,2100304 - CO-OP Bank,RB Credit Card Dec 14
Tendring DC,http://statistics.data.gov.uk/id/local-authority-district/22UN,Corporate Services,H880 - New Build Initiatives and Acquisitions,C200 - Main Contractor,01/01/2015,7800849-3,120,2100304 - CO-OP Bank,RB Credit Card Dec 14
Tendring DC,http://statistics.data.gov.uk/id/local-authority-district/22UN,Corporate Services,H880 - New Build Initiatives and Acquisitions,C200 - Main Contractor,01/01/2015,7800849-4,324,2100304 - CO-OP Bank,RB Credit Card Dec 14
Tendring DC,http://statistics.data.gov.uk/id/local-authority-district/22UN,Corporate Services,H880 - New Build Initiatives and Acquisitions,C200 - Main Contractor,01/01/2015,7800849-5,8,2100304 - CO-OP Bank,RB Credit Card Dec 14
Tendring DC,http://statistics.data.gov.uk/id/local-authority-district/22UN,Corporate Services,6620 - Corporate Management - General,5190 - Bank Commission Charges,01/01/2015,7800849-6,2,2100304 - CO-OP Bank,RB Credit Card Dec 14
Tendring DC,http://statistics.data.gov.uk/id/local-authority-district/22UN,Corporate Services,6540 - Members Allowance,4840 - Members Allowances - General,27/01/2015,1062672-1,165,2102038 - Crispins Sandwich Bar Ltd,LIC TRAINING BUFFET
Tendring DC,http://statistics.data.gov.uk/id/local-authority-district/22UN,Corporate Services,9940 - Collection Fund Balance Sheet,B485 - DCLG - NDR Balance due to Govt,30/01/2015,7800814-0,54662,2100432 - DCLG,NNDR Contribution 30/01/15
Tendring DC,http://statistics.data.gov.uk/id/local-authority-district/22UN,Corporate Services,8980 - Revenue Support Grant,9891 - Revenue Support Grant,19/01/2015,7800825-2,1396592,2100432 - DCLG,RSG payment Jan15
Tendring DC,http://statistics.data.gov.uk/id/local-authority-district/22UN,Corporate Services,9900 - General Fund Balance Sheet,B382 - Rechargeable Works - Other,20/01/2015,7016870-1,16.75,2110672 - Dun & Bradstreet Ltd,D&B ROALCO
Tendring DC,http://statistics.data.gov.uk/id/local-authority-district/22UN,Corporate Services,1930 - Asset Management Service Unit,4469 - Other Non - Legal Professional Services,13/01/2015,7016858-1,114.51,2107644 - E.ON,E-ON GAS HOUSE QUAY
Tendring DC,http://statistics.data.gov.uk/id/local-authority-district/22UN,Corporate Services,1760 - IT Direct Service Costs,4753 - Computer - Application Software,20/01/2015,7016877-1,2430,2113832 - EACS Ltd,CITRIX CONSULTANCY
Tendring DC,http://statistics.data.gov.uk/id/local-authority-district/22UN,Corporate Services,7100 - Community Health/Safety,5164 - Project Expenses,27/01/2015,7017149-1,178.6,2100404 - Easy Tigernet,WEBSITE TRAINING
Tendring DC,http://statistics.data.gov.uk/id/local-authority-district/22UN,Corporate Services,6620 - Corporate Management - General,5180 - External Audit Fees,06/01/2015,1062362-1,900,2112514 - Ernst & Young LLP,NNDR WORK ER 2013/14
Tendring DC,http://statistics.data.gov.uk/id/local-authority-district/22UN,Corporate Services,1815 - Personnel and Human Resources Issues,1708 - Training - New Programme Development Courses,06/01/2015,1062180-1,30,REDACTED PERSONAL DATA,REDACTED PERSONAL DATA
Tendring DC,http://statistics.data.gov.uk/id/local-authority-district/22UN,Corporate Services,1760 - IT Direct Service Costs,4880 - Subscriptions Paid,06/01/2015,1062394-1,2102,2100498 - Essex County Council,EOLP SUBS 2014/15
Tendring DC,http://statistics.data.gov.uk/id/local-authority-district/22UN,Corporate Services,8971 - MIRS - Contributions Payable to the Pension Scheme,1810 - Superannuation - Financial Strain/Added Years,20/01/2015,7017030-3,17447.9,2100419 - Essex County Council,Pension 00013
Tendring DC,http://statistics.data.gov.uk/id/local-authority-district/22UN,Corporate Services,8971 - MIRS - Contributions Payable to the Pension Scheme,1822 - Superannuation - Port Health Pensions etc.,20/01/2015,7017031-2,826.37,2100419 - Essex County Council,Port Health Authority
Tendring DC,http://statistics.data.gov.uk/id/local-authority-district/22UN,Corporate Services,9890 - Collection Fund - NDR,R132 - NDR - Surplus/Deficit - ECC,16/01/2015,7800829-10,413,2100409 - Essex County Council,Essex CC Precept Jan 2015
Tendring DC,http://statistics.data.gov.uk/id/local-authority-district/22UN,Corporate Services,9880 - Collection Fund - Council Tax,R100 - Precept - ECC,16/01/2015,7800829-6,4724602,2100409 - Essex County Council,Essex CC Precept Jan 2015
Tendring DC,http://statistics.data.gov.uk/id/local-authority-district/22UN,Corporate Services,9880 - Collection Fund - Council Tax,R110 - Council Tax Balance - ECC,16/01/2015,7800829-7,154977,2100409 - Essex County Council,Essex CC Precept Jan 2015
Tendring DC,http://statistics.data.gov.uk/id/local-authority-district/22UN,Corporate Services,9890 - Collection Fund - NDR,R127 - NDR - Essex County Retention,16/01/2015,7800829-8,221763,2100409 - Essex County Council,Essex CC Precept Jan 2015
Tendring DC,http://statistics.data.gov.uk/id/local-authority-district/22UN,Corporate Services,6683 - Council Tax Sharing Agreement with Major Preceptors,8109 - Technical  Discount Scheme - Contribution,16/01/2015,7800829-9,-53463,2100409 - Essex County Council,Essex CC Precept Jan 2015
Tendring DC,http://statistics.data.gov.uk/id/local-authority-district/22UN,Corporate Services,9890 - Collection Fund - NDR,R133 - NDR - Surplus/Deficit - Fire,16/01/2015,7800827-10,46,2100469 - Essex Fire Authority,Essex Fire Precept Jan 2015
Tendring DC,http://statistics.data.gov.uk/id/local-authority-district/22UN,Corporate Services,9880 - Collection Fund - Council Tax,R101 - Precept - Essex Fire,16/01/2015,7800827-6,288758,2100469 - Essex Fire Authority,Essex Fire Precept Jan 2015
Tendring DC,http://statistics.data.gov.uk/id/local-authority-district/22UN,Corporate Services,9880 - Collection Fund - Council Tax,R111 - Council Tax Balance - Essex Fire,16/01/2015,7800827-7,9472,2100469 - Essex Fire Authority,Essex Fire Precept Jan 2015
Tendring DC,http://statistics.data.gov.uk/id/local-authority-district/22UN,Corporate Services,9890 - Collection Fund - NDR,R128 - NDR - Fire Retention,16/01/2015,7800827-8,24640,2100469 - Essex Fire Authority,Essex Fire Precept Jan 2015
Tendring DC,http://statistics.data.gov.uk/id/local-authority-district/22UN,Corporate Services,6683 - Council Tax Sharing Agreement with Major Preceptors,8109 - Technical  Discount Scheme - Contribution,16/01/2015,7800827-9,-3268,2100469 - Essex Fire Authority,Essex Fire Precept Jan 2015
Tendring DC,http://statistics.data.gov.uk/id/local-authority-district/22UN,Corporate Services,9880 - Collection Fund - Council Tax,R102 - Precept - Essex Police,16/01/2015,7800828-0,627208,2100500 - Essex Police Authority,Essex Police Precept Jan 2015
Tendring DC,http://statistics.data.gov.uk/id/local-authority-district/22UN,Corporate Services,9880 - Collection Fund - Council Tax,R112 - Council Tax Balance - Essex Police,16/01/2015,7800828-1,20176,2100500 - Essex Police Authority,Essex Police Precept Jan 2015
Tendring DC,http://statistics.data.gov.uk/id/local-authority-district/22UN,Corporate Services,6683 - Council Tax Sharing Agreement with Major Preceptors,8109 - Technical  Discount Scheme - Contribution,16/01/2015,7800828-2,-6960,2100500 - Essex Police Authority,Essex Police Precept Jan 2015
Tendring DC,http://statistics.data.gov.uk/id/local-authority-district/22UN,Corporate Services,1660 - Other Apportionable Overheads,4609 - Child Care Vouchers Management Fee,20/01/2015,1062623-2,46.91,2104459 - Fideliti Ltd,JANUARY 15 VOUCHERS
Tendring DC,http://statistics.data.gov.uk/id/local-authority-district/22UN,Corporate Services,1800 - Qualification and Other Training,1700 - Training - Courses,27/01/2015,7017152-1,1175,2114548 - First Intuition Chelmsford,FIRST INTUITION COURSES
Tendring DC,http://statistics.data.gov.uk/id/local-authority-district/22UN,Corporate Services,1100 - Corporate Director (Corporate Services) and Admin Service Unit,1710 - Training - Central Department Budget,27/01/2015,7017067-1,199,2101694 - GovNet Communications,FRAUD & ERROR MEETING
Tendring DC,http://statistics.data.gov.uk/id/local-authority-district/22UN,Corporate Services,1760 - IT Direct Service Costs,6325 - Additional Services,27/01/2015,7017153-1,2877,2114119 - Handd Business Solutions Ltd,PROFESSIONAL SERVICES
Tendring DC,http://statistics.data.gov.uk/id/local-authority-district/22UN,Corporate Services,7100 - Community Health/Safety,5164 - Project Expenses,27/01/2015,7017151-1,27.5,2100624 - Harwich Town Council,HIRE OF GUILDHALL COUNCIL CHAMBER
Tendring DC,http://statistics.data.gov.uk/id/local-authority-district/22UN,Corporate Services,8540 - Leisure Centre Clacton,5160 - Advertising,10/01/2015,7800847-1,63,2111275 - hibu (UK) Ltd,Yell 10/1/15
Tendring DC,http://statistics.data.gov.uk/id/local-authority-district/22UN,Corporate Services,5880 - Management Of Sport & Leisure Facilities,5160 - Advertising,10/01/2015,7800847-2,87,2111275 - hibu (UK) Ltd,Yell 10/1/15
Tendring DC,http://statistics.data.gov.uk/id/local-authority-district/22UN,Corporate Services,"1580 - Benefits, Revenues and Customer Contact SU",4635 - Cash Collection Contract,27/01/2015,7017052-1,399,2114129 - Jade Security Services Ltd,COLLECTIONS DEC 2014
Tendring DC,http://statistics.data.gov.uk/id/local-authority-district/22UN,Corporate Services,8025 - Car Parks - Off St,4635 - Cash Collection Contract,27/01/2015,7017052-10,57,2114129 - Jade Security Services Ltd,COLLECTIONS DEC 2014
Tendring DC,http://statistics.data.gov.uk/id/local-authority-district/22UN,Corporate Services,7600 - Tourist Information Centres,4635 - Cash Collection Contract,27/01/2015,7017052-2,57,2114129 - Jade Security Services Ltd,COLLECTIONS DEC 2014
Tendring DC,http://statistics.data.gov.uk/id/local-authority-district/22UN,Corporate Services,1520 - Head of Planning and Customer Services,4635 - Cash Collection Contract,27/01/2015,7017052-3,95,2114129 - Jade Security Services Ltd,COLLECTIONS DEC 2014
Tendring DC,http://statistics.data.gov.uk/id/local-authority-district/22UN,Corporate Services,5800 - Brightlingsea Sports Centre,4635 - Cash Collection Contract,27/01/2015,7017052-4,95,2114129 - Jade Security Services Ltd,COLLECTIONS DEC 2014
Tendring DC,http://statistics.data.gov.uk/id/local-authority-district/22UN,Corporate Services,8540 - Leisure Centre Clacton,4635 - Cash Collection Contract,27/01/2015,7017052-5,247,2114129 - Jade Security Services Ltd,COLLECTIONS DEC 2014
Tendring DC,http://statistics.data.gov.uk/id/local-authority-district/22UN,Corporate Services,8520 - Frinton & Walton Swimming Pool,4635 - Cash Collection Contract,27/01/2015,7017052-6,247,2114129 - Jade Security Services Ltd,COLLECTIONS DEC 2014
Tendring DC,http://statistics.data.gov.uk/id/local-authority-district/22UN,Corporate Services,8510 - Dovercourt Swimming Pool & All Weather Facilities,4635 - Cash Collection Contract,27/01/2015,7017052-7,152,2114129 - Jade Security Services Ltd,COLLECTIONS DEC 2014
Tendring DC,http://statistics.data.gov.uk/id/local-authority-district/22UN,Corporate Services,5820 - Harwich Sports Centre,4635 - Cash Collection Contract,27/01/2015,7017052-8,95,2114129 - Jade Security Services Ltd,COLLECTIONS DEC 2014
Tendring DC,http://statistics.data.gov.uk/id/local-authority-district/22UN,Corporate Services,5860 - Manningtree Sports Centre,4635 - Cash Collection Contract,27/01/2015,7017052-9,95,2114129 - Jade Security Services Ltd,COLLECTIONS DEC 2014
Tendring DC,http://statistics.data.gov.uk/id/local-authority-district/22UN,Corporate Services,1100 - Corporate Director (Corporate Services) and Admin Service Unit,3311 - Travelling Career Track,06/01/2015,1062255-1,23.1,REDACTED PERSONAL DATA,REDACTED PERSONAL DATA
Tendring DC,http://statistics.data.gov.uk/id/local-authority-district/22UN,Corporate Services,1100 - Corporate Director (Corporate Services) and Admin Service Unit,3311 - Travelling Career Track,06/01/2015,1062360-1,15.9,REDACTED PERSONAL DATA,REDACTED PERSONAL DATA
Tendring DC,http://statistics.data.gov.uk/id/local-authority-district/22UN,Corporate Services,1100 - Corporate Director (Corporate Services) and Admin Service Unit,3311 - Travelling Career Track,13/01/2015,1062456-1,21.4,REDACTED PERSONAL DATA,REDACTED PERSONAL DATA
Tendring DC,http://statistics.data.gov.uk/id/local-authority-district/22UN,Corporate Services,1100 - Corporate Director (Corporate Services) and Admin Service Unit,3311 - Travelling Career Track,27/01/2015,2117557-1,34.1,REDACTED PERSONAL DATA,REDACTED PERSONAL DATA
Tendring DC,http://statistics.data.gov.uk/id/local-authority-district/22UN,Corporate Services,1760 - IT Direct Service Costs,6325 - Additional Services,20/01/2015,1062594-1,5.83,REDACTED PERSONAL DATA,REDACTED PERSONAL DATA
Tendring DC,http://statistics.data.gov.uk/id/local-authority-district/22UN,Corporate Services,1320 - Print Unit Service Unit,4080 - Materials & Consumables,06/01/2015,1062181-1,653.6,2100864 - Leston Stationery Ltd,A4 WHITE 100G/80G
Tendring DC,http://statistics.data.gov.uk/id/local-authority-district/22UN,Corporate Services,1320 - Print Unit Service Unit,4080 - Materials & Consumables,06/01/2015,1062342-1,70.2,2100864 - Leston Stationery Ltd,A3 PAPER
Tendring DC,http://statistics.data.gov.uk/id/local-authority-district/22UN,Corporate Services,1300 - Legal Services Service Unit,4495 - Local Land Charges Litigation,20/01/2015,7016860-1,1852.24,2107205 - Local Government Association,SEARCH LITIGATION
Tendring DC,http://statistics.data.gov.uk/id/local-authority-district/22UN,Corporate Services,1815 - Personnel and Human Resources Issues,1610 - Counselling,13/01/2015,1062549-1,160,REDACTED PERSONAL DATA,REDACTED PERSONAL DATA
Tendring DC,http://statistics.data.gov.uk/id/local-authority-district/22UN,Corporate Services,6460 - Career Track,4468 - AGE Grant Training Costs,06/01/2015,1062263-1,1500,REDACTED PERSONAL DATA,REDACTED PERSONAL DATA
Tendring DC,http://statistics.data.gov.uk/id/local-authority-district/22UN,Corporate Services,1930 - Asset Management Service Unit,4469 - Other Non - Legal Professional Services,27/01/2015,1062669-1,3778,2111951 - NPS Property Consultants Ltd,QUARTERLY PAYMENT VALUATIONS CONTRACT
Tendring DC,http://statistics.data.gov.uk/id/local-authority-district/22UN,Corporate Services,9900 - General Fund Balance Sheet,B382 - Rechargeable Works - Other,20/01/2015,7016857-1,810,2111951 - NPS Property Consultants Ltd,"ALMS HOUSES COPPINS RD, VALUATION"
Tendring DC,http://statistics.data.gov.uk/id/local-authority-district/22UN,Corporate Services,1320 - Print Unit Service Unit,4302 - External Print Unit Expenses,06/01/2015,1062182-1,40,2111844 - Optimumprint,JOB 497
Tendring DC,http://statistics.data.gov.uk/id/local-authority-district/22UN,Corporate Services,1320 - Print Unit Service Unit,4302 - External Print Unit Expenses,06/01/2015,1062183-1,453,2111844 - Optimumprint,JOB 506/508
Tendring DC,http://statistics.data.gov.uk/id/local-authority-district/22UN,Corporate Services,1320 - Print Unit Service Unit,4302 - External Print Unit Expenses,06/01/2015,1062184-1,140,2111844 - Optimumprint,JOB 512
Tendring DC,http://statistics.data.gov.uk/id/local-authority-district/22UN,Corporate Services,1320 - Print Unit Service Unit,4302 - External Print Unit Expenses,06/01/2015,1062185-1,260,2111844 - Optimumprint,JOB 518
Tendring DC,http://statistics.data.gov.uk/id/local-authority-district/22UN,Corporate Services,1320 - Print Unit Service Unit,4302 - External Print Unit Expenses,13/01/2015,1062502-1,700,2111844 - Optimumprint,JOB 523/521
Tendring DC,http://statistics.data.gov.uk/id/local-authority-district/22UN,Corporate Services,6460 - Career Track,4688 - Career Track Exam Fees,06/01/2015,1062284-1,14.5,REDACTED PERSONAL DATA,REDACTED PERSONAL DATA
Tendring DC,http://statistics.data.gov.uk/id/local-authority-district/22UN,Corporate Services,6460 - Career Track,4688 - Career Track Exam Fees,13/01/2015,1062500-1,408,REDACTED PERSONAL DATA,REDACTED PERSONAL DATA
Tendring DC,http://statistics.data.gov.uk/id/local-authority-district/22UN,Corporate Services,6460 - Career Track,4688 - Career Track Exam Fees,27/01/2015,7017063-1,51,REDACTED PERSONAL DATA,REDACTED PERSONAL DATA
Tendring DC,http://statistics.data.gov.uk/id/local-authority-district/22UN,Corporate Services,6460 - Career Track,4688 - Career Track Exam Fees,27/01/2015,7017064-1,102,REDACTED PERSONAL DATA,REDACTED PERSONAL DATA
Tendring DC,http://statistics.data.gov.uk/id/local-authority-district/22UN,Corporate Services,6460 - Career Track,4688 - Career Track Exam Fees,27/01/2015,7017065-1,51,REDACTED PERSONAL DATA,REDACTED PERSONAL DATA
Tendring DC,http://statistics.data.gov.uk/id/local-authority-district/22UN,Corporate Services,6460 - Career Track,4688 - Career Track Exam Fees,27/01/2015,7017137-1,58,REDACTED PERSONAL DATA,REDACTED PERSONAL DATA
Tendring DC,http://statistics.data.gov.uk/id/local-authority-district/22UN,Corporate Services,1815 - Personnel and Human Resources Issues,1500 - Advertising - Recruitment,06/01/2015,1062395-1,625,2101097 - Peter Lockyer Advertising Ltd,PRODUCTION CHARGE
Tendring DC,http://statistics.data.gov.uk/id/local-authority-district/22UN,Corporate Services,1815 - Personnel and Human Resources Issues,1500 - Advertising - Recruitment,20/01/2015,7016925-1,1605,2101097 - Peter Lockyer Advertising Ltd,ORGANISATIONAL DEVELOPMENT
Tendring DC,http://statistics.data.gov.uk/id/local-authority-district/22UN,Corporate Services,1760 - IT Direct Service Costs,6325 - Additional Services,13/01/2015,1062463-1,35.97,2114690 - Peter Perry,2000W UPRIGHT HEATER FANS X 3
Tendring DC,http://statistics.data.gov.uk/id/local-authority-district/22UN,Corporate Services,1760 - IT Direct Service Costs,6325 - Additional Services,13/01/2015,1062464-1,11.99,2114690 - Peter Perry,2000W FAN HEATER
Tendring DC,http://statistics.data.gov.uk/id/local-authority-district/22UN,Corporate Services,1760 - IT Direct Service Costs,4753 - Computer - Application Software,13/01/2015,1062505-1,255.54,2101038 - Phoenix Software Limited,PROJECT 2013 SINGLE LICENSE
Tendring DC,http://statistics.data.gov.uk/id/local-authority-district/22UN,Corporate Services,7100 - Community Health/Safety,5164 - Project Expenses,06/01/2015,1062401-1,126,2113538 - Police and Crime Commissioner for Essex,ROLL UP BANNERS
Tendring DC,http://statistics.data.gov.uk/id/local-authority-district/22UN,Corporate Services,H880 - New Build Initiatives and Acquisitions,C101 - Acquisition of land - acquisition,29/01/2015,7800817-2,569205,2101150 - Powis & Co,Land & garage Lotus Way Jaywick
Tendring DC,http://statistics.data.gov.uk/id/local-authority-district/22UN,Corporate Services,1930 - Asset Management Service Unit,4459 - External Legal Advice,13/01/2015,1062488-1,176,2105829 - Prettys Solicitors,Rugby club dovercourt
Tendring DC,http://statistics.data.gov.uk/id/local-authority-district/22UN,Corporate Services,9930 - Loans Fund Balance Sheet,B551 - Loans Maturing Within One Year - HRA,22/01/2015,7800822-0,166666.67,2101162 - Public Works Loan Board,PWLB HRA loan 500800 Jan
Tendring DC,http://statistics.data.gov.uk/id/local-authority-district/22UN,Corporate Services,5760 - HRA - Capital & Interest Charges,9831 - HRA Interest (formerly Item 8),22/01/2015,7800822-1,40416.67,2101162 - Public Works Loan Board,PWLB HRA loan 500800 Jan
Tendring DC,http://statistics.data.gov.uk/id/local-authority-district/22UN,Corporate Services,8901 - Interest Payable and similar charges,7570 - Interest Payments,19/01/2015,7800826-1,5462.62,2101162 - Public Works Loan Board,PWLB various GF due 17 Jan
Tendring DC,http://statistics.data.gov.uk/id/local-authority-district/22UN,Corporate Services,5760 - HRA - Capital & Interest Charges,9831 - HRA Interest (formerly Item 8),15/01/2015,7800832-0,102500,2101162 - Public Works Loan Board,PWLB HRA loan 492341
Tendring DC,http://statistics.data.gov.uk/id/local-authority-district/22UN,Corporate Services,9900 - General Fund Balance Sheet,B886 - Rail Warrants Allocation Holding Account,02/01/2015,7800740-0,1325.7,2101174 - R S P Ltd,Rail Warrants
Tendring DC,http://statistics.data.gov.uk/id/local-authority-district/22UN,Corporate Services,1800 - Qualification and Other Training,1700 - Training - Courses,20/01/2015,7016981-1,83,2114219 - Richard Hall,ACCA MEMBERSHIP FEES 2015
Tendring DC,http://statistics.data.gov.uk/id/local-authority-district/22UN,Corporate Services,8510 - Dovercourt Swimming Pool & All Weather Facilities,4300 - Printing & Stationery,06/01/2015,1062206-1,30.81,2101090 - Ricoh UK Ltd,DOVERCOURT POOL-PHOTOCOPIER
Tendring DC,http://statistics.data.gov.uk/id/local-authority-district/22UN,Corporate Services,7240 - Electoral Registration Expenses,4700 - Postage,06/01/2015,1062397-1,93.07,2101139 - Royal Mail Group Ltd,ELECTORAL POSTAGE
Tendring DC,http://statistics.data.gov.uk/id/local-authority-district/22UN,Corporate Services,7240 - Electoral Registration Expenses,4700 - Postage,27/01/2015,1062674-1,8.7,2101139 - Royal Mail Group Ltd,ELECTORAL POSTAGE
Tendring DC,http://statistics.data.gov.uk/id/local-authority-district/22UN,Corporate Services,1815 - Personnel and Human Resources Issues,1600 - Medical Expenses,27/01/2015,7017139-1,1160,2110675 - RPS Consultants Ltd,OCCUPATIONAL HEALTH SERVICES
Tendring DC,http://statistics.data.gov.uk/id/local-authority-district/22UN,Corporate Services,1760 - IT Direct Service Costs,4753 - Computer - Application Software,06/01/2015,1062393-1,2456,2109993 - Sec-1 Ltd,T/U TO WGM400 3 YR LIVE SEC
Tendring DC,http://statistics.data.gov.uk/id/local-authority-district/22UN,Corporate Services,1300 - Legal Services Service Unit,4503 - Counsels Fees,20/01/2015,7016866-1,15091.36,2105530 - Shoosmiths,ST OSYTH PRIORY APPEAL
Tendring DC,http://statistics.data.gov.uk/id/local-authority-district/22UN,Corporate Services,1950 - Transport,3250 - Operational Leases - Transport,27/01/2015,7017061-1,2175.6,2102659 - Siemens Financial Services Ltd,LEASE PAYMENT
Tendring DC,http://statistics.data.gov.uk/id/local-authority-district/22UN,Corporate Services,1950 - Transport,3250 - Operational Leases - Transport,27/01/2015,7017061-2,2015.16,2102659 - Siemens Financial Services Ltd,LEASE PAYMENT
Tendring DC,http://statistics.data.gov.uk/id/local-authority-district/22UN,Corporate Services,1950 - Transport,3250 - Operational Leases - Transport,27/01/2015,7017061-3,571.2,2102659 - Siemens Financial Services Ltd,LEASE PAYMENT
Tendring DC,http://statistics.data.gov.uk/id/local-authority-district/22UN,Corporate Services,1950 - Transport,3250 - Operational Leases - Transport,27/01/2015,7017061-4,798,2102659 - Siemens Financial Services Ltd,LEASE PAYMENT
Tendring DC,http://statistics.data.gov.uk/id/local-authority-district/22UN,Corporate Services,C349 - IT Strategic Investment,C275 - Hardware,27/01/2015,7017155-1,114.74,2106991 - Specialist Computer Centres plc,UNIVERSAL KEY FOLIO CASE + DIRECT DELIVERY
Tendring DC,http://statistics.data.gov.uk/id/local-authority-district/22UN,Corporate Services,C349 - IT Strategic Investment,C275 - Hardware,27/01/2015,7017156-1,1186.28,2106991 - Specialist Computer Centres plc,
Tendring DC,http://statistics.data.gov.uk/id/local-authority-district/22UN,Corporate Services,1100 - Corporate Director (Corporate Services) and Admin Service Unit,1710 - Training - Central Department Budget,20/01/2015,7016865-1,100,2114681 - Stevenage Borough Council,GOVERNANCE SEMINAR
Tendring DC,http://statistics.data.gov.uk/id/local-authority-district/22UN,Corporate Services,7100 - Community Health/Safety,5164 - Project Expenses,13/01/2015,2117486-1,90,2107338 - Swan Taxis,Taxi for Borderline
Tendring DC,http://statistics.data.gov.uk/id/local-authority-district/22UN,Corporate Services,7100 - Community Health/Safety,5164 - Project Expenses,27/01/2015,7017150-1,158.4,2111603 - TCVS,CRUCIAL CREW EXPENSES
Tendring DC,http://statistics.data.gov.uk/id/local-authority-district/22UN,Corporate Services,1100 - Corporate Director (Corporate Services) and Admin Service Unit,1700 - Training - Courses,27/01/2015,1062673-1,488,2104780 - The Association of Electoral Administrators,ELECTIONS AT CAMBOURNE
Tendring DC,http://statistics.data.gov.uk/id/local-authority-district/22UN,Corporate Services,1815 - Personnel and Human Resources Issues,4459 - External Legal Advice,13/01/2015,1062503-1,250,2113014 - Thompson Smith & Puxon,ADVICE AND ASSISTANCE
Tendring DC,http://statistics.data.gov.uk/id/local-authority-district/22UN,Corporate Services,5240 - HRA - Managing Tenancies,5248 - Estate Management Expenses,01/01/2015,7800813-4,13.32,2112813 - Three,Dongles x 3 Dec 14
Tendring DC,http://statistics.data.gov.uk/id/local-authority-district/22UN,Corporate Services,5240 - HRA - Managing Tenancies,5242 - Tenant Relations,01/01/2015,7800813-5,13.32,2112813 - Three,Dongles x 3 Dec 14
Tendring DC,http://statistics.data.gov.uk/id/local-authority-district/22UN,Corporate Services,1760 - IT Direct Service Costs,4715 - Data Communication Charge,01/01/2015,7800813-6,13.33,2112813 - Three,Dongles x 3 Dec 14
Tendring DC,http://statistics.data.gov.uk/id/local-authority-district/22UN,Corporate Services,"1580 - Benefits, Revenues and Customer Contact SU",4716 - Mobile Telephone Costs,19/01/2015,7800848-2,13.32,2112813 - Three,2 x dongles
Tendring DC,http://statistics.data.gov.uk/id/local-authority-district/22UN,Corporate Services,1620 - IT Section Service Unit,4710 - Telephones - Charges,19/01/2015,7800848-3,13.33,2112813 - Three,2 x dongles
Tendring DC,http://statistics.data.gov.uk/id/local-authority-district/22UN,Corporate Services,1760 - IT Direct Service Costs,6320 - IT Services Agreements Payment,06/01/2015,1062431-1,47898.74,2108077 - Trinity,Jan-15
Tendring DC,http://statistics.data.gov.uk/id/local-authority-district/22UN,Corporate Services,5880 - Management Of Sport & Leisure Facilities,2100 - Building Repairs,20/01/2015,7016927-1,118.75,2108077 - Trinity,SAN IMPLEMENTATION
Tendring DC,http://statistics.data.gov.uk/id/local-authority-district/22UN,Corporate Services,1760 - IT Direct Service Costs,6325 - Additional Services,20/01/2015,7016927-2,21245.85,2108077 - Trinity,SAN IMPLEMENTATION
Tendring DC,http://statistics.data.gov.uk/id/local-authority-district/22UN,Corporate Services,9900 - General Fund Balance Sheet,B339 - Lease Car - TUSKER scheme,13/01/2015,1062550-1,80.87,2114054 - Tuskerdirect Limited,LEASE PAYMENT JAN 15
Tendring DC,http://statistics.data.gov.uk/id/local-authority-district/22UN,Corporate Services,9900 - General Fund Balance Sheet,B339 - Lease Car - TUSKER scheme,13/01/2015,1062550-10,122.89,2114054 - Tuskerdirect Limited,LEASE PAYMENT JAN 15
Tendring DC,http://statistics.data.gov.uk/id/local-authority-district/22UN,Corporate Services,9900 - General Fund Balance Sheet,B339 - Lease Car - TUSKER scheme,13/01/2015,1062550-11,32.59,2114054 - Tuskerdirect Limited,LEASE PAYMENT JAN 15
Tendring DC,http://statistics.data.gov.uk/id/local-authority-district/22UN,Corporate Services,9900 - General Fund Balance Sheet,B339 - Lease Car - TUSKER scheme,13/01/2015,1062550-12,57.99,2114054 - Tuskerdirect Limited,LEASE PAYMENT JAN 15
Tendring DC,http://statistics.data.gov.uk/id/local-authority-district/22UN,Corporate Services,9900 - General Fund Balance Sheet,B339 - Lease Car - TUSKER scheme,13/01/2015,1062550-13,97.48,2114054 - Tuskerdirect Limited,LEASE PAYMENT JAN 15
Tendring DC,http://statistics.data.gov.uk/id/local-authority-district/22UN,Corporate Services,9900 - General Fund Balance Sheet,B339 - Lease Car - TUSKER scheme,13/01/2015,1062550-14,116.99,2114054 - Tuskerdirect Limited,LEASE PAYMENT JAN 15
Tendring DC,http://statistics.data.gov.uk/id/local-authority-district/22UN,Corporate Services,9900 - General Fund Balance Sheet,B339 - Lease Car - TUSKER scheme,13/01/2015,1062550-15,37.4,2114054 - Tuskerdirect Limited,LEASE PAYMENT JAN 15
Tendring DC,http://statistics.data.gov.uk/id/local-authority-district/22UN,Corporate Services,9900 - General Fund Balance Sheet,B339 - Lease Car - TUSKER scheme,13/01/2015,1062550-16,64.41,2114054 - Tuskerdirect Limited,LEASE PAYMENT JAN 15
Tendring DC,http://statistics.data.gov.uk/id/local-authority-district/22UN,Corporate Services,9900 - General Fund Balance Sheet,B339 - Lease Car - TUSKER scheme,13/01/2015,1062550-17,65.65,2114054 - Tuskerdirect Limited,LEASE PAYMENT JAN 15
Tendring DC,http://statistics.data.gov.uk/id/local-authority-district/22UN,Corporate Services,9900 - General Fund Balance Sheet,B339 - Lease Car - TUSKER scheme,13/01/2015,1062550-18,78.79,2114054 - Tuskerdirect Limited,LEASE PAYMENT JAN 15
Tendring DC,http://statistics.data.gov.uk/id/local-authority-district/22UN,Corporate Services,9900 - General Fund Balance Sheet,B339 - Lease Car - TUSKER scheme,13/01/2015,1062550-19,37.4,2114054 - Tuskerdirect Limited,LEASE PAYMENT JAN 15
Tendring DC,http://statistics.data.gov.uk/id/local-authority-district/22UN,Corporate Services,9900 - General Fund Balance Sheet,B339 - Lease Car - TUSKER scheme,13/01/2015,1062550-2,97.06,2114054 - Tuskerdirect Limited,LEASE PAYMENT JAN 15
Tendring DC,http://statistics.data.gov.uk/id/local-authority-district/22UN,Corporate Services,9900 - General Fund Balance Sheet,B339 - Lease Car - TUSKER scheme,13/01/2015,1062550-20,45.42,2114054 - Tuskerdirect Limited,LEASE PAYMENT JAN 15
Tendring DC,http://statistics.data.gov.uk/id/local-authority-district/22UN,Corporate Services,9900 - General Fund Balance Sheet,B339 - Lease Car - TUSKER scheme,13/01/2015,1062550-3,42.85,2114054 - Tuskerdirect Limited,LEASE PAYMENT JAN 15
Tendring DC,http://statistics.data.gov.uk/id/local-authority-district/22UN,Corporate Services,9900 - General Fund Balance Sheet,B339 - Lease Car - TUSKER scheme,13/01/2015,1062550-4,63.42,2114054 - Tuskerdirect Limited,LEASE PAYMENT JAN 15
Tendring DC,http://statistics.data.gov.uk/id/local-authority-district/22UN,Corporate Services,9900 - General Fund Balance Sheet,B339 - Lease Car - TUSKER scheme,13/01/2015,1062550-5,66.67,2114054 - Tuskerdirect Limited,LEASE PAYMENT JAN 15
Tendring DC,http://statistics.data.gov.uk/id/local-authority-district/22UN,Corporate Services,9900 - General Fund Balance Sheet,B339 - Lease Car - TUSKER scheme,13/01/2015,1062550-6,80.02,2114054 - Tuskerdirect Limited,LEASE PAYMENT JAN 15
Tendring DC,http://statistics.data.gov.uk/id/local-authority-district/22UN,Corporate Services,9900 - General Fund Balance Sheet,B339 - Lease Car - TUSKER scheme,13/01/2015,1062550-7,32.59,2114054 - Tuskerdirect Limited,LEASE PAYMENT JAN 15
Tendring DC,http://statistics.data.gov.uk/id/local-authority-district/22UN,Corporate Services,9900 - General Fund Balance Sheet,B339 - Lease Car - TUSKER scheme,13/01/2015,1062550-8,52.01,2114054 - Tuskerdirect Limited,LEASE PAYMENT JAN 15
Tendring DC,http://statistics.data.gov.uk/id/local-authority-district/22UN,Corporate Services,9900 - General Fund Balance Sheet,B339 - Lease Car - TUSKER scheme,13/01/2015,1062550-9,102.41,2114054 - Tuskerdirect Limited,LEASE PAYMENT JAN 15
Tendring DC,http://statistics.data.gov.uk/id/local-authority-district/22UN,Corporate Services,1100 - Corporate Director (Corporate Services) and Admin Service Unit,1710 - Training - Central Department Budget,06/01/2015,1062396-1,125,2112451 - VineHR Ltd,ANASTASIA CLASS
Tendring DC,http://statistics.data.gov.uk/id/local-authority-district/22UN,Corporate Services,1815 - Personnel and Human Resources Issues,1711 - Training - e-Learning,20/01/2015,7016875-1,7000,2112451 - VineHR Ltd,PLATFORM ANNUAL PAYMENT
Tendring DC,http://statistics.data.gov.uk/id/local-authority-district/22UN,Corporate Services,1815 - Personnel and Human Resources Issues,1500 - Advertising - Recruitment,20/01/2015,7016876-1,3150,2112451 - VineHR Ltd,INVESTIGATION WORK
Tendring DC,http://statistics.data.gov.uk/id/local-authority-district/22UN,Corporate Services,1760 - IT Direct Service Costs,4715 - Data Communication Charge,27/01/2015,2117533-1,1080.16,2101522 - Vodafone Corporate,Vodafone Jan 2015
Tendring DC,http://statistics.data.gov.uk/id/local-authority-district/22UN,Corporate Services,1320 - Print Unit Service Unit,4350 - Photocopier Hire,06/01/2015,1062344-1,719.78,2101517 - Xerox (UK) Ltd,4127 COPIES AND BC
Tendring DC,http://statistics.data.gov.uk/id/local-authority-district/22UN,Corporate Services,1320 - Print Unit Service Unit,4350 - Photocopier Hire,06/01/2015,1062345-1,3612.01,2101517 - Xerox (UK) Ltd,252 BC AND COPIES
Tendring DC,http://statistics.data.gov.uk/id/local-authority-district/22UN,Corporate Services,1760 - IT Direct Service Costs,4350 - Photocopier Hire,20/01/2015,7016868-1,127.11,2101517 - Xerox (UK) Ltd,LEADER XEROX
Tendring DC,http://statistics.data.gov.uk/id/local-authority-district/22UN,Corporate Services,1760 - IT Direct Service Costs,4350 - Photocopier Hire,13/01/2015,1062495-1,156.79,2101527 - Xerox Finance Ltd,CREM XEROX 2014
Tendring DC,http://statistics.data.gov.uk/id/local-authority-district/22UN,Corporate Services,1760 - IT Direct Service Costs,4350 - Photocopier Hire,13/01/2015,1062496-1,156.79,2101527 - Xerox Finance Ltd,BUILD CTRL XEROX 2014
Tendring DC,http://statistics.data.gov.uk/id/local-authority-district/22UN,Corporate Services,1760 - IT Direct Service Costs,4350 - Photocopier Hire,13/01/2015,1062497-1,1254.37,2101527 - Xerox Finance Ltd,VARIOUS XEROX 2014
Tendring DC,http://statistics.data.gov.uk/id/local-authority-district/22UN,Corporate Services,1760 - IT Direct Service Costs,4350 - Photocopier Hire,13/01/2015,1062498-1,783.96,2101527 - Xerox Finance Ltd,VARIOUS XEROX 2014
Tendring DC,http://statistics.data.gov.uk/id/local-authority-district/22UN,Corporate Services,5480 - HRA - Repair & Maintenance,6625 - Tenants Compensation Scheme,06/01/2015,1062433-1,327.24,REDACTED PERSONAL DATA,REDACTED PERSONAL DATA
Tendring DC,http://statistics.data.gov.uk/id/local-authority-district/22UN,Corporate Services,9900 - General Fund Balance Sheet,B382 - Rechargeable Works - Other,06/01/2015,1062433-2,1000,REDACTED PERSONAL DATA,REDACTED PERSONAL DATA
Tendring DC,http://statistics.data.gov.uk/id/local-authority-district/22UN,Corporate Services,C021 - Cremator Replacement and Crematorium Car Park,C200 - Main Contractor,27/01/2015,7017157-1,1696,2107672 - Zurich Municipal Insurance,WEELEY CREM
Tendring DC,http://statistics.data.gov.uk/id/local-authority-district/22UN,Life Opportunities,6160 - Princes Theatre,3311 - Travelling Career Track,27/01/2015,2117556-1,60,REDACTED PERSONAL DATA,REDACTED PERSONAL DATA
Tendring DC,http://statistics.data.gov.uk/id/local-authority-district/22UN,Life Opportunities,1880 - Office Accommodation Expenses,2100 - Building Repairs,27/01/2015,1062677-1,104.5,2101609 - Adcock Refrigeration & Air Conditioning Ltd,AC WEELEY 30/12/14
Tendring DC,http://statistics.data.gov.uk/id/local-authority-district/22UN,Life Opportunities,1880 - Office Accommodation Expenses,2100 - Building Repairs,20/01/2015,7016951-1,300,2101609 - Adcock Refrigeration & Air Conditioning Ltd,AIRCON MAINTENANCE WEELEY NOV 14
Tendring DC,http://statistics.data.gov.uk/id/local-authority-district/22UN,Life Opportunities,1880 - Office Accommodation Expenses,2100 - Building Repairs,20/01/2015,7016952-1,485,2101609 - Adcock Refrigeration & Air Conditioning Ltd,AIRCON MAINTENANCE TOWN HALL JAN 15
Tendring DC,http://statistics.data.gov.uk/id/local-authority-district/22UN,Life Opportunities,8510 - Dovercourt Swimming Pool & All Weather Facilities,2510 - Water Services - Unmetered,20/01/2015,7016899-1,364.22,2112518 - Affinity Water Ltd (East Region),DOVERCOURT POOL
Tendring DC,http://statistics.data.gov.uk/id/local-authority-district/22UN,Life Opportunities,5360 - HRA - Sheltered Units,2500 - Water Services - Metered,20/01/2015,7016932-1,15.19,2112518 - Affinity Water Ltd (East Region),BELMANS 5023105-6
Tendring DC,http://statistics.data.gov.uk/id/local-authority-district/22UN,Life Opportunities,8540 - Leisure Centre Clacton,2510 - Water Services - Unmetered,20/01/2015,7016996-1,892.84,2112518 - Affinity Water Ltd (East Region),DECEMBER
Tendring DC,http://statistics.data.gov.uk/id/local-authority-district/22UN,Life Opportunities,8520 - Frinton & Walton Swimming Pool,2510 - Water Services - Unmetered,20/01/2015,7017021-1,1135.52,2112518 - Affinity Water Ltd (East Region),FWSP - AFFINITY WATER
Tendring DC,http://statistics.data.gov.uk/id/local-authority-district/22UN,Life Opportunities,5480 - HRA - Repair & Maintenance,2017 - Mechanical Equipment /Extract Fans,13/01/2015,1062534-1,461.52,REDACTED PERSONAL DATA,REDACTED PERSONAL DATA
Tendring DC,http://statistics.data.gov.uk/id/local-authority-district/22UN,Life Opportunities,H715 - Measures To Combat Condensation,C200 - Main Contractor,13/01/2015,1062535-1,438.3,REDACTED PERSONAL DATA,REDACTED PERSONAL DATA
Tendring DC,http://statistics.data.gov.uk/id/local-authority-district/22UN,Life Opportunities,H715 - Measures To Combat Condensation,C200 - Main Contractor,13/01/2015,1062536-1,1210.5,REDACTED PERSONAL DATA,REDACTED PERSONAL DATA
Tendring DC,http://statistics.data.gov.uk/id/local-authority-district/22UN,Life Opportunities,C021 - Cremator Replacement and Crematorium Car Park,C200 - Main Contractor,20/01/2015,7016907-1,1115,2113215 - Allman Woodcock Limited,VAL 19
Tendring DC,http://statistics.data.gov.uk/id/local-authority-district/22UN,Life Opportunities,6740 - Careline,3060 - Running Costs - Diesel,13/01/2015,2117484-1,488.73,2101825 - Allstar Business Solutions Ltd,Allstar Dec
Tendring DC,http://statistics.data.gov.uk/id/local-authority-district/22UN,Life Opportunities,5480 - HRA - Repair & Maintenance,2058 - Fire Alarms Repairs,13/01/2015,7016773-1,2480,2114359 - Alpha Fire Alarms Ltd,CROOKED ELMS
Tendring DC,http://statistics.data.gov.uk/id/local-authority-district/22UN,Life Opportunities,5860 - Manningtree Sports Centre,4597 - Hired Services - Payments to Contractors,06/01/2015,1062337-1,240,2110101 - Anglia Sports Management Ltd,FOOTBALL COACHING NOV 2014
Tendring DC,http://statistics.data.gov.uk/id/local-authority-district/22UN,Life Opportunities,5480 - HRA - Repair & Maintenance,2073 - Smoke Alarm Service/Testing,13/01/2015,1062530-1,355.56,2114631 - Appello,BELMANS CT
Tendring DC,http://statistics.data.gov.uk/id/local-authority-district/22UN,Life Opportunities,5480 - HRA - Repair & Maintenance,2073 - Smoke Alarm Service/Testing,20/01/2015,7016888-1,793.17,2114631 - Appello,MEAD HOUSE
Tendring DC,http://statistics.data.gov.uk/id/local-authority-district/22UN,Life Opportunities,5240 - HRA - Managing Tenancies,6625 - Tenants Compensation Scheme,06/01/2015,1062418-1,250,2100057 - Applebys (Removals) Ltd,FURNITURE REMOVAL
Tendring DC,http://statistics.data.gov.uk/id/local-authority-district/22UN,Life Opportunities,1240 - Commercial Management,3311 - Travelling Career Track,13/01/2015,1062460-1,60,REDACTED PERSONAL DATA,REDACTED PERSONAL DATA
Tendring DC,http://statistics.data.gov.uk/id/local-authority-district/22UN,Life Opportunities,7520 - Tourism Publicity Marketing Promotion,5160 - Advertising,06/01/2015,1062275-1,196.9,2102337 - Archant Regional Ltd,1/4 PAGE ADVERT VISIT ESSEX JAN 15
Tendring DC,http://statistics.data.gov.uk/id/local-authority-district/22UN,Life Opportunities,8540 - Leisure Centre Clacton,5500 - Miscellaneous Expenses,20/01/2015,1062553-1,167.24,2100048 - Argos Business Solutions,2 WAY RADIOS
Tendring DC,http://statistics.data.gov.uk/id/local-authority-district/22UN,Life Opportunities,6740 - Careline,4040 - Equipment & Tools,27/01/2015,1062694-1,439.43,2100048 - Argos Business Solutions,3 X DISPLAY CABINETS
Tendring DC,http://statistics.data.gov.uk/id/local-authority-district/22UN,Life Opportunities,8510 - Dovercourt Swimming Pool & All Weather Facilities,4000 - Furniture,20/01/2015,7016896-1,55.45,2100048 - Argos Business Solutions,DOVERCOURT POOL - CAMERA
Tendring DC,http://statistics.data.gov.uk/id/local-authority-district/22UN,Life Opportunities,8540 - Leisure Centre Clacton,2100 - Building Repairs,06/01/2015,1062251-1,100,2105132 - Arrow Bathrooms and Kitchens Ltd,SHOWER OVERHAUL
Tendring DC,http://statistics.data.gov.uk/id/local-authority-district/22UN,Life Opportunities,8540 - Leisure Centre Clacton,2100 - Building Repairs,06/01/2015,1062251-2,280,2105132 - Arrow Bathrooms and Kitchens Ltd,SHOWER OVERHAUL
Tendring DC,http://statistics.data.gov.uk/id/local-authority-district/22UN,Life Opportunities,5480 - HRA - Repair & Maintenance,2088 - Disabled Adaptations,27/01/2015,1062631-1,85,REDACTED PERSONAL DATA,REDACTED PERSONAL DATA
Tendring DC,http://statistics.data.gov.uk/id/local-authority-district/22UN,Life Opportunities,5480 - HRA - Repair & Maintenance,2088 - Disabled Adaptations,27/01/2015,1062631-2,273,REDACTED PERSONAL DATA,REDACTED PERSONAL DATA
Tendring DC,http://statistics.data.gov.uk/id/local-authority-district/22UN,Life Opportunities,5480 - HRA - Repair & Maintenance,2088 - Disabled Adaptations,27/01/2015,1062632-1,60,REDACTED PERSONAL DATA,REDACTED PERSONAL DATA
Tendring DC,http://statistics.data.gov.uk/id/local-authority-district/22UN,Life Opportunities,5480 - HRA - Repair & Maintenance,2088 - Disabled Adaptations,27/01/2015,1062632-2,290,REDACTED PERSONAL DATA,REDACTED PERSONAL DATA
Tendring DC,http://statistics.data.gov.uk/id/local-authority-district/22UN,Life Opportunities,5480 - HRA - Repair & Maintenance,2088 - Disabled Adaptations,27/01/2015,1062633-1,100,2105132 - Arrow Bathrooms and Kitchens Ltd,DISABLED ADAPTIONS 14-15
Tendring DC,http://statistics.data.gov.uk/id/local-authority-district/22UN,Life Opportunities,5480 - HRA - Repair & Maintenance,2088 - Disabled Adaptations,27/01/2015,1062633-2,480,2105132 - Arrow Bathrooms and Kitchens Ltd,DISABLED ADAPTIONS 14-15
Tendring DC,http://statistics.data.gov.uk/id/local-authority-district/22UN,Life Opportunities,8520 - Frinton & Walton Swimming Pool,5300 - Resaleable Items,13/01/2015,1062474-1,113.3,2100088 - ASA Merchandising Ltd,FSWP-ASA
Tendring DC,http://statistics.data.gov.uk/id/local-authority-district/22UN,Life Opportunities,8520 - Frinton & Walton Swimming Pool,5300 - Resaleable Items,20/01/2015,7017020-1,10.44,2100088 - ASA Merchandising Ltd,FWSP - ASA
Tendring DC,http://statistics.data.gov.uk/id/local-authority-district/22UN,Life Opportunities,6740 - Careline,3060 - Running Costs - Diesel,06/01/2015,1062239-1,204.66,2100009 - ATS Euromaster Ltd,2 X TYRES
Tendring DC,http://statistics.data.gov.uk/id/local-authority-district/22UN,Life Opportunities,8510 - Dovercourt Swimming Pool & All Weather Facilities,4000 - Furniture,06/01/2015,1062228-1,4.21,2100111 - Banner Business Supplies Ltd,DOVERCOURT POOL-KEY PRESS
Tendring DC,http://statistics.data.gov.uk/id/local-authority-district/22UN,Life Opportunities,6740 - Careline,4300 - Printing & Stationery,06/01/2015,1062311-1,57.13,2100111 - Banner Business Supplies Ltd,PAPER AND LABELS
Tendring DC,http://statistics.data.gov.uk/id/local-authority-district/22UN,Life Opportunities,5860 - Manningtree Sports Centre,4300 - Printing & Stationery,06/01/2015,1062347-1,66.56,2100111 - Banner Business Supplies Ltd,BANNER STATIONERY
Tendring DC,http://statistics.data.gov.uk/id/local-authority-district/22UN,Life Opportunities,5240 - HRA - Managing Tenancies,4312 - Tenancy Stationery,06/01/2015,1062348-1,101.55,2100111 - Banner Business Supplies Ltd,STATIONERY 15/12/14
Tendring DC,http://statistics.data.gov.uk/id/local-authority-district/22UN,Life Opportunities,8510 - Dovercourt Swimming Pool & All Weather Facilities,4300 - Printing & Stationery,13/01/2015,1062489-1,2.98,2100111 - Banner Business Supplies Ltd,DOVERCOURTSAY LIFESTYLES
Tendring DC,http://statistics.data.gov.uk/id/local-authority-district/22UN,Life Opportunities,"1580 - Benefits, Revenues and Customer Contact SU",4300 - Printing & Stationery,20/01/2015,1062557-1,226.45,2100111 - Banner Business Supplies Ltd,STATIONERY 2/1/15
Tendring DC,http://statistics.data.gov.uk/id/local-authority-district/22UN,Life Opportunities,"1580 - Benefits, Revenues and Customer Contact SU",4300 - Printing & Stationery,20/01/2015,1062558-1,10.52,2100111 - Banner Business Supplies Ltd,STATIONERY 2/1/15
Tendring DC,http://statistics.data.gov.uk/id/local-authority-district/22UN,Life Opportunities,1230 - Strategic Housing & Needs Management,4300 - Printing & Stationery,27/01/2015,1062696-1,6.81,2100111 - Banner Business Supplies Ltd,STAMPS
Tendring DC,http://statistics.data.gov.uk/id/local-authority-district/22UN,Life Opportunities,"1580 - Benefits, Revenues and Customer Contact SU",4300 - Printing & Stationery,27/01/2015,1062696-2,12.87,2100111 - Banner Business Supplies Ltd,STAMPS
Tendring DC,http://statistics.data.gov.uk/id/local-authority-district/22UN,Life Opportunities,5360 - HRA - Sheltered Units,4300 - Printing & Stationery,13/01/2015,2117474-1,38.3,2100111 - Banner Business Supplies Ltd,"Scissors, Batteries, Highlighters, Stiktac, Rubber Bands"
Tendring DC,http://statistics.data.gov.uk/id/local-authority-district/22UN,Life Opportunities,5240 - HRA - Managing Tenancies,4312 - Tenancy Stationery,13/01/2015,2117474-2,10.38,2100111 - Banner Business Supplies Ltd,"Scissors, Batteries, Highlighters, Stiktac, Rubber Bands"
Tendring DC,http://statistics.data.gov.uk/id/local-authority-district/22UN,Life Opportunities,"1580 - Benefits, Revenues and Customer Contact SU",4300 - Printing & Stationery,13/01/2015,2117474-3,3.58,2100111 - Banner Business Supplies Ltd,"Scissors, Batteries, Highlighters, Stiktac, Rubber Bands"
Tendring DC,http://statistics.data.gov.uk/id/local-authority-district/22UN,Life Opportunities,5240 - HRA - Managing Tenancies,4312 - Tenancy Stationery,13/01/2015,2117475-1,31.77,2100111 - Banner Business Supplies Ltd,Loop Paper
Tendring DC,http://statistics.data.gov.uk/id/local-authority-district/22UN,Life Opportunities,6740 - Careline,4300 - Printing & Stationery,13/01/2015,2117476-1,8.36,2100111 - Banner Business Supplies Ltd,Labels
Tendring DC,http://statistics.data.gov.uk/id/local-authority-district/22UN,Life Opportunities,6160 - Princes Theatre,4105 - Bar/Catering Expenses,13/01/2015,1062477-1,300,2100114 - Bespoke Caterers,BUFFET FOR THEATRE 13.12.14
Tendring DC,http://statistics.data.gov.uk/id/local-authority-district/22UN,Life Opportunities,1880 - Office Accommodation Expenses,2300 - Energy Costs - Fuel Oil,20/01/2015,7016904-1,958.4,2112681 - BIRLEM Ltd,LSGO - 1600
Tendring DC,http://statistics.data.gov.uk/id/local-authority-district/22UN,Life Opportunities,8540 - Leisure Centre Clacton,2300 - Energy Costs - Fuel Oil,20/01/2015,7017027-1,1497.5,2112681 - BIRLEM Ltd,2500 LT
Tendring DC,http://statistics.data.gov.uk/id/local-authority-district/22UN,Life Opportunities,8540 - Leisure Centre Clacton,2300 - Energy Costs - Fuel Oil,20/01/2015,7017028-1,1264,2112681 - BIRLEM Ltd,2000 LT
Tendring DC,http://statistics.data.gov.uk/id/local-authority-district/22UN,Life Opportunities,8540 - Leisure Centre Clacton,2300 - Energy Costs - Fuel Oil,20/01/2015,7017029-1,988.2,2112681 - BIRLEM Ltd,1800 LT
Tendring DC,http://statistics.data.gov.uk/id/local-authority-district/22UN,Life Opportunities,5480 - HRA - Repair & Maintenance,2056 - Electric Heating Repairs,27/01/2015,1062635-1,1027.02,REDACTED PERSONAL DATA,REDACTED PERSONAL DATA
Tendring DC,http://statistics.data.gov.uk/id/local-authority-district/22UN,Life Opportunities,H805 - Major Refurbishment of Heating,C200 - Main Contractor,27/01/2015,2117539-1,36097.92,2100155 - Blue Flame (Colchester) Ltd,Heating Refurb & Upgrade V24
Tendring DC,http://statistics.data.gov.uk/id/local-authority-district/22UN,Life Opportunities,6160 - Princes Theatre,5306 - Confectionary,06/01/2015,1062276-1,18.55,2113279 - Booker,ITEMS FOR THEATRE
Tendring DC,http://statistics.data.gov.uk/id/local-authority-district/22UN,Life Opportunities,6160 - Princes Theatre,5306 - Confectionary,06/01/2015,1062276-2,11,2113279 - Booker,ITEMS FOR THEATRE
Tendring DC,http://statistics.data.gov.uk/id/local-authority-district/22UN,Life Opportunities,6160 - Princes Theatre,5306 - Confectionary,06/01/2015,1062371-1,125.62,2113279 - Booker,ITEMS FOR BAR
Tendring DC,http://statistics.data.gov.uk/id/local-authority-district/22UN,Life Opportunities,6160 - Princes Theatre,5306 - Confectionary,06/01/2015,1062372-1,291.02,2113279 - Booker,ITEMS FOR BAR
Tendring DC,http://statistics.data.gov.uk/id/local-authority-district/22UN,Life Opportunities,6160 - Princes Theatre,5306 - Confectionary,06/01/2015,1062372-2,8.25,2113279 - Booker,ITEMS FOR BAR
Tendring DC,http://statistics.data.gov.uk/id/local-authority-district/22UN,Life Opportunities,6160 - Princes Theatre,5306 - Confectionary,13/01/2015,1062481-1,73.81,2113279 - Booker,CONFECTIONARY AND DRINKS THEATRE BAR
Tendring DC,http://statistics.data.gov.uk/id/local-authority-district/22UN,Life Opportunities,1500 - Planning Development Manager,4800 - Hospitality,20/01/2015,7016916-1,16.38,2113279 - Booker,ITEMS FOR PLANNING
Tendring DC,http://statistics.data.gov.uk/id/local-authority-district/22UN,Life Opportunities,1500 - Planning Development Manager,4800 - Hospitality,20/01/2015,7016916-2,36.12,2113279 - Booker,ITEMS FOR PLANNING
Tendring DC,http://statistics.data.gov.uk/id/local-authority-district/22UN,Life Opportunities,1242 - Corporate Director (Life Opportunities),1710 - Training - Central Department Budget,13/01/2015,7016761-1,120,REDACTED PERSONAL DATA,REDACTED PERSONAL DATA
Tendring DC,http://statistics.data.gov.uk/id/local-authority-district/22UN,Life Opportunities,5240 - HRA - Managing Tenancies,5242 - Tenant Relations,06/01/2015,1062297-1,10,REDACTED PERSONAL DATA,REDACTED PERSONAL DATA
Tendring DC,http://statistics.data.gov.uk/id/local-authority-district/22UN,Life Opportunities,6160 - Princes Theatre,4040 - Equipment & Tools,06/01/2015,1062215-1,374.22,2106700 - Brentwood Communications Ltd,EARPIECES AND CHARGERS
Tendring DC,http://statistics.data.gov.uk/id/local-authority-district/22UN,Life Opportunities,8520 - Frinton & Walton Swimming Pool,2304 - Energy Costs - Electricity,06/01/2015,1062416-1,2016.28,2106318 - British Gas Business,FWSP-670031255
Tendring DC,http://statistics.data.gov.uk/id/local-authority-district/22UN,Life Opportunities,1880 - Office Accommodation Expenses,2304 - Energy Costs - Electricity,20/01/2015,1062616-1,1062.78,2106318 - British Gas Business,BRITISH GAS ELECTRIC NOV 14
Tendring DC,http://statistics.data.gov.uk/id/local-authority-district/22UN,Life Opportunities,1880 - Office Accommodation Expenses,2304 - Energy Costs - Electricity,20/01/2015,1062616-2,11.21,2106318 - British Gas Business,BRITISH GAS ELECTRIC NOV 14
Tendring DC,http://statistics.data.gov.uk/id/local-authority-district/22UN,Life Opportunities,1880 - Office Accommodation Expenses,2304 - Energy Costs - Electricity,20/01/2015,1062616-3,6.95,2106318 - British Gas Business,BRITISH GAS ELECTRIC NOV 14
Tendring DC,http://statistics.data.gov.uk/id/local-authority-district/22UN,Life Opportunities,1860 - Depots General,2304 - Energy Costs - Electricity,20/01/2015,1062616-4,435.76,2106318 - British Gas Business,BRITISH GAS ELECTRIC NOV 14
Tendring DC,http://statistics.data.gov.uk/id/local-authority-district/22UN,Life Opportunities,1860 - Depots General,2304 - Energy Costs - Electricity,20/01/2015,1062616-5,61.95,2106318 - British Gas Business,BRITISH GAS ELECTRIC NOV 14
Tendring DC,http://statistics.data.gov.uk/id/local-authority-district/22UN,Life Opportunities,1880 - Office Accommodation Expenses,2304 - Energy Costs - Electricity,20/01/2015,1062616-6,57.27,2106318 - British Gas Business,BRITISH GAS ELECTRIC NOV 14
Tendring DC,http://statistics.data.gov.uk/id/local-authority-district/22UN,Life Opportunities,1880 - Office Accommodation Expenses,2304 - Energy Costs - Electricity,20/01/2015,1062616-7,89.76,2106318 - British Gas Business,BRITISH GAS ELECTRIC NOV 14
Tendring DC,http://statistics.data.gov.uk/id/local-authority-district/22UN,Life Opportunities,1880 - Office Accommodation Expenses,2304 - Energy Costs - Electricity,20/01/2015,1062616-8,931.24,2106318 - British Gas Business,BRITISH GAS ELECTRIC NOV 14
Tendring DC,http://statistics.data.gov.uk/id/local-authority-district/22UN,Life Opportunities,1880 - Office Accommodation Expenses,2304 - Energy Costs - Electricity,20/01/2015,1062616-9,1076.04,2106318 - British Gas Business,BRITISH GAS ELECTRIC NOV 14
Tendring DC,http://statistics.data.gov.uk/id/local-authority-district/22UN,Life Opportunities,1880 - Office Accommodation Expenses,2304 - Energy Costs - Electricity,20/01/2015,1062617-1,1150.12,2106318 - British Gas Business,ELECTRICITY DEC 14
Tendring DC,http://statistics.data.gov.uk/id/local-authority-district/22UN,Life Opportunities,1880 - Office Accommodation Expenses,2304 - Energy Costs - Electricity,20/01/2015,1062617-10,68.34,2106318 - British Gas Business,ELECTRICITY DEC 14
Tendring DC,http://statistics.data.gov.uk/id/local-authority-district/22UN,Life Opportunities,1880 - Office Accommodation Expenses,2304 - Energy Costs - Electricity,20/01/2015,1062617-11,99.09,2106318 - British Gas Business,ELECTRICITY DEC 14
Tendring DC,http://statistics.data.gov.uk/id/local-authority-district/22UN,Life Opportunities,1880 - Office Accommodation Expenses,2304 - Energy Costs - Electricity,20/01/2015,1062617-12,2170.12,2106318 - British Gas Business,ELECTRICITY DEC 14
Tendring DC,http://statistics.data.gov.uk/id/local-authority-district/22UN,Life Opportunities,1860 - Depots General,2304 - Energy Costs - Electricity,20/01/2015,1062617-13,427.75,2106318 - British Gas Business,ELECTRICITY DEC 14
Tendring DC,http://statistics.data.gov.uk/id/local-authority-district/22UN,Life Opportunities,1860 - Depots General,2304 - Energy Costs - Electricity,20/01/2015,1062617-14,554.02,2106318 - British Gas Business,ELECTRICITY DEC 14
Tendring DC,http://statistics.data.gov.uk/id/local-authority-district/22UN,Life Opportunities,1880 - Office Accommodation Expenses,2304 - Energy Costs - Electricity,20/01/2015,1062617-15,936.04,2106318 - British Gas Business,ELECTRICITY DEC 14
Tendring DC,http://statistics.data.gov.uk/id/local-authority-district/22UN,Life Opportunities,1880 - Office Accommodation Expenses,2304 - Energy Costs - Electricity,20/01/2015,1062617-16,-6.93,2106318 - British Gas Business,ELECTRICITY DEC 14
Tendring DC,http://statistics.data.gov.uk/id/local-authority-district/22UN,Life Opportunities,1880 - Office Accommodation Expenses,2304 - Energy Costs - Electricity,20/01/2015,1062617-17,-7.41,2106318 - British Gas Business,ELECTRICITY DEC 14
Tendring DC,http://statistics.data.gov.uk/id/local-authority-district/22UN,Life Opportunities,1880 - Office Accommodation Expenses,2304 - Energy Costs - Electricity,20/01/2015,1062617-18,-22.17,2106318 - British Gas Business,ELECTRICITY DEC 14
Tendring DC,http://statistics.data.gov.uk/id/local-authority-district/22UN,Life Opportunities,1880 - Office Accommodation Expenses,2304 - Energy Costs - Electricity,20/01/2015,1062617-2,12.87,2106318 - British Gas Business,ELECTRICITY DEC 14
Tendring DC,http://statistics.data.gov.uk/id/local-authority-district/22UN,Life Opportunities,1880 - Office Accommodation Expenses,2304 - Energy Costs - Electricity,20/01/2015,1062617-3,7.41,2106318 - British Gas Business,ELECTRICITY DEC 14
Tendring DC,http://statistics.data.gov.uk/id/local-authority-district/22UN,Life Opportunities,1880 - Office Accommodation Expenses,2304 - Energy Costs - Electricity,20/01/2015,1062617-4,36.75,2106318 - British Gas Business,ELECTRICITY DEC 14
Tendring DC,http://statistics.data.gov.uk/id/local-authority-district/22UN,Life Opportunities,1860 - Depots General,2304 - Energy Costs - Electricity,20/01/2015,1062617-5,286.84,2106318 - British Gas Business,ELECTRICITY DEC 14
Tendring DC,http://statistics.data.gov.uk/id/local-authority-district/22UN,Life Opportunities,1880 - Office Accommodation Expenses,2304 - Energy Costs - Electricity,20/01/2015,1062617-6,177.57,2106318 - British Gas Business,ELECTRICITY DEC 14
Tendring DC,http://statistics.data.gov.uk/id/local-authority-district/22UN,Life Opportunities,1880 - Office Accommodation Expenses,2304 - Energy Costs - Electricity,20/01/2015,1062617-7,307.36,2106318 - British Gas Business,ELECTRICITY DEC 14
Tendring DC,http://statistics.data.gov.uk/id/local-authority-district/22UN,Life Opportunities,1880 - Office Accommodation Expenses,2304 - Energy Costs - Electricity,20/01/2015,1062617-8,362.12,2106318 - British Gas Business,ELECTRICITY DEC 14
Tendring DC,http://statistics.data.gov.uk/id/local-authority-district/22UN,Life Opportunities,1860 - Depots General,2304 - Energy Costs - Electricity,20/01/2015,1062617-9,68.3,2106318 - British Gas Business,ELECTRICITY DEC 14
Tendring DC,http://statistics.data.gov.uk/id/local-authority-district/22UN,Life Opportunities,5440 - HRA - Communal Electricity,2304 - Energy Costs - Electricity,20/01/2015,7016938-1,14.05,2106318 - British Gas Business,WILLOW WAY
Tendring DC,http://statistics.data.gov.uk/id/local-authority-district/22UN,Life Opportunities,6740 - Careline,4710 - Telephones - Charges,06/01/2015,1062204-1,49.93,2100168 - British Telecommunications plc,
Tendring DC,http://statistics.data.gov.uk/id/local-authority-district/22UN,Life Opportunities,5240 - HRA - Managing Tenancies,5249 - Housing ASB Expenses,06/01/2015,1062248-1,97.8,2100168 - British Telecommunications plc,CHARGES 1/12/14-28/2/15
Tendring DC,http://statistics.data.gov.uk/id/local-authority-district/22UN,Life Opportunities,6740 - Careline,4710 - Telephones - Charges,06/01/2015,1062305-1,291.26,2100168 - British Telecommunications plc,
Tendring DC,http://statistics.data.gov.uk/id/local-authority-district/22UN,Life Opportunities,6740 - Careline,4710 - Telephones - Charges,06/01/2015,1062306-1,52.98,2100168 - British Telecommunications plc,
Tendring DC,http://statistics.data.gov.uk/id/local-authority-district/22UN,Life Opportunities,6740 - Careline,4710 - Telephones - Charges,06/01/2015,1062373-1,120.56,2100168 - British Telecommunications plc,
Tendring DC,http://statistics.data.gov.uk/id/local-authority-district/22UN,Life Opportunities,H815 - Re-roofing,C200 - Main Contractor,27/01/2015,1062734-1,642,REDACTED PERSONAL DATA,REDACTED PERSONAL DATA
Tendring DC,http://statistics.data.gov.uk/id/local-authority-district/22UN,Life Opportunities,5360 - HRA - Sheltered Units,2700 - Cleaning Materials,06/01/2015,1062216-1,62.36,2101624 - Bunzl,CLEANING EQUIP KATE DANIELS
Tendring DC,http://statistics.data.gov.uk/id/local-authority-district/22UN,Life Opportunities,8510 - Dovercourt Swimming Pool & All Weather Facilities,4000 - Furniture,06/01/2015,1062224-1,95.7,2101624 - Bunzl,DOVERCOURT POOL-HOOVER
Tendring DC,http://statistics.data.gov.uk/id/local-authority-district/22UN,Life Opportunities,8510 - Dovercourt Swimming Pool & All Weather Facilities,2700 - Cleaning Materials,06/01/2015,1062225-1,102.34,2101624 - Bunzl,DOVERCOURT POOL-CLEANING
Tendring DC,http://statistics.data.gov.uk/id/local-authority-district/22UN,Life Opportunities,8520 - Frinton & Walton Swimming Pool,2700 - Cleaning Materials,06/01/2015,1062236-1,190.23,2101624 - Bunzl,FWSP-BUNZL
Tendring DC,http://statistics.data.gov.uk/id/local-authority-district/22UN,Life Opportunities,8150 - Office Cleaning,4080 - Materials & Consumables,06/01/2015,1062243-1,98,2101624 - Bunzl,CLEANING PRODUCTS
Tendring DC,http://statistics.data.gov.uk/id/local-authority-district/22UN,Life Opportunities,8150 - Office Cleaning,4080 - Materials & Consumables,06/01/2015,1062244-1,791.1,2101624 - Bunzl,CLEANING PRODUCTS
Tendring DC,http://statistics.data.gov.uk/id/local-authority-district/22UN,Life Opportunities,5820 - Harwich Sports Centre,2700 - Cleaning Materials,06/01/2015,1062412-1,31.54,2101624 - Bunzl,CLEANING MATERIALS
Tendring DC,http://statistics.data.gov.uk/id/local-authority-district/22UN,Life Opportunities,8510 - Dovercourt Swimming Pool & All Weather Facilities,2700 - Cleaning Materials,13/01/2015,1062491-1,29.8,2101624 - Bunzl,DBL
Tendring DC,http://statistics.data.gov.uk/id/local-authority-district/22UN,Life Opportunities,8510 - Dovercourt Swimming Pool & All Weather Facilities,2700 - Cleaning Materials,13/01/2015,1062494-1,187.6,2101624 - Bunzl,
Tendring DC,http://statistics.data.gov.uk/id/local-authority-district/22UN,Life Opportunities,8520 - Frinton & Walton Swimming Pool,2700 - Cleaning Materials,27/01/2015,1062700-1,81.32,2101624 - Bunzl,FWSP-BUNZL
Tendring DC,http://statistics.data.gov.uk/id/local-authority-district/22UN,Life Opportunities,5800 - Brightlingsea Sports Centre,2700 - Cleaning Materials,27/01/2015,1062701-1,103.33,2101624 - Bunzl,BUNZL-CLEANING SUPPLIES
Tendring DC,http://statistics.data.gov.uk/id/local-authority-district/22UN,Life Opportunities,8510 - Dovercourt Swimming Pool & All Weather Facilities,2700 - Cleaning Materials,27/01/2015,1062726-1,120.28,2101624 - Bunzl,DOVERCOURT BAY-CLEANING
Tendring DC,http://statistics.data.gov.uk/id/local-authority-district/22UN,Life Opportunities,8150 - Office Cleaning,4080 - Materials & Consumables,27/01/2015,1062739-1,602.04,2101624 - Bunzl,CLEANING EQUIPMENT TH
Tendring DC,http://statistics.data.gov.uk/id/local-authority-district/22UN,Life Opportunities,6160 - Princes Theatre,4040 - Equipment & Tools,20/01/2015,7017015-1,51.19,2101624 - Bunzl,"TOWEL, GLOVES, BLACK SACKS"
Tendring DC,http://statistics.data.gov.uk/id/local-authority-district/22UN,Life Opportunities,8150 - Office Cleaning,4080 - Materials & Consumables,27/01/2015,7017051-1,220.14,2101624 - Bunzl,CLEANING - WEELEY
Tendring DC,http://statistics.data.gov.uk/id/local-authority-district/22UN,Life Opportunities,8540 - Leisure Centre Clacton,2700 - Cleaning Materials,27/01/2015,7017070-1,48,2101624 - Bunzl,CLEANING SUPPLIES
Tendring DC,http://statistics.data.gov.uk/id/local-authority-district/22UN,Life Opportunities,8540 - Leisure Centre Clacton,2700 - Cleaning Materials,27/01/2015,7017071-1,21.04,2101624 - Bunzl,CLEANING SUPPLIES
Tendring DC,http://statistics.data.gov.uk/id/local-authority-district/22UN,Life Opportunities,8540 - Leisure Centre Clacton,2700 - Cleaning Materials,27/01/2015,7017072-1,189.67,2101624 - Bunzl,CLEANING SUPPLIES
Tendring DC,http://statistics.data.gov.uk/id/local-authority-district/22UN,Life Opportunities,8540 - Leisure Centre Clacton,2700 - Cleaning Materials,27/01/2015,7017073-1,12.96,2101624 - Bunzl,CLEANING SUPPLIES
Tendring DC,http://statistics.data.gov.uk/id/local-authority-district/22UN,Life Opportunities,8540 - Leisure Centre Clacton,2700 - Cleaning Materials,27/01/2015,7017074-1,58.62,2101624 - Bunzl,CLEANING SUPPLIES
Tendring DC,http://statistics.data.gov.uk/id/local-authority-district/22UN,Life Opportunities,8540 - Leisure Centre Clacton,2700 - Cleaning Materials,27/01/2015,7017075-1,158.25,2101624 - Bunzl,CLEANING SUPPLIES
Tendring DC,http://statistics.data.gov.uk/id/local-authority-district/22UN,Life Opportunities,8540 - Leisure Centre Clacton,2700 - Cleaning Materials,27/01/2015,7017076-1,11.44,2101624 - Bunzl,CLEANING SUPPLIES
Tendring DC,http://statistics.data.gov.uk/id/local-authority-district/22UN,Life Opportunities,H920 - Disabled Facilities Grants,C400 - Grant payments,13/01/2015,7016833-1,4200,REDACTED PERSONAL DATA,REDACTED PERSONAL DATA
Tendring DC,http://statistics.data.gov.uk/id/local-authority-district/22UN,Life Opportunities,1650 - Building Services Service Unit,4400 - Maintenance Under Service Agreements,20/01/2015,1062615-1,50.11,2100291 - Canon (UK) Ltd,SERVICE FEB 15
Tendring DC,http://statistics.data.gov.uk/id/local-authority-district/22UN,Life Opportunities,1650 - Building Services Service Unit,4400 - Maintenance Under Service Agreements,20/01/2015,7016931-1,0.33,2100291 - Canon (UK) Ltd,COPIES DEC 14
Tendring DC,http://statistics.data.gov.uk/id/local-authority-district/22UN,Life Opportunities,1650 - Building Services Service Unit,4400 - Maintenance Under Service Agreements,02/01/2015,7016930-1,50.11,2113226 - Canon UK Ltd,SERVICE FEB 15
Tendring DC,http://statistics.data.gov.uk/id/local-authority-district/22UN,Life Opportunities,H920 - Disabled Facilities Grants,C400 - Grant payments,13/01/2015,7016837-1,746,REDACTED PERSONAL DATA,REDACTED PERSONAL DATA
Tendring DC,http://statistics.data.gov.uk/id/local-authority-district/22UN,Life Opportunities,1650 - Building Services Service Unit,4616 - Hired Services - Engineers and Architects Fees,13/01/2015,7016758-1,1050,2104200 - Castons,100% OF CONTRACT FEE
Tendring DC,http://statistics.data.gov.uk/id/local-authority-district/22UN,Life Opportunities,5240 - HRA - Managing Tenancies,5242 - Tenant Relations,06/01/2015,1062417-1,104,2100243 - Caterway,BUFFET X 26 @ 4 PER HEAD
Tendring DC,http://statistics.data.gov.uk/id/local-authority-district/22UN,Life Opportunities,1242 - Corporate Director (Life Opportunities),1710 - Training - Central Department Budget,27/01/2015,7017049-1,257,REDACTED PERSONAL DATA,REDACTED PERSONAL DATA
Tendring DC,http://statistics.data.gov.uk/id/local-authority-district/22UN,Life Opportunities,5480 - HRA - Repair & Maintenance,4044 - Building & Safety Equipment,06/01/2015,1062241-1,265,2100205 - Chelmsford Safety Supplies Ltd,EMBROIDERY JACKETS TDC LOGO
Tendring DC,http://statistics.data.gov.uk/id/local-authority-district/22UN,Life Opportunities,6160 - Princes Theatre,4622 - Hired Services - Artistes and Production Companies,06/01/2015,1062201-1,2217.46,2114579 - Chorus Aceni,CHORUS ACENI
Tendring DC,http://statistics.data.gov.uk/id/local-authority-district/22UN,Life Opportunities,5480 - HRA - Repair & Maintenance,2083 - CCTV servicing,20/01/2015,7016950-1,515,2113346 - Chroma Vision Ltd,"CCTV MAINTENANCE CARE HOMES, JAN - MAR 15"
Tendring DC,http://statistics.data.gov.uk/id/local-authority-district/22UN,Life Opportunities,7000 - CCTV,4400 - Maintenance Under Service Agreements,20/01/2015,7017016-1,3145.5,2113346 - Chroma Vision Ltd,CCTV MAINTENANCE JAN - MAR 15
Tendring DC,http://statistics.data.gov.uk/id/local-authority-district/22UN,Life Opportunities,5360 - HRA - Sheltered Units,1700 - Training - Courses,20/01/2015,7017012-1,800,2111142 - CL Training & Consultancy,PROFESSIONAL BOUNDARIES 11.3.15
Tendring DC,http://statistics.data.gov.uk/id/local-authority-district/22UN,Life Opportunities,5960 - Recreation Grounds,9286 - Leisure Centre Facilities - General Hire & Bookings,06/01/2015,1062359-1,45,2111591 - Clacton Sports Club,VISTA CHANGING ROOMS
Tendring DC,http://statistics.data.gov.uk/id/local-authority-district/22UN,Life Opportunities,1880 - Office Accommodation Expenses,4080 - Materials & Consumables,20/01/2015,7016953-1,71.82,2100258 - Clacton Tile Centre Ltd,TOILET SEATS
Tendring DC,http://statistics.data.gov.uk/id/local-authority-district/22UN,Life Opportunities,"1580 - Benefits, Revenues and Customer Contact SU",5189 - External Debt Recovery Commission,06/01/2015,1062195-1,153.88,2100381 - Collect Services Ltd,15 % COMM ON 1025.87 RECOVERED
Tendring DC,http://statistics.data.gov.uk/id/local-authority-district/22UN,Life Opportunities,"1580 - Benefits, Revenues and Customer Contact SU",4462 - Bailiffs and Tracing Agent Fees re debt recovery,06/01/2015,1062210-1,359.41,2100381 - Collect Services Ltd,VAT ON FEES COLLECTED CT 3271.49
Tendring DC,http://statistics.data.gov.uk/id/local-authority-district/22UN,Life Opportunities,"1580 - Benefits, Revenues and Customer Contact SU",4462 - Bailiffs and Tracing Agent Fees re debt recovery,06/01/2015,1062210-2,-359.41,2100381 - Collect Services Ltd,VAT ON FEES COLLECTED CT 3271.49
Tendring DC,http://statistics.data.gov.uk/id/local-authority-district/22UN,Life Opportunities,"1580 - Benefits, Revenues and Customer Contact SU",4462 - Bailiffs and Tracing Agent Fees re debt recovery,06/01/2015,1062211-1,-49.3,2100381 - Collect Services Ltd,VAT ON FEES COLLECTED NNDR 80.70
Tendring DC,http://statistics.data.gov.uk/id/local-authority-district/22UN,Life Opportunities,"1580 - Benefits, Revenues and Customer Contact SU",4462 - Bailiffs and Tracing Agent Fees re debt recovery,06/01/2015,1062211-2,49.3,2100381 - Collect Services Ltd,VAT ON FEES COLLECTED NNDR 80.70
Tendring DC,http://statistics.data.gov.uk/id/local-authority-district/22UN,Life Opportunities,"1580 - Benefits, Revenues and Customer Contact SU",4462 - Bailiffs and Tracing Agent Fees re debt recovery,06/01/2015,1062212-1,6041.16,2100381 - Collect Services Ltd,VAT ON FEES COLLECTED CT 12159.44
Tendring DC,http://statistics.data.gov.uk/id/local-authority-district/22UN,Life Opportunities,"1580 - Benefits, Revenues and Customer Contact SU",4462 - Bailiffs and Tracing Agent Fees re debt recovery,06/01/2015,1062212-2,-6041.16,2100381 - Collect Services Ltd,VAT ON FEES COLLECTED CT 12159.44
Tendring DC,http://statistics.data.gov.uk/id/local-authority-district/22UN,Life Opportunities,"1580 - Benefits, Revenues and Customer Contact SU",4462 - Bailiffs and Tracing Agent Fees re debt recovery,06/01/2015,1062376-1,465.56,2100381 - Collect Services Ltd,VAT ON FEES NNDR 3609.44
Tendring DC,http://statistics.data.gov.uk/id/local-authority-district/22UN,Life Opportunities,"1580 - Benefits, Revenues and Customer Contact SU",4462 - Bailiffs and Tracing Agent Fees re debt recovery,06/01/2015,1062376-2,-465.56,2100381 - Collect Services Ltd,VAT ON FEES NNDR 3609.44
Tendring DC,http://statistics.data.gov.uk/id/local-authority-district/22UN,Life Opportunities,"1580 - Benefits, Revenues and Customer Contact SU",4462 - Bailiffs and Tracing Agent Fees re debt recovery,06/01/2015,1062377-1,-4457.68,2100381 - Collect Services Ltd,VAT ON FEES COLLECTED CT 12584.81
Tendring DC,http://statistics.data.gov.uk/id/local-authority-district/22UN,Life Opportunities,"1580 - Benefits, Revenues and Customer Contact SU",4462 - Bailiffs and Tracing Agent Fees re debt recovery,06/01/2015,1062377-2,4457.68,2100381 - Collect Services Ltd,VAT ON FEES COLLECTED CT 12584.81
Tendring DC,http://statistics.data.gov.uk/id/local-authority-district/22UN,Life Opportunities,"1580 - Benefits, Revenues and Customer Contact SU",4462 - Bailiffs and Tracing Agent Fees re debt recovery,06/01/2015,1062378-1,450.1,2100381 - Collect Services Ltd,VAT ON FEES COLLECTED CT 2981.75
Tendring DC,http://statistics.data.gov.uk/id/local-authority-district/22UN,Life Opportunities,"1580 - Benefits, Revenues and Customer Contact SU",4462 - Bailiffs and Tracing Agent Fees re debt recovery,06/01/2015,1062378-2,-450.1,2100381 - Collect Services Ltd,VAT ON FEES COLLECTED CT 2981.75
Tendring DC,http://statistics.data.gov.uk/id/local-authority-district/22UN,Life Opportunities,"1580 - Benefits, Revenues and Customer Contact SU",5189 - External Debt Recovery Commission,13/01/2015,1062545-1,102.45,2100381 - Collect Services Ltd,15% COMM ON 683.03 RECOVERED
Tendring DC,http://statistics.data.gov.uk/id/local-authority-district/22UN,Life Opportunities,"1580 - Benefits, Revenues and Customer Contact SU",4462 - Bailiffs and Tracing Agent Fees re debt recovery,13/01/2015,1062546-1,6510.14,2100381 - Collect Services Ltd,VAT ON FEES COLLECTED CT 13731.63
Tendring DC,http://statistics.data.gov.uk/id/local-authority-district/22UN,Life Opportunities,"1580 - Benefits, Revenues and Customer Contact SU",4462 - Bailiffs and Tracing Agent Fees re debt recovery,13/01/2015,1062546-2,-6510.14,2100381 - Collect Services Ltd,VAT ON FEES COLLECTED CT 13731.63
Tendring DC,http://statistics.data.gov.uk/id/local-authority-district/22UN,Life Opportunities,"1580 - Benefits, Revenues and Customer Contact SU",4462 - Bailiffs and Tracing Agent Fees re debt recovery,13/01/2015,1062547-1,504.48,2100381 - Collect Services Ltd,VAT ON FEES COLLECTED CT 5043.90
Tendring DC,http://statistics.data.gov.uk/id/local-authority-district/22UN,Life Opportunities,"1580 - Benefits, Revenues and Customer Contact SU",4462 - Bailiffs and Tracing Agent Fees re debt recovery,13/01/2015,1062547-2,-504.48,2100381 - Collect Services Ltd,VAT ON FEES COLLECTED CT 5043.90
Tendring DC,http://statistics.data.gov.uk/id/local-authority-district/22UN,Life Opportunities,"1580 - Benefits, Revenues and Customer Contact SU",5189 - External Debt Recovery Commission,13/01/2015,2117482-1,15.97,2100381 - Collect Services Ltd,15% Commission on 106.48
Tendring DC,http://statistics.data.gov.uk/id/local-authority-district/22UN,Life Opportunities,"1580 - Benefits, Revenues and Customer Contact SU",5189 - External Debt Recovery Commission,27/01/2015,7017044-1,54.87,2100381 - Collect Services Ltd,15% COMMISSION ON 365.78 RECOVERED
Tendring DC,http://statistics.data.gov.uk/id/local-authority-district/22UN,Life Opportunities,"1580 - Benefits, Revenues and Customer Contact SU",4462 - Bailiffs and Tracing Agent Fees re debt recovery,27/01/2015,7017045-1,257.24,2100381 - Collect Services Ltd,VAT ON FEES COLLECTED CT ON 2257.17
Tendring DC,http://statistics.data.gov.uk/id/local-authority-district/22UN,Life Opportunities,"1580 - Benefits, Revenues and Customer Contact SU",4462 - Bailiffs and Tracing Agent Fees re debt recovery,27/01/2015,7017045-2,-257.24,2100381 - Collect Services Ltd,VAT ON FEES COLLECTED CT ON 2257.17
Tendring DC,http://statistics.data.gov.uk/id/local-authority-district/22UN,Life Opportunities,"1580 - Benefits, Revenues and Customer Contact SU",4462 - Bailiffs and Tracing Agent Fees re debt recovery,27/01/2015,7017046-1,4548.44,2100381 - Collect Services Ltd,VAT ON FEES COLLECTED CT ON 10546.09
Tendring DC,http://statistics.data.gov.uk/id/local-authority-district/22UN,Life Opportunities,"1580 - Benefits, Revenues and Customer Contact SU",4462 - Bailiffs and Tracing Agent Fees re debt recovery,27/01/2015,7017046-2,-4548.44,2100381 - Collect Services Ltd,VAT ON FEES COLLECTED CT ON 10546.09
Tendring DC,http://statistics.data.gov.uk/id/local-authority-district/22UN,Life Opportunities,"1580 - Benefits, Revenues and Customer Contact SU",4462 - Bailiffs and Tracing Agent Fees re debt recovery,27/01/2015,7017047-1,22.97,2100381 - Collect Services Ltd,VAT ON FEES COLLECTED NNDR ON 277.03
Tendring DC,http://statistics.data.gov.uk/id/local-authority-district/22UN,Life Opportunities,"1580 - Benefits, Revenues and Customer Contact SU",4462 - Bailiffs and Tracing Agent Fees re debt recovery,27/01/2015,7017047-2,-22.97,2100381 - Collect Services Ltd,VAT ON FEES COLLECTED NNDR ON 277.03
Tendring DC,http://statistics.data.gov.uk/id/local-authority-district/22UN,Life Opportunities,9900 - General Fund Balance Sheet,B863 - Bailiff Payments Holding Account,06/01/2015,1062423-1,3364.5,REDACTED COMMERCIAL CONFIDENTIALITY,REDACTED COMMERCIAL CONFIDENTIALITY
Tendring DC,http://statistics.data.gov.uk/id/local-authority-district/22UN,Life Opportunities,9900 - General Fund Balance Sheet,B863 - Bailiff Payments Holding Account,13/01/2015,1062529-1,2959,REDACTED COMMERCIAL CONFIDENTIALITY,REDACTED COMMERCIAL CONFIDENTIALITY
Tendring DC,http://statistics.data.gov.uk/id/local-authority-district/22UN,Life Opportunities,9900 - General Fund Balance Sheet,B863 - Bailiff Payments Holding Account,20/01/2015,1062628-1,2700.24,REDACTED COMMERCIAL CONFIDENTIALITY,REDACTED COMMERCIAL CONFIDENTIALITY
Tendring DC,http://statistics.data.gov.uk/id/local-authority-district/22UN,Life Opportunities,9900 - General Fund Balance Sheet,B863 - Bailiff Payments Holding Account,27/01/2015,2117537-1,2176,2112596 - Collect Services Ltd Clients Account,
Tendring DC,http://statistics.data.gov.uk/id/local-authority-district/22UN,Life Opportunities,5140 - Homelessness,4689 - Special Homelessness Projects Expenses,13/01/2015,1062484-1,1943.77,REDACTED PERSONAL DATA,REDACTED PERSONAL DATA
Tendring DC,http://statistics.data.gov.uk/id/local-authority-district/22UN,Life Opportunities,5140 - Homelessness,4689 - Special Homelessness Projects Expenses,13/01/2015,1062485-1,1300.2,REDACTED PERSONAL DATA,REDACTED PERSONAL DATA
Tendring DC,http://statistics.data.gov.uk/id/local-authority-district/22UN,Life Opportunities,8520 - Frinton & Walton Swimming Pool,2100 - Building Repairs,06/01/2015,1062253-1,52.5,2100314 - Cooper & Brome (Plumbing & Heating) Ltd,FWSP-COOPER & BROME
Tendring DC,http://statistics.data.gov.uk/id/local-authority-district/22UN,Life Opportunities,1880 - Office Accommodation Expenses,2100 - Building Repairs,13/01/2015,1062444-1,66,2100314 - Cooper & Brome (Plumbing & Heating) Ltd,BOILER SERVICE BARNES HOUSE
Tendring DC,http://statistics.data.gov.uk/id/local-authority-district/22UN,Life Opportunities,8510 - Dovercourt Swimming Pool & All Weather Facilities,2100 - Building Repairs,27/01/2015,1062645-1,949.8,2100314 - Cooper & Brome (Plumbing & Heating) Ltd,DOVERCOURT BAY-REPAIRS
Tendring DC,http://statistics.data.gov.uk/id/local-authority-district/22UN,Life Opportunities,H920 - Disabled Facilities Grants,C400 - Grant payments,13/01/2015,7016832-1,4827.97,REDACTED PERSONAL DATA,REDACTED PERSONAL DATA
Tendring DC,http://statistics.data.gov.uk/id/local-authority-district/22UN,Life Opportunities,H920 - Disabled Facilities Grants,C400 - Grant payments,27/01/2015,7017129-1,5315.14,REDACTED PERSONAL DATA,REDACTED PERSONAL DATA
Tendring DC,http://statistics.data.gov.uk/id/local-authority-district/22UN,Life Opportunities,8510 - Dovercourt Swimming Pool & All Weather Facilities,2308 - Energy Costs - Gas (Including LPG),06/01/2015,1062343-1,2866.07,2104620 - Corona Energy Retail 4 Limited,CORONA DOVERCOURT
Tendring DC,http://statistics.data.gov.uk/id/local-authority-district/22UN,Life Opportunities,5340 - HRA - Communal Central Heating,2308 - Energy Costs - Gas (Including LPG),27/01/2015,1062697-1,8731.77,2104620 - Corona Energy Retail 4 Limited,SHU DEC 14
Tendring DC,http://statistics.data.gov.uk/id/local-authority-district/22UN,Life Opportunities,5340 - HRA - Communal Central Heating,2308 - Energy Costs - Gas (Including LPG),27/01/2015,1062698-1,6896.63,2104620 - Corona Energy Retail 4 Limited,SHU NOV 14
Tendring DC,http://statistics.data.gov.uk/id/local-authority-district/22UN,Life Opportunities,1860 - Depots General,2308 - Energy Costs - Gas (Including LPG),27/01/2015,1062699-1,314.99,2104620 - Corona Energy Retail 4 Limited,CORONA GAS DEC 14
Tendring DC,http://statistics.data.gov.uk/id/local-authority-district/22UN,Life Opportunities,1880 - Office Accommodation Expenses,2308 - Energy Costs - Gas (Including LPG),27/01/2015,1062699-2,62.83,2104620 - Corona Energy Retail 4 Limited,CORONA GAS DEC 14
Tendring DC,http://statistics.data.gov.uk/id/local-authority-district/22UN,Life Opportunities,1880 - Office Accommodation Expenses,2308 - Energy Costs - Gas (Including LPG),27/01/2015,1062699-3,182.89,2104620 - Corona Energy Retail 4 Limited,CORONA GAS DEC 14
Tendring DC,http://statistics.data.gov.uk/id/local-authority-district/22UN,Life Opportunities,1880 - Office Accommodation Expenses,2308 - Energy Costs - Gas (Including LPG),27/01/2015,1062699-4,56.9,2104620 - Corona Energy Retail 4 Limited,CORONA GAS DEC 14
Tendring DC,http://statistics.data.gov.uk/id/local-authority-district/22UN,Life Opportunities,1880 - Office Accommodation Expenses,2308 - Energy Costs - Gas (Including LPG),27/01/2015,1062699-5,1357.57,2104620 - Corona Energy Retail 4 Limited,CORONA GAS DEC 14
Tendring DC,http://statistics.data.gov.uk/id/local-authority-district/22UN,Life Opportunities,8510 - Dovercourt Swimming Pool & All Weather Facilities,2308 - Energy Costs - Gas (Including LPG),27/01/2015,1062702-1,4070.1,2104620 - Corona Energy Retail 4 Limited,GAS-DOVERCOURT SP
Tendring DC,http://statistics.data.gov.uk/id/local-authority-district/22UN,Life Opportunities,5140 - Homelessness,4683 - Other Homelessness Expenses,13/01/2015,1062448-1,600,REDACTED PERSONAL DATA,REDACTED PERSONAL DATA
Tendring DC,http://statistics.data.gov.uk/id/local-authority-district/22UN,Life Opportunities,5800 - Brightlingsea Sports Centre,2100 - Building Repairs,06/01/2015,1062334-1,126,2100183 - CR Services,CR SERVICES-SOCKET VENDING MACHINE
Tendring DC,http://statistics.data.gov.uk/id/local-authority-district/22UN,Life Opportunities,8510 - Dovercourt Swimming Pool & All Weather Facilities,2100 - Building Repairs,27/01/2015,1062730-1,99,2100183 - CR Services,DOVERCOURT BAY-REPAIRS
Tendring DC,http://statistics.data.gov.uk/id/local-authority-district/22UN,Life Opportunities,5820 - Harwich Sports Centre,2100 - Building Repairs,20/01/2015,7017023-1,590,2100183 - CR Services,FLOODLIGHT REPAIRS
Tendring DC,http://statistics.data.gov.uk/id/local-authority-district/22UN,Life Opportunities,5360 - HRA - Sheltered Units,4710 - Telephones - Charges,06/01/2015,1062203-1,63.99,2106704 - Daisy Communications Ltd,DAISY DEC 14
Tendring DC,http://statistics.data.gov.uk/id/local-authority-district/22UN,Life Opportunities,5360 - HRA - Sheltered Units,4710 - Telephones - Charges,06/01/2015,1062203-2,105.99,2106704 - Daisy Communications Ltd,DAISY DEC 14
Tendring DC,http://statistics.data.gov.uk/id/local-authority-district/22UN,Life Opportunities,5360 - HRA - Sheltered Units,4710 - Telephones - Charges,06/01/2015,1062203-3,105.99,2106704 - Daisy Communications Ltd,DAISY DEC 14
Tendring DC,http://statistics.data.gov.uk/id/local-authority-district/22UN,Life Opportunities,5360 - HRA - Sheltered Units,4710 - Telephones - Charges,27/01/2015,1062714-1,132.99,2106704 - Daisy Communications Ltd,DAISY JAN 15
Tendring DC,http://statistics.data.gov.uk/id/local-authority-district/22UN,Life Opportunities,5360 - HRA - Sheltered Units,4710 - Telephones - Charges,27/01/2015,1062714-2,132.99,2106704 - Daisy Communications Ltd,DAISY JAN 15
Tendring DC,http://statistics.data.gov.uk/id/local-authority-district/22UN,Life Opportunities,5360 - HRA - Sheltered Units,4710 - Telephones - Charges,27/01/2015,1062714-3,131.49,2106704 - Daisy Communications Ltd,DAISY JAN 15
Tendring DC,http://statistics.data.gov.uk/id/local-authority-district/22UN,Life Opportunities,6160 - Princes Theatre,4220 - Laundry,13/01/2015,7016770-1,12.78,2100397 - Danes of Colchester Ltd,DRY CLEANING DEC 14
Tendring DC,http://statistics.data.gov.uk/id/local-authority-district/22UN,Life Opportunities,6160 - Princes Theatre,4220 - Laundry,13/01/2015,7016771-1,31.24,2100397 - Danes of Colchester Ltd,DRY CLEANING DEC 14
Tendring DC,http://statistics.data.gov.uk/id/local-authority-district/22UN,Life Opportunities,6160 - Princes Theatre,4220 - Laundry,13/01/2015,7016772-1,18.46,2100397 - Danes of Colchester Ltd,DRY CLEANING FOR THEATRE NOV14
Tendring DC,http://statistics.data.gov.uk/id/local-authority-district/22UN,Life Opportunities,H920 - Disabled Facilities Grants,C400 - Grant payments,13/01/2015,7016834-1,6900,REDACTED PERSONAL DATA,REDACTED PERSONAL DATA
Tendring DC,http://statistics.data.gov.uk/id/local-authority-district/22UN,Life Opportunities,5440 - HRA - Communal Electricity,2304 - Energy Costs - Electricity,06/01/2015,1062308-1,64.38,REDACTED PERSONAL DATA,REDACTED PERSONAL DATA
Tendring DC,http://statistics.data.gov.uk/id/local-authority-district/22UN,Life Opportunities,5360 - HRA - Sheltered Units,2304 - Energy Costs - Electricity,27/01/2015,1062715-1,3.46,REDACTED PERSONAL DATA,REDACTED PERSONAL DATA
Tendring DC,http://statistics.data.gov.uk/id/local-authority-district/22UN,Life Opportunities,5360 - HRA - Sheltered Units,2304 - Energy Costs - Electricity,27/01/2015,1062716-1,4.19,REDACTED PERSONAL DATA,REDACTED PERSONAL DATA
Tendring DC,http://statistics.data.gov.uk/id/local-authority-district/22UN,Life Opportunities,5360 - HRA - Sheltered Units,2304 - Energy Costs - Electricity,27/01/2015,1062717-1,0.25,REDACTED PERSONAL DATA,REDACTED PERSONAL DATA
Tendring DC,http://statistics.data.gov.uk/id/local-authority-district/22UN,Life Opportunities,5360 - HRA - Sheltered Units,2304 - Energy Costs - Electricity,27/01/2015,1062718-1,8.64,REDACTED PERSONAL DATA,REDACTED PERSONAL DATA
Tendring DC,http://statistics.data.gov.uk/id/local-authority-district/22UN,Life Opportunities,5360 - HRA - Sheltered Units,2304 - Energy Costs - Electricity,27/01/2015,1062719-1,8.64,REDACTED PERSONAL DATA,REDACTED PERSONAL DATA
Tendring DC,http://statistics.data.gov.uk/id/local-authority-district/22UN,Life Opportunities,5440 - HRA - Communal Electricity,2304 - Energy Costs - Electricity,20/01/2015,7016936-1,10.16,2107644 - E.ON,TV AMPS
Tendring DC,http://statistics.data.gov.uk/id/local-authority-district/22UN,Life Opportunities,6740 - Careline,2304 - Energy Costs - Electricity,27/01/2015,7017081-1,35.37,2107644 - E.ON,CARELINE 0113 97664540
Tendring DC,http://statistics.data.gov.uk/id/local-authority-district/22UN,Life Opportunities,8510 - Dovercourt Swimming Pool & All Weather Facilities,2304 - Energy Costs - Electricity,20/01/2015,7016881-1,3302.39,2105146 - EDF Energy 1 Ltd,ELECTRIC DOVERCOURT POOL
Tendring DC,http://statistics.data.gov.uk/id/local-authority-district/22UN,Life Opportunities,1880 - Office Accommodation Expenses,2304 - Energy Costs - Electricity,20/01/2015,7016935-1,5379.08,2105146 - EDF Energy 1 Ltd,ELECTRICITY TOWN HALL DEC 14
Tendring DC,http://statistics.data.gov.uk/id/local-authority-district/22UN,Life Opportunities,6160 - Princes Theatre,2304 - Energy Costs - Electricity,20/01/2015,7016935-2,597.67,2105146 - EDF Energy 1 Ltd,ELECTRICITY TOWN HALL DEC 14
Tendring DC,http://statistics.data.gov.uk/id/local-authority-district/22UN,Life Opportunities,8540 - Leisure Centre Clacton,2304 - Energy Costs - Electricity,20/01/2015,7016995-1,6973.59,2105146 - EDF Energy 1 Ltd,DECEMBER
Tendring DC,http://statistics.data.gov.uk/id/local-authority-district/22UN,Life Opportunities,5860 - Manningtree Sports Centre,4597 - Hired Services - Payments to Contractors,06/01/2015,1062408-1,200,2109445 - Elanar Technical Services Ltd,SERVICE 3 X GAS BOILERS
Tendring DC,http://statistics.data.gov.uk/id/local-authority-district/22UN,Life Opportunities,H920 - Disabled Facilities Grants,C400 - Grant payments,20/01/2015,7016978-1,500,REDACTED PERSONAL DATA,REDACTED PERSONAL DATA
Tendring DC,http://statistics.data.gov.uk/id/local-authority-district/22UN,Life Opportunities,5140 - Homelessness,4680 - Bed & Breakfast Accommodation,27/01/2015,7017050-1,1435,REDACTED PERSONAL DATA,REDACTED PERSONAL DATA
Tendring DC,http://statistics.data.gov.uk/id/local-authority-district/22UN,Life Opportunities,H920 - Disabled Facilities Grants,C400 - Grant payments,27/01/2015,7017124-1,1643.52,REDACTED PERSONAL DATA,REDACTED PERSONAL DATA
Tendring DC,http://statistics.data.gov.uk/id/local-authority-district/22UN,Life Opportunities,H920 - Disabled Facilities Grants,C400 - Grant payments,27/01/2015,7017125-1,1695,REDACTED PERSONAL DATA,REDACTED PERSONAL DATA
Tendring DC,http://statistics.data.gov.uk/id/local-authority-district/22UN,Life Opportunities,5240 - HRA - Managing Tenancies,5242 - Tenant Relations,20/01/2015,1062622-1,160,2114644 - Express Delivery Services,COURIER SERVICE
Tendring DC,http://statistics.data.gov.uk/id/local-authority-district/22UN,Life Opportunities,5240 - HRA - Managing Tenancies,5242 - Tenant Relations,09/01/2015,7017013-1,160,2112393 - Express Newspapers,COURIER SERVICE
Tendring DC,http://statistics.data.gov.uk/id/local-authority-district/22UN,Life Opportunities,5480 - HRA - Repair & Maintenance,2057 - Fire Alarms Servicing,06/01/2015,1062189-1,135,2108583 - Firesite,1-31 KATE DANIELS HOUSE
Tendring DC,http://statistics.data.gov.uk/id/local-authority-district/22UN,Life Opportunities,5480 - HRA - Repair & Maintenance,2058 - Fire Alarms Repairs,06/01/2015,1062189-2,30,2108583 - Firesite,1-31 KATE DANIELS HOUSE
Tendring DC,http://statistics.data.gov.uk/id/local-authority-district/22UN,Life Opportunities,5480 - HRA - Repair & Maintenance,2058 - Fire Alarms Repairs,27/01/2015,1062736-1,160,REDACTED PERSONAL DATA,REDACTED PERSONAL DATA
Tendring DC,http://statistics.data.gov.uk/id/local-authority-district/22UN,Life Opportunities,5480 - HRA - Repair & Maintenance,2058 - Fire Alarms Repairs,27/01/2015,1062737-1,50,2108583 - Firesite,1-35 GREENFIELDS
Tendring DC,http://statistics.data.gov.uk/id/local-authority-district/22UN,Life Opportunities,7600 - Tourist Information Centres,9356 - Commission Sales,13/01/2015,1062461-1,2747,2103743 - First Essex Buses Ltd,FIRST ESSEX BUSES DEC 14
Tendring DC,http://statistics.data.gov.uk/id/local-authority-district/22UN,Life Opportunities,7600 - Tourist Information Centres,9356 - Commission Sales,13/01/2015,1062461-2,-274.7,2103743 - First Essex Buses Ltd,FIRST ESSEX BUSES DEC 14
Tendring DC,http://statistics.data.gov.uk/id/local-authority-district/22UN,Life Opportunities,8540 - Leisure Centre Clacton,9283 - Memberships - DD,06/01/2015,1062264-1,12.5,REDACTED PERSONAL DATA,REDACTED PERSONAL DATA
Tendring DC,http://statistics.data.gov.uk/id/local-authority-district/22UN,Life Opportunities,5860 - Manningtree Sports Centre,4040 - Equipment & Tools,27/01/2015,1062703-1,119.5,2107351 - Frinton Training Services Ltd,DEFIB PADS ADULT X 1 CHILD X 1
Tendring DC,http://statistics.data.gov.uk/id/local-authority-district/22UN,Life Opportunities,H920 - Disabled Facilities Grants,C400 - Grant payments,13/01/2015,7016838-1,6412.84,REDACTED PERSONAL DATA,REDACTED PERSONAL DATA
Tendring DC,http://statistics.data.gov.uk/id/local-authority-district/22UN,Life Opportunities,H920 - Disabled Facilities Grants,C400 - Grant payments,13/01/2015,7016836-1,426.99,REDACTED PERSONAL DATA,REDACTED PERSONAL DATA
Tendring DC,http://statistics.data.gov.uk/id/local-authority-district/22UN,Life Opportunities,H920 - Disabled Facilities Grants,C400 - Grant payments,27/01/2015,7017123-1,6770.51,REDACTED PERSONAL DATA,REDACTED PERSONAL DATA
Tendring DC,http://statistics.data.gov.uk/id/local-authority-district/22UN,Life Opportunities,H920 - Disabled Facilities Grants,C400 - Grant payments,13/01/2015,7016827-1,2341.2,REDACTED PERSONAL DATA,REDACTED PERSONAL DATA
Tendring DC,http://statistics.data.gov.uk/id/local-authority-district/22UN,Life Opportunities,H920 - Disabled Facilities Grants,C400 - Grant payments,13/01/2015,7016828-1,1550,REDACTED PERSONAL DATA,REDACTED PERSONAL DATA
Tendring DC,http://statistics.data.gov.uk/id/local-authority-district/22UN,Life Opportunities,H920 - Disabled Facilities Grants,C400 - Grant payments,13/01/2015,7016829-1,5116.19,REDACTED PERSONAL DATA,REDACTED PERSONAL DATA
Tendring DC,http://statistics.data.gov.uk/id/local-authority-district/22UN,Life Opportunities,H920 - Disabled Facilities Grants,C400 - Grant payments,20/01/2015,7016979-1,510,REDACTED PERSONAL DATA,REDACTED PERSONAL DATA
Tendring DC,http://statistics.data.gov.uk/id/local-authority-district/22UN,Life Opportunities,5860 - Manningtree Sports Centre,4400 - Maintenance Under Service Agreements,06/01/2015,1062339-1,238,2100546 - GCS Alarms,ANNUAL MAINT FIRE ALARM
Tendring DC,http://statistics.data.gov.uk/id/local-authority-district/22UN,Life Opportunities,5860 - Manningtree Sports Centre,4400 - Maintenance Under Service Agreements,06/01/2015,1062340-1,205.5,2100546 - GCS Alarms,ANNUAL MAINT/MONITORING INT ALARM
Tendring DC,http://statistics.data.gov.uk/id/local-authority-district/22UN,Life Opportunities,5860 - Manningtree Sports Centre,4400 - Maintenance Under Service Agreements,06/01/2015,1062341-1,180,2100546 - GCS Alarms,ANNUAL MAINT CCTV
Tendring DC,http://statistics.data.gov.uk/id/local-authority-district/22UN,Life Opportunities,1880 - Office Accommodation Expenses,4632 - Security,06/01/2015,1062380-1,1650.25,2100546 - GCS Alarms,REPLACE BATTERIES AND DEVICES
Tendring DC,http://statistics.data.gov.uk/id/local-authority-district/22UN,Life Opportunities,5480 - HRA - Repair & Maintenance,2018 - Other Responsive Repairs,06/01/2015,1062363-1,83.2,REDACTED PERSONAL DATA,REDACTED PERSONAL DATA
Tendring DC,http://statistics.data.gov.uk/id/local-authority-district/22UN,Life Opportunities,5480 - HRA - Repair & Maintenance,2018 - Other Responsive Repairs,27/01/2015,1062735-1,150,REDACTED PERSONAL DATA,REDACTED PERSONAL DATA
Tendring DC,http://statistics.data.gov.uk/id/local-authority-district/22UN,Life Opportunities,5860 - Manningtree Sports Centre,4090 - Lease of Vending Machines,06/01/2015,1062421-1,260,2100586 - General Vending Services Ltd,ANNUAL LEASE LUCOZADE MACHINE
Tendring DC,http://statistics.data.gov.uk/id/local-authority-district/22UN,Life Opportunities,C149 - Dovercourt Swimming Pool - redevelopment,C200 - Main Contractor,06/01/2015,1062426-1,187706.53,2114081 - Gipping Construction Ltd,DOVERCOURT POOL UPGRADE
Tendring DC,http://statistics.data.gov.uk/id/local-authority-district/22UN,Life Opportunities,6160 - Princes Theatre,4105 - Bar/Catering Expenses,27/01/2015,1062693-1,258.44,2112641 - Greene King Brewing and Retailing Ltd,BEVERAGES FOR THEATRE
Tendring DC,http://statistics.data.gov.uk/id/local-authority-district/22UN,Life Opportunities,5480 - HRA - Repair & Maintenance,2017 - Mechanical Equipment /Extract Fans,06/01/2015,1062190-1,60,REDACTED PERSONAL DATA,REDACTED PERSONAL DATA
Tendring DC,http://statistics.data.gov.uk/id/local-authority-district/22UN,Life Opportunities,5480 - HRA - Repair & Maintenance,2018 - Other Responsive Repairs,27/01/2015,1062711-1,85,2106272 - Greenleaf Pest Control Services Ltd,RODENTS
Tendring DC,http://statistics.data.gov.uk/id/local-authority-district/22UN,Life Opportunities,1880 - Office Accommodation Expenses,2100 - Building Repairs,20/01/2015,7016893-1,180,2106272 - Greenleaf Pest Control Services Ltd,TREATMENT AGAINST BITING INSECTS PIER AVE
Tendring DC,http://statistics.data.gov.uk/id/local-authority-district/22UN,Life Opportunities,8540 - Leisure Centre Clacton,2100 - Building Repairs,06/01/2015,1062405-1,380.42,2114427 - Greenworks Controlled Environments Ltd,FILTERS AND BELTS MENERGA
Tendring DC,http://statistics.data.gov.uk/id/local-authority-district/22UN,Life Opportunities,5140 - Homelessness,4680 - Bed & Breakfast Accommodation,06/01/2015,1062272-1,350,REDACTED PERSONAL DATA,REDACTED PERSONAL DATA
Tendring DC,http://statistics.data.gov.uk/id/local-authority-district/22UN,Life Opportunities,5140 - Homelessness,4680 - Bed & Breakfast Accommodation,13/01/2015,1062469-1,350,REDACTED PERSONAL DATA,REDACTED PERSONAL DATA
Tendring DC,http://statistics.data.gov.uk/id/local-authority-district/22UN,Life Opportunities,5140 - Homelessness,4680 - Bed & Breakfast Accommodation,13/01/2015,7016768-1,500,REDACTED PERSONAL DATA,REDACTED PERSONAL DATA
Tendring DC,http://statistics.data.gov.uk/id/local-authority-district/22UN,Life Opportunities,5140 - Homelessness,4680 - Bed & Breakfast Accommodation,20/01/2015,7017011-1,1030,2113018 - Grosvenor House Hotel,"MILTON MCGEOGHAN, HAYWARD, & STRAIGHT"
Tendring DC,http://statistics.data.gov.uk/id/local-authority-district/22UN,Life Opportunities,"1580 - Benefits, Revenues and Customer Contact SU",4462 - Bailiffs and Tracing Agent Fees re debt recovery,06/01/2015,1062246-1,27.23,2113197 - Hambury Tilmond Ltd,VAT ON FEES COLLECTED CT RECOVERED 429.00
Tendring DC,http://statistics.data.gov.uk/id/local-authority-district/22UN,Life Opportunities,"1580 - Benefits, Revenues and Customer Contact SU",4462 - Bailiffs and Tracing Agent Fees re debt recovery,06/01/2015,1062246-2,-27.23,2113197 - Hambury Tilmond Ltd,VAT ON FEES COLLECTED CT RECOVERED 429.00
Tendring DC,http://statistics.data.gov.uk/id/local-authority-district/22UN,Life Opportunities,H860 - Disabled Adaptations,C200 - Main Contractor,06/01/2015,1062270-1,5289,REDACTED PERSONAL DATA,REDACTED PERSONAL DATA
Tendring DC,http://statistics.data.gov.uk/id/local-authority-district/22UN,Life Opportunities,H920 - Disabled Facilities Grants,C400 - Grant payments,13/01/2015,7016835-1,1825,REDACTED PERSONAL DATA,REDACTED PERSONAL DATA
Tendring DC,http://statistics.data.gov.uk/id/local-authority-district/22UN,Life Opportunities,H920 - Disabled Facilities Grants,C400 - Grant payments,27/01/2015,7017128-1,4805,REDACTED PERSONAL DATA,REDACTED PERSONAL DATA
Tendring DC,http://statistics.data.gov.uk/id/local-authority-district/22UN,Life Opportunities,5240 - HRA - Managing Tenancies,5242 - Tenant Relations,20/01/2015,7016889-1,44,2100604 - Harwich Taxis,TRANSPORT 16.12.14
Tendring DC,http://statistics.data.gov.uk/id/local-authority-district/22UN,Life Opportunities,5240 - HRA - Managing Tenancies,5242 - Tenant Relations,20/01/2015,7016890-1,145,2100604 - Harwich Taxis,TRANSPORT 10.12.14
Tendring DC,http://statistics.data.gov.uk/id/local-authority-district/22UN,Life Opportunities,"1580 - Benefits, Revenues and Customer Contact SU",4880 - Subscriptions Paid,27/01/2015,7017078-1,355,2108862 - Hbinfo Ltd,SUBSCRIPTION TO 31.3.16
Tendring DC,http://statistics.data.gov.uk/id/local-authority-district/22UN,Life Opportunities,5880 - Management Of Sport & Leisure Facilities,2100 - Building Repairs,20/01/2015,7017024-1,438,2112468 - Henry Ashe Projects Ltd,ADD FLORRING WORK
Tendring DC,http://statistics.data.gov.uk/id/local-authority-district/22UN,Life Opportunities,5880 - Management Of Sport & Leisure Facilities,2100 - Building Repairs,20/01/2015,7017025-1,907.4,2112468 - Henry Ashe Projects Ltd,FLOORING WORK
Tendring DC,http://statistics.data.gov.uk/id/local-authority-district/22UN,Life Opportunities,5820 - Harwich Sports Centre,2100 - Building Repairs,13/01/2015,1062504-1,65,2111080 - Homecraft Contracts Electrical Ltd,NEW LIGHT FITTING
Tendring DC,http://statistics.data.gov.uk/id/local-authority-district/22UN,Life Opportunities,5820 - Harwich Sports Centre,2100 - Building Repairs,06/01/2015,1062411-1,60,2101848 - Homecraft Contracts Ltd,ROOF CLEARANCE
Tendring DC,http://statistics.data.gov.uk/id/local-authority-district/22UN,Life Opportunities,8510 - Dovercourt Swimming Pool & All Weather Facilities,2100 - Building Repairs,27/01/2015,1062724-1,682,2101848 - Homecraft Contracts Ltd,DOVERCOURT BAY-VARIOUS
Tendring DC,http://statistics.data.gov.uk/id/local-authority-district/22UN,Life Opportunities,H920 - Disabled Facilities Grants,C400 - Grant payments,13/01/2015,7016825-1,209.08,REDACTED PERSONAL DATA,REDACTED PERSONAL DATA
Tendring DC,http://statistics.data.gov.uk/id/local-authority-district/22UN,Life Opportunities,1565 - Careline / CCTV Service Unit,4300 - Printing & Stationery,06/01/2015,1062196-1,218.04,2110569 - Hound Envelopes Ltd,C4 ENVELOPES
Tendring DC,http://statistics.data.gov.uk/id/local-authority-district/22UN,Life Opportunities,1100 - Corporate Director (Corporate Services) and Admin Service Unit,4300 - Printing & Stationery,06/01/2015,1062365-1,140.8,2110569 - Hound Envelopes Ltd,ENVELOPES FOR FRAUD
Tendring DC,http://statistics.data.gov.uk/id/local-authority-district/22UN,Life Opportunities,5220 - HRA - Policy & Management,5930 - Business Planning Expenses,06/01/2015,1062238-1,170,2100648 - HouseMark Ltd,STOCK RETAINED AUTHORITIES
Tendring DC,http://statistics.data.gov.uk/id/local-authority-district/22UN,Life Opportunities,5240 - HRA - Managing Tenancies,4312 - Tenancy Stationery,27/01/2015,7017079-1,11,2111338 - Housing Partners Limited,OCT - DEC 14
Tendring DC,http://statistics.data.gov.uk/id/local-authority-district/22UN,Life Opportunities,5480 - HRA - Repair & Maintenance,2014 - Decoration Allowances,20/01/2015,7016913-1,208.35,REDACTED PERSONAL DATA,REDACTED PERSONAL DATA
Tendring DC,http://statistics.data.gov.uk/id/local-authority-district/22UN,Life Opportunities,C304 - Frinton & Walton Swimming Pool Re-Development,C200 - Main Contractor,20/01/2015,2117495-1,3866.53,2108761 - Ingleton Wood,Val 3
Tendring DC,http://statistics.data.gov.uk/id/local-authority-district/22UN,Life Opportunities,C021 - Cremator Replacement and Crematorium Car Park,C200 - Main Contractor,20/01/2015,2117496-1,580,2108761 - Ingleton Wood,Weeley Crem
Tendring DC,http://statistics.data.gov.uk/id/local-authority-district/22UN,Life Opportunities,C149 - Dovercourt Swimming Pool - redevelopment,C200 - Main Contractor,20/01/2015,2117497-1,4363.28,2108761 - Ingleton Wood,Val 15
Tendring DC,http://statistics.data.gov.uk/id/local-authority-district/22UN,Life Opportunities,1880 - Office Accommodation Expenses,4666 - Hygiene Services,06/01/2015,1062205-1,15.74,2104976 - Initial Washroom Solutions,INITIAL 28/12-27/1/15
Tendring DC,http://statistics.data.gov.uk/id/local-authority-district/22UN,Life Opportunities,1860 - Depots General,4666 - Hygiene Services,06/01/2015,1062205-2,7.87,2104976 - Initial Washroom Solutions,INITIAL 28/12-27/1/15
Tendring DC,http://statistics.data.gov.uk/id/local-authority-district/22UN,Life Opportunities,1880 - Office Accommodation Expenses,4666 - Hygiene Services,06/01/2015,1062205-3,15.74,2104976 - Initial Washroom Solutions,INITIAL 28/12-27/1/15
Tendring DC,http://statistics.data.gov.uk/id/local-authority-district/22UN,Life Opportunities,1880 - Office Accommodation Expenses,4666 - Hygiene Services,06/01/2015,1062205-4,91.6,2104976 - Initial Washroom Solutions,INITIAL 28/12-27/1/15
Tendring DC,http://statistics.data.gov.uk/id/local-authority-district/22UN,Life Opportunities,4820 - Public Conveniences,4080 - Materials & Consumables,06/01/2015,1062205-5,108.84,2104976 - Initial Washroom Solutions,INITIAL 28/12-27/1/15
Tendring DC,http://statistics.data.gov.uk/id/local-authority-district/22UN,Life Opportunities,1880 - Office Accommodation Expenses,4666 - Hygiene Services,06/01/2015,1062205-6,7.87,2104976 - Initial Washroom Solutions,INITIAL 28/12-27/1/15
Tendring DC,http://statistics.data.gov.uk/id/local-authority-district/22UN,Life Opportunities,1880 - Office Accommodation Expenses,4666 - Hygiene Services,27/01/2015,1062732-1,15.74,2104976 - Initial Washroom Solutions,INITIAL 28-1-15 TO 27-2-15
Tendring DC,http://statistics.data.gov.uk/id/local-authority-district/22UN,Life Opportunities,1860 - Depots General,4666 - Hygiene Services,27/01/2015,1062732-2,7.87,2104976 - Initial Washroom Solutions,INITIAL 28-1-15 TO 27-2-15
Tendring DC,http://statistics.data.gov.uk/id/local-authority-district/22UN,Life Opportunities,1880 - Office Accommodation Expenses,4666 - Hygiene Services,27/01/2015,1062732-3,15.74,2104976 - Initial Washroom Solutions,INITIAL 28-1-15 TO 27-2-15
Tendring DC,http://statistics.data.gov.uk/id/local-authority-district/22UN,Life Opportunities,1880 - Office Accommodation Expenses,4666 - Hygiene Services,27/01/2015,1062732-4,91.6,2104976 - Initial Washroom Solutions,INITIAL 28-1-15 TO 27-2-15
Tendring DC,http://statistics.data.gov.uk/id/local-authority-district/22UN,Life Opportunities,4820 - Public Conveniences,4080 - Materials & Consumables,27/01/2015,1062732-5,108.84,2104976 - Initial Washroom Solutions,INITIAL 28-1-15 TO 27-2-15
Tendring DC,http://statistics.data.gov.uk/id/local-authority-district/22UN,Life Opportunities,1880 - Office Accommodation Expenses,4666 - Hygiene Services,27/01/2015,1062732-6,7.87,2104976 - Initial Washroom Solutions,INITIAL 28-1-15 TO 27-2-15
Tendring DC,http://statistics.data.gov.uk/id/local-authority-district/22UN,Life Opportunities,5880 - Management Of Sport & Leisure Facilities,5166 - Marketing and Promotion,20/01/2015,7017005-1,90,2113575 - Intelligent Texting,INTXT LICENCE JANUARY
Tendring DC,http://statistics.data.gov.uk/id/local-authority-district/22UN,Life Opportunities,1880 - Office Accommodation Expenses,4448 - Confidential Waste,13/01/2015,1062543-1,84.6,2110936 - IPPlus (UK) Ltd,CONFIDENTIAL WASTE 36 SACKS
Tendring DC,http://statistics.data.gov.uk/id/local-authority-district/22UN,Life Opportunities,1880 - Office Accommodation Expenses,4448 - Confidential Waste,20/01/2015,7016891-1,28.2,2110936 - IPPlus (UK) Ltd,SACK COLLECTION BARNES HOUSE
Tendring DC,http://statistics.data.gov.uk/id/local-authority-district/22UN,Life Opportunities,1070 - Corporate Director (Public Experience) and Administration Service Unit,4300 - Printing & Stationery,20/01/2015,7016892-1,119.85,2110936 - IPPlus (UK) Ltd,SACK COLLECTION WEELEY
Tendring DC,http://statistics.data.gov.uk/id/local-authority-district/22UN,Life Opportunities,1880 - Office Accommodation Expenses,4448 - Confidential Waste,20/01/2015,7016990-1,72.85,2110936 - IPPlus (UK) Ltd,CONFIDENTIAL WASTE 14.11.14 31 SNACKS PIER AVE
Tendring DC,http://statistics.data.gov.uk/id/local-authority-district/22UN,Life Opportunities,8540 - Leisure Centre Clacton,4300 - Printing & Stationery,20/01/2015,7016992-1,434,2100724 - IQL UK Ltd,NPLQ PACKS
Tendring DC,http://statistics.data.gov.uk/id/local-authority-district/22UN,Life Opportunities,8510 - Dovercourt Swimming Pool & All Weather Facilities,4000 - Furniture,06/01/2015,1062226-1,51.64,2100755 - J P Lennard Ltd,DOVERCOURT POOL-CLOCK
Tendring DC,http://statistics.data.gov.uk/id/local-authority-district/22UN,Life Opportunities,8510 - Dovercourt Swimming Pool & All Weather Facilities,4000 - Furniture,06/01/2015,1062227-1,67.85,2100755 - J P Lennard Ltd,DOVERCOURT POOL-NOTICE BOARDS
Tendring DC,http://statistics.data.gov.uk/id/local-authority-district/22UN,Life Opportunities,8520 - Frinton & Walton Swimming Pool,5300 - Resaleable Items,06/01/2015,1062232-1,51.22,2100755 - J P Lennard Ltd,FWSP-JPL
Tendring DC,http://statistics.data.gov.uk/id/local-authority-district/22UN,Life Opportunities,5800 - Brightlingsea Sports Centre,4000 - Furniture,06/01/2015,1062381-1,88.73,2100755 - J P Lennard Ltd,J P LENNARD
Tendring DC,http://statistics.data.gov.uk/id/local-authority-district/22UN,Life Opportunities,8540 - Leisure Centre Clacton,4000 - Furniture,06/01/2015,1062404-1,40.3,2100755 - J P Lennard Ltd,SHUTTLECOCKS
Tendring DC,http://statistics.data.gov.uk/id/local-authority-district/22UN,Life Opportunities,8520 - Frinton & Walton Swimming Pool,4000 - Furniture,13/01/2015,1062473-1,45.25,2100755 - J P Lennard Ltd,FWSP-JPLENNARD
Tendring DC,http://statistics.data.gov.uk/id/local-authority-district/22UN,Life Opportunities,5820 - Harwich Sports Centre,9200 - Course Income,20/01/2015,1062595-1,22.2,REDACTED PERSONAL DATA,REDACTED PERSONAL DATA
Tendring DC,http://statistics.data.gov.uk/id/local-authority-district/22UN,Life Opportunities,6160 - Princes Theatre,4622 - Hired Services - Artistes and Production Companies,20/01/2015,7017018-1,1720.84,2103206 - Jive Aces,THE JIVE ACES
Tendring DC,http://statistics.data.gov.uk/id/local-authority-district/22UN,Life Opportunities,5480 - HRA - Repair & Maintenance,2018 - Other Responsive Repairs,13/01/2015,2117466-1,305,2100707 - JMC Fabrications,18-20a West Street
Tendring DC,http://statistics.data.gov.uk/id/local-authority-district/22UN,Life Opportunities,5240 - HRA - Managing Tenancies,5242 - Tenant Relations,27/01/2015,2117544-1,10,2114120 - John Bloom,
Tendring DC,http://statistics.data.gov.uk/id/local-authority-district/22UN,Life Opportunities,5240 - HRA - Managing Tenancies,5242 - Tenant Relations,06/01/2015,1062288-1,10,REDACTED PERSONAL DATA,REDACTED PERSONAL DATA
Tendring DC,http://statistics.data.gov.uk/id/local-authority-district/22UN,Life Opportunities,6160 - Princes Theatre,5160 - Advertising,06/01/2015,1062274-1,150,2110209 - Johnny Mans Productions,ENCORE MAG SUBS TO 30/11/15
Tendring DC,http://statistics.data.gov.uk/id/local-authority-district/22UN,Life Opportunities,5140 - Homelessness,4683 - Other Homelessness Expenses,27/01/2015,2117551-1,550,REDACTED PERSONAL DATA,REDACTED PERSONAL DATA
Tendring DC,http://statistics.data.gov.uk/id/local-authority-district/22UN,Life Opportunities,5240 - HRA - Managing Tenancies,5242 - Tenant Relations,27/01/2015,2117548-1,10,2113147 - Joyce Phillips,
Tendring DC,http://statistics.data.gov.uk/id/local-authority-district/22UN,Life Opportunities,5480 - HRA - Repair & Maintenance,2064 - Domestic Appliance Repairs,06/01/2015,1062304-1,45,2112159 - Justins Domestic Appliance Repairs,GREENFIELDS
Tendring DC,http://statistics.data.gov.uk/id/local-authority-district/22UN,Life Opportunities,5480 - HRA - Repair & Maintenance,2064 - Domestic Appliance Repairs,06/01/2015,1062352-1,160,2112159 - Justins Domestic Appliance Repairs,BELMANS COURT
Tendring DC,http://statistics.data.gov.uk/id/local-authority-district/22UN,Life Opportunities,5480 - HRA - Repair & Maintenance,2064 - Domestic Appliance Repairs,27/01/2015,1062686-1,45,REDACTED PERSONAL DATA,REDACTED PERSONAL DATA
Tendring DC,http://statistics.data.gov.uk/id/local-authority-district/22UN,Life Opportunities,5480 - HRA - Repair & Maintenance,2064 - Domestic Appliance Repairs,27/01/2015,1062687-1,25,REDACTED PERSONAL DATA,REDACTED PERSONAL DATA
Tendring DC,http://statistics.data.gov.uk/id/local-authority-district/22UN,Life Opportunities,5480 - HRA - Repair & Maintenance,2064 - Domestic Appliance Repairs,27/01/2015,1062688-1,45,2112159 - Justins Domestic Appliance Repairs,GROOM HOUSE
Tendring DC,http://statistics.data.gov.uk/id/local-authority-district/22UN,Life Opportunities,1880 - Office Accommodation Expenses,2100 - Building Repairs,06/01/2015,1062249-1,120,2111266 - JW Plumbing and Heating,WORKS BARNES HOUSE DEC 14
Tendring DC,http://statistics.data.gov.uk/id/local-authority-district/22UN,Life Opportunities,1880 - Office Accommodation Expenses,2100 - Building Repairs,06/01/2015,1062249-2,287,2111266 - JW Plumbing and Heating,WORKS BARNES HOUSE DEC 14
Tendring DC,http://statistics.data.gov.uk/id/local-authority-district/22UN,Life Opportunities,H860 - Disabled Adaptations,C200 - Main Contractor,06/01/2015,1062269-1,175,REDACTED PERSONAL DATA,REDACTED PERSONAL DATA
Tendring DC,http://statistics.data.gov.uk/id/local-authority-district/22UN,Life Opportunities,H860 - Disabled Adaptations,C200 - Main Contractor,06/01/2015,1062269-2,355,REDACTED PERSONAL DATA,REDACTED PERSONAL DATA
Tendring DC,http://statistics.data.gov.uk/id/local-authority-district/22UN,Life Opportunities,H860 - Disabled Adaptations,C200 - Main Contractor,27/01/2015,1062629-1,1067,REDACTED PERSONAL DATA,REDACTED PERSONAL DATA
Tendring DC,http://statistics.data.gov.uk/id/local-authority-district/22UN,Life Opportunities,H860 - Disabled Adaptations,C200 - Main Contractor,27/01/2015,1062629-2,1911,REDACTED PERSONAL DATA,REDACTED PERSONAL DATA
Tendring DC,http://statistics.data.gov.uk/id/local-authority-district/22UN,Life Opportunities,8540 - Leisure Centre Clacton,2100 - Building Repairs,20/01/2015,1062572-1,275,2100758 - K A Hockley Ltd,REGLAZE CAFE DOOR
Tendring DC,http://statistics.data.gov.uk/id/local-authority-district/22UN,Life Opportunities,1880 - Office Accommodation Expenses,2100 - Building Repairs,27/01/2015,1062641-1,360,2100758 - K A Hockley Ltd,SUPPLY & FIT SOLAR FILM TO WINDOWS
Tendring DC,http://statistics.data.gov.uk/id/local-authority-district/22UN,Life Opportunities,6355 - Community Activity Network,4597 - Hired Services - Payments to Contractors,06/01/2015,1062420-1,500,2114670 - Kats Netball Club,ACTIVE TENDRING NETBALL SATELLITE
Tendring DC,http://statistics.data.gov.uk/id/local-authority-district/22UN,Life Opportunities,6740 - Careline,4040 - Equipment & Tools,27/01/2015,1062689-1,134.58,2100890 - Kirby Locks Ltd,SUPPLY & FIT LOCK
Tendring DC,http://statistics.data.gov.uk/id/local-authority-district/22UN,Life Opportunities,5480 - HRA - Repair & Maintenance,2071 - Electric Installation Testing,06/01/2015,1062425-1,1411.8,2113799 - Kirkman & Jourdain Ltd,TEST INSPECT + UPGRADE 12 NO. OF PROPERTIES
Tendring DC,http://statistics.data.gov.uk/id/local-authority-district/22UN,Life Opportunities,5480 - HRA - Repair & Maintenance,2071 - Electric Installation Testing,06/01/2015,1062425-2,4877.58,2113799 - Kirkman & Jourdain Ltd,TEST INSPECT + UPGRADE 12 NO. OF PROPERTIES
Tendring DC,http://statistics.data.gov.uk/id/local-authority-district/22UN,Life Opportunities,5860 - Manningtree Sports Centre,4601 - Hired services - Cleaning,06/01/2015,1062338-1,51,2100851 - KO-SHEEN Contract Cleaning Ltd,CLEANING 24-27 NOV
Tendring DC,http://statistics.data.gov.uk/id/local-authority-district/22UN,Life Opportunities,8540 - Leisure Centre Clacton,4597 - Hired Services - Payments to Contractors,06/01/2015,1062403-1,150,2100851 - KO-SHEEN Contract Cleaning Ltd,W/E 13/12/14
Tendring DC,http://statistics.data.gov.uk/id/local-authority-district/22UN,Life Opportunities,5860 - Manningtree Sports Centre,4601 - Hired services - Cleaning,06/01/2015,1062409-1,63.75,2100851 - KO-SHEEN Contract Cleaning Ltd,CLEANING 1-5 DEC 14
Tendring DC,http://statistics.data.gov.uk/id/local-authority-district/22UN,Life Opportunities,5860 - Manningtree Sports Centre,4601 - Hired services - Cleaning,06/01/2015,1062410-1,127.5,2100851 - KO-SHEEN Contract Cleaning Ltd,CLEANING 8-12 DEC 14
Tendring DC,http://statistics.data.gov.uk/id/local-authority-district/22UN,Life Opportunities,5360 - HRA - Sheltered Units,4601 - Hired services - Cleaning,13/01/2015,1062486-1,442,2100851 - KO-SHEEN Contract Cleaning Ltd,CLEANING 15/12/14 TO 19/12/14
Tendring DC,http://statistics.data.gov.uk/id/local-authority-district/22UN,Life Opportunities,5360 - HRA - Sheltered Units,4601 - Hired services - Cleaning,13/01/2015,1062487-1,442,2100851 - KO-SHEEN Contract Cleaning Ltd,CLEANING 8/12/14-12/12/14
Tendring DC,http://statistics.data.gov.uk/id/local-authority-district/22UN,Life Opportunities,5360 - HRA - Sheltered Units,4601 - Hired services - Cleaning,20/01/2015,7016884-1,646,2100851 - KO-SHEEN Contract Cleaning Ltd,CLEANING 22.12.14 - 31.12.14
Tendring DC,http://statistics.data.gov.uk/id/local-authority-district/22UN,Life Opportunities,5860 - Manningtree Sports Centre,4601 - Hired services - Cleaning,20/01/2015,7016885-1,63.75,2100851 - KO-SHEEN Contract Cleaning Ltd,CLEANING 15TH-19TH DEC 2014
Tendring DC,http://statistics.data.gov.uk/id/local-authority-district/22UN,Life Opportunities,5360 - HRA - Sheltered Units,4601 - Hired services - Cleaning,20/01/2015,7016886-1,588.88,2100851 - KO-SHEEN Contract Cleaning Ltd,CLEANING BELMANS DEC 2014
Tendring DC,http://statistics.data.gov.uk/id/local-authority-district/22UN,Life Opportunities,8540 - Leisure Centre Clacton,4597 - Hired Services - Payments to Contractors,20/01/2015,7016997-1,206.25,2100851 - KO-SHEEN Contract Cleaning Ltd,W/E 31.12.14
Tendring DC,http://statistics.data.gov.uk/id/local-authority-district/22UN,Life Opportunities,8540 - Leisure Centre Clacton,4597 - Hired Services - Payments to Contractors,20/01/2015,7016998-1,150,2100851 - KO-SHEEN Contract Cleaning Ltd,w.e. 20.12.14
Tendring DC,http://statistics.data.gov.uk/id/local-authority-district/22UN,Life Opportunities,5360 - HRA - Sheltered Units,4601 - Hired services - Cleaning,27/01/2015,7017048-1,578,2100851 - KO-SHEEN Contract Cleaning Ltd,CLEANING 1.1.15 - 9.1.15
Tendring DC,http://statistics.data.gov.uk/id/local-authority-district/22UN,Life Opportunities,"1580 - Benefits, Revenues and Customer Contact SU",4466 - Land Registry Fees,27/01/2015,7017043-1,403.5,2113091 - Land Registry Commercial Services,OWNERSHIP CHANGE DEC 14
Tendring DC,http://statistics.data.gov.uk/id/local-authority-district/22UN,Life Opportunities,H860 - Disabled Adaptations,C200 - Main Contractor,06/01/2015,1062271-1,1210,REDACTED PERSONAL DATA,REDACTED PERSONAL DATA
Tendring DC,http://statistics.data.gov.uk/id/local-authority-district/22UN,Life Opportunities,5480 - HRA - Repair & Maintenance,2088 - Disabled Adaptations,20/01/2015,7016894-1,40,REDACTED PERSONAL DATA,REDACTED PERSONAL DATA
Tendring DC,http://statistics.data.gov.uk/id/local-authority-district/22UN,Life Opportunities,5240 - HRA - Managing Tenancies,5242 - Tenant Relations,06/01/2015,1062293-1,10,REDACTED PERSONAL DATA,REDACTED PERSONAL DATA
Tendring DC,http://statistics.data.gov.uk/id/local-authority-district/22UN,Life Opportunities,5800 - Brightlingsea Sports Centre,2100 - Building Repairs,06/01/2015,1062218-1,43,2103500 - Liquidline,LIQUIDLINE-SERVICE
Tendring DC,http://statistics.data.gov.uk/id/local-authority-district/22UN,Life Opportunities,5880 - Management Of Sport & Leisure Facilities,5166 - Marketing and Promotion,20/01/2015,7017026-1,124,2107277 - Look 5 Ltd,HPC AD LOOK 2 FEB
Tendring DC,http://statistics.data.gov.uk/id/local-authority-district/22UN,Life Opportunities,6160 - Princes Theatre,4597 - Hired Services - Payments to Contractors,06/01/2015,1062214-1,150,2100837 - M A Williams,STOCKTAKING PRINCES THEATRE BAR DEC 14
Tendring DC,http://statistics.data.gov.uk/id/local-authority-district/22UN,Life Opportunities,1880 - Office Accommodation Expenses,2100 - Building Repairs,20/01/2015,7016955-1,327,2111940 - M Frost & Associates Ltd,DISPLAY ENERGY CERTS X 3
Tendring DC,http://statistics.data.gov.uk/id/local-authority-district/22UN,Life Opportunities,5220 - HRA - Policy & Management,5253 - HRA Health & Safety Expenses,06/01/2015,1062209-1,31,2113780 - Mainman Supplies Ltd,DICKIES OXFORD SHOE 10
Tendring DC,http://statistics.data.gov.uk/id/local-authority-district/22UN,Life Opportunities,5140 - Homelessness,4683 - Other Homelessness Expenses,27/01/2015,2117552-1,550,REDACTED PERSONAL DATA,REDACTED PERSONAL DATA
Tendring DC,http://statistics.data.gov.uk/id/local-authority-district/22UN,Life Opportunities,5240 - HRA - Managing Tenancies,5242 - Tenant Relations,13/01/2015,7016762-1,90,2113137 - Manningtree Taxis,TRANSPORT 10.12.14 - 16.12.14
Tendring DC,http://statistics.data.gov.uk/id/local-authority-district/22UN,Life Opportunities,5240 - HRA - Managing Tenancies,5248 - Estate Management Expenses,20/01/2015,7017010-1,84,2100888 - Manningtree Town Council,HIRE OF COMMUNITY ROOM JULY - DEC 14
Tendring DC,http://statistics.data.gov.uk/id/local-authority-district/22UN,Life Opportunities,5480 - HRA - Repair & Maintenance,2018 - Other Responsive Repairs,27/01/2015,1062642-1,783,REDACTED PERSONAL DATA,REDACTED PERSONAL DATA
Tendring DC,http://statistics.data.gov.uk/id/local-authority-district/22UN,Life Opportunities,6740 - Careline,5160 - Advertising,06/01/2015,1062278-1,85,2111922 - Mansion House Publishing (UK) Ltd,JAN 15 IN TOUCH
Tendring DC,http://statistics.data.gov.uk/id/local-authority-district/22UN,Life Opportunities,8540 - Leisure Centre Clacton,9283 - Memberships - DD,20/01/2015,7016989-1,35.83,REDACTED PERSONAL DATA,REDACTED PERSONAL DATA
Tendring DC,http://statistics.data.gov.uk/id/local-authority-district/22UN,Life Opportunities,1880 - Office Accommodation Expenses,2100 - Building Repairs,13/01/2015,7016841-1,17.7,2101791 - Medlock Electrical,TUBE DEC 14
Tendring DC,http://statistics.data.gov.uk/id/local-authority-district/22UN,Life Opportunities,1880 - Office Accommodation Expenses,2100 - Building Repairs,13/01/2015,7016842-1,65.5,2101791 - Medlock Electrical,LAMPS & TUBES DEC 14
Tendring DC,http://statistics.data.gov.uk/id/local-authority-district/22UN,Life Opportunities,1880 - Office Accommodation Expenses,2100 - Building Repairs,13/01/2015,7016843-1,38.4,2101791 - Medlock Electrical,LAMPS & TUBES DEC 14
Tendring DC,http://statistics.data.gov.uk/id/local-authority-district/22UN,Life Opportunities,1880 - Office Accommodation Expenses,2100 - Building Repairs,13/01/2015,7016844-1,73.2,2101791 - Medlock Electrical,STARTER SWITCHS & TUBES DEC 14
Tendring DC,http://statistics.data.gov.uk/id/local-authority-district/22UN,Life Opportunities,1880 - Office Accommodation Expenses,2100 - Building Repairs,13/01/2015,7016845-1,12,2101791 - Medlock Electrical,TEST APPLIANCE PASS LABELS
Tendring DC,http://statistics.data.gov.uk/id/local-authority-district/22UN,Life Opportunities,1880 - Office Accommodation Expenses,2100 - Building Repairs,13/01/2015,7016846-1,12,2101791 - Medlock Electrical,TEST APPLIANCE PASS LABELS
Tendring DC,http://statistics.data.gov.uk/id/local-authority-district/22UN,Life Opportunities,5240 - HRA - Managing Tenancies,5242 - Tenant Relations,06/01/2015,1062290-1,10,REDACTED PERSONAL DATA,REDACTED PERSONAL DATA
Tendring DC,http://statistics.data.gov.uk/id/local-authority-district/22UN,Life Opportunities,H710 - Selected Improvements,C200 - Main Contractor,20/01/2015,1062569-1,1454.88,REDACTED PERSONAL DATA,REDACTED PERSONAL DATA
Tendring DC,http://statistics.data.gov.uk/id/local-authority-district/22UN,Life Opportunities,5240 - HRA - Managing Tenancies,6625 - Tenants Compensation Scheme,06/01/2015,1062358-1,150,REDACTED PERSONAL DATA,REDACTED PERSONAL DATA
Tendring DC,http://statistics.data.gov.uk/id/local-authority-district/22UN,Life Opportunities,9920 - HRA Balance Sheet,B860 - Housing Rents - Cash,06/01/2015,1062259-1,371.55,REDACTED PERSONAL DATA,REDACTED PERSONAL DATA
Tendring DC,http://statistics.data.gov.uk/id/local-authority-district/22UN,Life Opportunities,9920 - HRA Balance Sheet,B860 - Housing Rents - Cash,27/01/2015,1062647-1,1668.3,REDACTED PERSONAL DATA,REDACTED PERSONAL DATA
Tendring DC,http://statistics.data.gov.uk/id/local-authority-district/22UN,Life Opportunities,9920 - HRA Balance Sheet,B860 - Housing Rents - Cash,20/01/2015,1062586-1,328.35,REDACTED PERSONAL DATA,REDACTED PERSONAL DATA
Tendring DC,http://statistics.data.gov.uk/id/local-authority-district/22UN,Life Opportunities,9920 - HRA Balance Sheet,B860 - Housing Rents - Cash,20/01/2015,1062584-1,186.04,REDACTED PERSONAL DATA,REDACTED PERSONAL DATA
Tendring DC,http://statistics.data.gov.uk/id/local-authority-district/22UN,Life Opportunities,6740 - Careline,9050 - Careline Income - General,06/01/2015,1062356-1,5.4,REDACTED PERSONAL DATA,REDACTED PERSONAL DATA
Tendring DC,http://statistics.data.gov.uk/id/local-authority-district/22UN,Life Opportunities,8540 - Leisure Centre Clacton,4400 - Maintenance Under Service Agreements,06/01/2015,1062402-1,66.2,2104791 - Mobile Mini Uk Ltd,17/12/14-13/1/15
Tendring DC,http://statistics.data.gov.uk/id/local-authority-district/22UN,Life Opportunities,6160 - Princes Theatre,4200 - Clothing & Uniforms,13/01/2015,1062478-1,849.6,2109450 - Monster Merchandise Ltd,UNIFORMS FOR THEATRE
Tendring DC,http://statistics.data.gov.uk/id/local-authority-district/22UN,Life Opportunities,5140 - Homelessness,4683 - Other Homelessness Expenses,27/01/2015,2117554-1,500,REDACTED PERSONAL DATA,REDACTED PERSONAL DATA
Tendring DC,http://statistics.data.gov.uk/id/local-authority-district/22UN,Life Opportunities,5140 - Homelessness,4683 - Other Homelessness Expenses,14/01/2015,2117555-1,-550,REDACTED PERSONAL DATA,REDACTED PERSONAL DATA
Tendring DC,http://statistics.data.gov.uk/id/local-authority-district/22UN,Life Opportunities,5140 - Homelessness,4683 - Other Homelessness Expenses,27/01/2015,7017158-1,550,2107188 - More Estate Agents,DEPOSIT GUARANTEE
Tendring DC,http://statistics.data.gov.uk/id/local-authority-district/22UN,Life Opportunities,5480 - HRA - Repair & Maintenance,2076 - Gas Service Contract Other Refurbishment/Repairs (,27/01/2015,2117538-1,1104.5,2111370 - Morrison Facilities Services,Gas Service Repair South Area Val 14/15
Tendring DC,http://statistics.data.gov.uk/id/local-authority-district/22UN,Life Opportunities,5480 - HRA - Repair & Maintenance,2075 - Gas Service Contract Servicing/Testing (Domestic I,27/01/2015,2117538-2,2750.61,2111370 - Morrison Facilities Services,Gas Service Repair South Area Val 14/15
Tendring DC,http://statistics.data.gov.uk/id/local-authority-district/22UN,Life Opportunities,5480 - HRA - Repair & Maintenance,2076 - Gas Service Contract Other Refurbishment/Repairs (,27/01/2015,2117538-3,4575.26,2111370 - Morrison Facilities Services,Gas Service Repair South Area Val 14/15
Tendring DC,http://statistics.data.gov.uk/id/local-authority-district/22UN,Life Opportunities,8510 - Dovercourt Swimming Pool & All Weather Facilities,4000 - Furniture,06/01/2015,1062207-1,150,2113825 - Morvend Ltd,DOVERCOURT POOL-DECALS
Tendring DC,http://statistics.data.gov.uk/id/local-authority-district/22UN,Life Opportunities,5800 - Brightlingsea Sports Centre,5300 - Resaleable Items,06/01/2015,1062219-1,62.27,2113825 - Morvend Ltd,MORVEND
Tendring DC,http://statistics.data.gov.uk/id/local-authority-district/22UN,Life Opportunities,5800 - Brightlingsea Sports Centre,5300 - Resaleable Items,06/01/2015,1062219-2,242.51,2113825 - Morvend Ltd,MORVEND
Tendring DC,http://statistics.data.gov.uk/id/local-authority-district/22UN,Life Opportunities,8510 - Dovercourt Swimming Pool & All Weather Facilities,5311 - General Provisions - Vending,06/01/2015,1062222-1,156.9,2113825 - Morvend Ltd,DOVERCOURT POOL-HOT DRINKS
Tendring DC,http://statistics.data.gov.uk/id/local-authority-district/22UN,Life Opportunities,9920 - HRA Balance Sheet,B860 - Housing Rents - Cash,27/01/2015,1062657-1,95.01,REDACTED PERSONAL DATA,REDACTED PERSONAL DATA
Tendring DC,http://statistics.data.gov.uk/id/local-authority-district/22UN,Life Opportunities,6740 - Careline,9050 - Careline Income - General,27/01/2015,7017135-1,10.2,REDACTED PERSONAL DATA,REDACTED PERSONAL DATA
Tendring DC,http://statistics.data.gov.uk/id/local-authority-district/22UN,Life Opportunities,5240 - HRA - Managing Tenancies,5242 - Tenant Relations,06/01/2015,1062289-1,10,REDACTED PERSONAL DATA,REDACTED PERSONAL DATA
Tendring DC,http://statistics.data.gov.uk/id/local-authority-district/22UN,Life Opportunities,5240 - HRA - Managing Tenancies,5242 - Tenant Relations,06/01/2015,1062292-1,10,REDACTED PERSONAL DATA,REDACTED PERSONAL DATA
Tendring DC,http://statistics.data.gov.uk/id/local-authority-district/22UN,Life Opportunities,9920 - HRA Balance Sheet,B860 - Housing Rents - Cash,27/01/2015,1062649-1,498.34,REDACTED PERSONAL DATA,REDACTED PERSONAL DATA
Tendring DC,http://statistics.data.gov.uk/id/local-authority-district/22UN,Life Opportunities,9920 - HRA Balance Sheet,B860 - Housing Rents - Cash,27/01/2015,1062646-1,228.43,REDACTED PERSONAL DATA,REDACTED PERSONAL DATA
Tendring DC,http://statistics.data.gov.uk/id/local-authority-district/22UN,Life Opportunities,H920 - Disabled Facilities Grants,C400 - Grant payments,27/01/2015,7017127-1,2968.37,REDACTED PERSONAL DATA,REDACTED PERSONAL DATA
Tendring DC,http://statistics.data.gov.uk/id/local-authority-district/22UN,Life Opportunities,6740 - Careline,9050 - Careline Income - General,20/01/2015,1062593-1,13.8,REDACTED PERSONAL DATA,REDACTED PERSONAL DATA
Tendring DC,http://statistics.data.gov.uk/id/local-authority-district/22UN,Life Opportunities,5240 - HRA - Managing Tenancies,5242 - Tenant Relations,27/01/2015,2117549-1,10,REDACTED PERSONAL DATA,REDACTED PERSONAL DATA
Tendring DC,http://statistics.data.gov.uk/id/local-authority-district/22UN,Life Opportunities,9920 - HRA Balance Sheet,B860 - Housing Rents - Cash,27/01/2015,1062655-1,187.36,REDACTED PERSONAL DATA,REDACTED PERSONAL DATA
Tendring DC,http://statistics.data.gov.uk/id/local-authority-district/22UN,Life Opportunities,9920 - HRA Balance Sheet,B860 - Housing Rents - Cash,20/01/2015,1062583-1,209.28,REDACTED PERSONAL DATA,REDACTED PERSONAL DATA
Tendring DC,http://statistics.data.gov.uk/id/local-authority-district/22UN,Life Opportunities,5240 - HRA - Managing Tenancies,5242 - Tenant Relations,27/01/2015,2117546-1,10,REDACTED PERSONAL DATA,REDACTED PERSONAL DATA
Tendring DC,http://statistics.data.gov.uk/id/local-authority-district/22UN,Life Opportunities,5240 - HRA - Managing Tenancies,5242 - Tenant Relations,27/01/2015,2117543-1,10,REDACTED PERSONAL DATA,REDACTED PERSONAL DATA
Tendring DC,http://statistics.data.gov.uk/id/local-authority-district/22UN,Life Opportunities,5240 - HRA - Managing Tenancies,5242 - Tenant Relations,27/01/2015,2117545-1,10,REDACTED PERSONAL DATA,REDACTED PERSONAL DATA
Tendring DC,http://statistics.data.gov.uk/id/local-authority-district/22UN,Life Opportunities,5240 - HRA - Managing Tenancies,5242 - Tenant Relations,27/01/2015,2117547-1,10,REDACTED PERSONAL DATA,REDACTED PERSONAL DATA
Tendring DC,http://statistics.data.gov.uk/id/local-authority-district/22UN,Life Opportunities,H920 - Disabled Facilities Grants,C400 - Grant payments,13/01/2015,7016839-1,5680,REDACTED PERSONAL DATA,REDACTED PERSONAL DATA
Tendring DC,http://statistics.data.gov.uk/id/local-authority-district/22UN,Life Opportunities,9920 - HRA Balance Sheet,B860 - Housing Rents - Cash,13/01/2015,1062466-1,84.7,REDACTED PERSONAL DATA,REDACTED PERSONAL DATA
Tendring DC,http://statistics.data.gov.uk/id/local-authority-district/22UN,Life Opportunities,9920 - HRA Balance Sheet,B860 - Housing Rents - Cash,27/01/2015,1062654-1,187.3,REDACTED PERSONAL DATA,REDACTED PERSONAL DATA
Tendring DC,http://statistics.data.gov.uk/id/local-authority-district/22UN,Life Opportunities,8510 - Dovercourt Swimming Pool & All Weather Facilities,4000 - Furniture,13/01/2015,1062454-1,59.99,REDACTED PERSONAL DATA,REDACTED PERSONAL DATA
Tendring DC,http://statistics.data.gov.uk/id/local-authority-district/22UN,Life Opportunities,9920 - HRA Balance Sheet,B860 - Housing Rents - Cash,20/01/2015,1062585-1,238.59,REDACTED PERSONAL DATA,REDACTED PERSONAL DATA
Tendring DC,http://statistics.data.gov.uk/id/local-authority-district/22UN,Life Opportunities,9920 - HRA Balance Sheet,B860 - Housing Rents - Cash,27/01/2015,1062652-1,58.08,REDACTED PERSONAL DATA,REDACTED PERSONAL DATA
Tendring DC,http://statistics.data.gov.uk/id/local-authority-district/22UN,Life Opportunities,5240 - HRA - Managing Tenancies,5242 - Tenant Relations,06/01/2015,1062295-1,10,REDACTED PERSONAL DATA,REDACTED PERSONAL DATA
Tendring DC,http://statistics.data.gov.uk/id/local-authority-district/22UN,Life Opportunities,9920 - HRA Balance Sheet,B860 - Housing Rents - Cash,06/01/2015,1062260-1,101.29,REDACTED PERSONAL DATA,REDACTED PERSONAL DATA
Tendring DC,http://statistics.data.gov.uk/id/local-authority-district/22UN,Life Opportunities,9920 - HRA Balance Sheet,B860 - Housing Rents - Cash,06/01/2015,1062257-1,14.4,REDACTED PERSONAL DATA,REDACTED PERSONAL DATA
Tendring DC,http://statistics.data.gov.uk/id/local-authority-district/22UN,Life Opportunities,9920 - HRA Balance Sheet,B860 - Housing Rents - Cash,27/01/2015,1062656-1,231.88,REDACTED PERSONAL DATA,REDACTED PERSONAL DATA
Tendring DC,http://statistics.data.gov.uk/id/local-authority-district/22UN,Life Opportunities,9920 - HRA Balance Sheet,B860 - Housing Rents - Cash,06/01/2015,1062261-1,28.8,REDACTED PERSONAL DATA,REDACTED PERSONAL DATA
Tendring DC,http://statistics.data.gov.uk/id/local-authority-district/22UN,Life Opportunities,6740 - Careline,9050 - Careline Income - General,06/01/2015,1062254-1,47,REDACTED PERSONAL DATA,REDACTED PERSONAL DATA
Tendring DC,http://statistics.data.gov.uk/id/local-authority-district/22UN,Life Opportunities,5240 - HRA - Managing Tenancies,6625 - Tenants Compensation Scheme,06/01/2015,1062353-1,1231,REDACTED PERSONAL DATA,REDACTED PERSONAL DATA
Tendring DC,http://statistics.data.gov.uk/id/local-authority-district/22UN,Life Opportunities,5140 - Homelessness,4683 - Other Homelessness Expenses,27/01/2015,2117553-1,550,REDACTED PERSONAL DATA,REDACTED PERSONAL DATA
Tendring DC,http://statistics.data.gov.uk/id/local-authority-district/22UN,Life Opportunities,9920 - HRA Balance Sheet,B860 - Housing Rents - Cash,27/01/2015,1062648-1,71.56,REDACTED PERSONAL DATA,REDACTED PERSONAL DATA
Tendring DC,http://statistics.data.gov.uk/id/local-authority-district/22UN,Life Opportunities,9920 - HRA Balance Sheet,B860 - Housing Rents - Cash,27/01/2015,1062653-1,457.57,REDACTED PERSONAL DATA,REDACTED PERSONAL DATA
Tendring DC,http://statistics.data.gov.uk/id/local-authority-district/22UN,Life Opportunities,9920 - HRA Balance Sheet,B860 - Housing Rents - Cash,06/01/2015,1062258-1,753.78,REDACTED PERSONAL DATA,REDACTED PERSONAL DATA
Tendring DC,http://statistics.data.gov.uk/id/local-authority-district/22UN,Life Opportunities,6740 - Careline,9050 - Careline Income - General,27/01/2015,7017134-1,9,REDACTED PERSONAL DATA,REDACTED PERSONAL DATA
Tendring DC,http://statistics.data.gov.uk/id/local-authority-district/22UN,Life Opportunities,9920 - HRA Balance Sheet,B860 - Housing Rents - Cash,13/01/2015,1062467-1,772,REDACTED PERSONAL DATA,REDACTED PERSONAL DATA
Tendring DC,http://statistics.data.gov.uk/id/local-authority-district/22UN,Life Opportunities,9920 - HRA Balance Sheet,B860 - Housing Rents - Cash,06/01/2015,1062262-1,28.8,REDACTED PERSONAL DATA,REDACTED PERSONAL DATA
Tendring DC,http://statistics.data.gov.uk/id/local-authority-district/22UN,Life Opportunities,5240 - HRA - Managing Tenancies,6625 - Tenants Compensation Scheme,06/01/2015,1062357-1,89.98,REDACTED PERSONAL DATA,REDACTED PERSONAL DATA
Tendring DC,http://statistics.data.gov.uk/id/local-authority-district/22UN,Life Opportunities,6740 - Careline,9050 - Careline Income - General,06/01/2015,1062265-1,9,REDACTED PERSONAL DATA,REDACTED PERSONAL DATA
Tendring DC,http://statistics.data.gov.uk/id/local-authority-district/22UN,Life Opportunities,5240 - HRA - Managing Tenancies,5242 - Tenant Relations,06/01/2015,1062298-1,10,REDACTED PERSONAL DATA,REDACTED PERSONAL DATA
Tendring DC,http://statistics.data.gov.uk/id/local-authority-district/22UN,Life Opportunities,8510 - Dovercourt Swimming Pool & All Weather Facilities,4200 - Clothing & Uniforms,27/01/2015,1062728-1,48.08,2113803 - MWUK Ltd T/as Alexandra,DOVERCOURT BAY-UNIFORM
Tendring DC,http://statistics.data.gov.uk/id/local-authority-district/22UN,Life Opportunities,8510 - Dovercourt Swimming Pool & All Weather Facilities,4200 - Clothing & Uniforms,27/01/2015,1062729-1,24.04,2113803 - MWUK Ltd T/as Alexandra,DOVERCOURT BAY-UNIFORM
Tendring DC,http://statistics.data.gov.uk/id/local-authority-district/22UN,Life Opportunities,1880 - Office Accommodation Expenses,2100 - Building Repairs,13/01/2015,1062537-1,240,2100967 - N Rudelhoff,REPLACE FAULTY LUMINARES BARNES HSE
Tendring DC,http://statistics.data.gov.uk/id/local-authority-district/22UN,Life Opportunities,1880 - Office Accommodation Expenses,2100 - Building Repairs,13/01/2015,1062538-1,451,2100967 - N Rudelhoff,VARIOUS ELECTRICAL REPAIRS
Tendring DC,http://statistics.data.gov.uk/id/local-authority-district/22UN,Life Opportunities,1860 - Depots General,2100 - Building Repairs,13/01/2015,1062538-2,78,2100967 - N Rudelhoff,VARIOUS ELECTRICAL REPAIRS
Tendring DC,http://statistics.data.gov.uk/id/local-authority-district/22UN,Life Opportunities,1880 - Office Accommodation Expenses,2100 - Building Repairs,13/01/2015,1062538-3,45,2100967 - N Rudelhoff,VARIOUS ELECTRICAL REPAIRS
Tendring DC,http://statistics.data.gov.uk/id/local-authority-district/22UN,Life Opportunities,1880 - Office Accommodation Expenses,2100 - Building Repairs,13/01/2015,1062538-4,104,2100967 - N Rudelhoff,VARIOUS ELECTRICAL REPAIRS
Tendring DC,http://statistics.data.gov.uk/id/local-authority-district/22UN,Life Opportunities,1880 - Office Accommodation Expenses,2100 - Building Repairs,20/01/2015,7017017-1,880,2100967 - N Rudelhoff,RBS REPAIR LUMINARES
Tendring DC,http://statistics.data.gov.uk/id/local-authority-district/22UN,Life Opportunities,1240 - Commercial Management,3311 - Travelling Career Track,13/01/2015,1062459-1,60,REDACTED PERSONAL DATA,REDACTED PERSONAL DATA
Tendring DC,http://statistics.data.gov.uk/id/local-authority-district/22UN,Life Opportunities,1240 - Commercial Management,3311 - Travelling Career Track,27/01/2015,7017133-1,3.4,REDACTED PERSONAL DATA,REDACTED PERSONAL DATA
Tendring DC,http://statistics.data.gov.uk/id/local-authority-district/22UN,Life Opportunities,8540 - Leisure Centre Clacton,4597 - Hired Services - Payments to Contractors,20/01/2015,7016991-1,430,2114634 - National Energy Consultants,AIR CON REPORT
Tendring DC,http://statistics.data.gov.uk/id/local-authority-district/22UN,Life Opportunities,7600 - Tourist Information Centres,9356 - Commission Sales,13/01/2015,2117483-1,657.5,2110032 - National Express Ltd,National Express Dec 14
Tendring DC,http://statistics.data.gov.uk/id/local-authority-district/22UN,Life Opportunities,7600 - Tourist Information Centres,9356 - Commission Sales,13/01/2015,2117483-2,-55.4,2110032 - National Express Ltd,National Express Dec 14
Tendring DC,http://statistics.data.gov.uk/id/local-authority-district/22UN,Life Opportunities,6160 - Princes Theatre,4622 - Hired Services - Artistes and Production Companies,06/01/2015,1062200-1,1513.09,2100909 - Neil Sands Productions,REMEMBER WHEN AT CHRISTMAS
Tendring DC,http://statistics.data.gov.uk/id/local-authority-district/22UN,Life Opportunities,6160 - Princes Theatre,5160 - Advertising,06/01/2015,1062197-1,195,2113536 - Newsquest Media Group,EVENING GAZETTE 10/12/14
Tendring DC,http://statistics.data.gov.uk/id/local-authority-district/22UN,Life Opportunities,6160 - Princes Theatre,5160 - Advertising,06/01/2015,1062198-1,142,2113536 - Newsquest Media Group,EVENING GAZETTE 12/12/14
Tendring DC,http://statistics.data.gov.uk/id/local-authority-district/22UN,Life Opportunities,5880 - Management Of Sport & Leisure Facilities,5166 - Marketing and Promotion,06/01/2015,1062406-1,822.7,2113536 - Newsquest Media Group,CFG 4/12/14-HMS 5/12/14
Tendring DC,http://statistics.data.gov.uk/id/local-authority-district/22UN,Life Opportunities,6160 - Princes Theatre,5160 - Advertising,13/01/2015,1062482-1,30,2113536 - Newsquest Media Group,EVENING GAZETTE 22/12/14
Tendring DC,http://statistics.data.gov.uk/id/local-authority-district/22UN,Life Opportunities,6160 - Princes Theatre,5160 - Advertising,13/01/2015,1062483-1,220,2113536 - Newsquest Media Group,GAZETTE 18/12/14
Tendring DC,http://statistics.data.gov.uk/id/local-authority-district/22UN,Life Opportunities,6160 - Princes Theatre,5160 - Advertising,27/01/2015,1062713-1,130,2113536 - Newsquest Media Group,ESSEX COUNTY STANDARD 9/1/15
Tendring DC,http://statistics.data.gov.uk/id/local-authority-district/22UN,Life Opportunities,1240 - Commercial Management,3311 - Travelling Career Track,27/01/2015,2117550-1,16.5,REDACTED PERSONAL DATA,REDACTED PERSONAL DATA
Tendring DC,http://statistics.data.gov.uk/id/local-authority-district/22UN,Life Opportunities,1242 - Corporate Director (Life Opportunities),1710 - Training - Central Department Budget,20/01/2015,7016933-1,784.11,2108848 - North Essex Partnership NHS FT,CARELNE TRAINING
Tendring DC,http://statistics.data.gov.uk/id/local-authority-district/22UN,Life Opportunities,"1580 - Benefits, Revenues and Customer Contact SU",4753 - Computer - Application Software,27/01/2015,1062675-1,950,2101204 - Northgate Information Solutions UK Ltd,AUTUMN STATEMENT 2013
Tendring DC,http://statistics.data.gov.uk/id/local-authority-district/22UN,Life Opportunities,"1580 - Benefits, Revenues and Customer Contact SU",4754 - IT Consultancy,20/01/2015,7016905-1,2200,2101204 - Northgate Information Solutions UK Ltd,YEAR END SUPPORT 2014/15
Tendring DC,http://statistics.data.gov.uk/id/local-authority-district/22UN,Life Opportunities,5140 - Homelessness,4683 - Other Homelessness Expenses,20/01/2015,7016883-1,175,2107920 - NowMedical,MEDICAL ADVICE DEC 14
Tendring DC,http://statistics.data.gov.uk/id/local-authority-district/22UN,Life Opportunities,8540 - Leisure Centre Clacton,4400 - Maintenance Under Service Agreements,20/01/2015,7017000-1,354.9,2100281 - OCS Group UK Ltd,JAN - MARCH
Tendring DC,http://statistics.data.gov.uk/id/local-authority-district/22UN,Life Opportunities,6160 - Princes Theatre,4080 - Materials & Consumables,20/01/2015,7016906-1,48.05,2101032 - Old Road Paint and Wallpaper Supplies,"PAINT, ROLLER, TRAY"
Tendring DC,http://statistics.data.gov.uk/id/local-authority-district/22UN,Life Opportunities,H920 - Disabled Facilities Grants,C400 - Grant payments,27/01/2015,7017122-1,6746.61,REDACTED PERSONAL DATA,REDACTED PERSONAL DATA
Tendring DC,http://statistics.data.gov.uk/id/local-authority-district/22UN,Life Opportunities,5820 - Harwich Sports Centre,5311 - General Provisions - Vending,06/01/2015,1062194-1,20.15,2101083 - Osgood Smith,CANTEEN GOODS
Tendring DC,http://statistics.data.gov.uk/id/local-authority-district/22UN,Life Opportunities,6160 - Princes Theatre,5306 - Confectionary,06/01/2015,1062213-1,536.51,2101083 - Osgood Smith,CONFECTIONARY THEATRE BAR
Tendring DC,http://statistics.data.gov.uk/id/local-authority-district/22UN,Life Opportunities,6160 - Princes Theatre,5306 - Confectionary,06/01/2015,1062213-2,16.04,2101083 - Osgood Smith,CONFECTIONARY THEATRE BAR
Tendring DC,http://statistics.data.gov.uk/id/local-authority-district/22UN,Life Opportunities,5800 - Brightlingsea Sports Centre,5300 - Resaleable Items,06/01/2015,1062221-1,186.93,2101083 - Osgood Smith,OSGOOD-VENDING SUPPLIES
Tendring DC,http://statistics.data.gov.uk/id/local-authority-district/22UN,Life Opportunities,5800 - Brightlingsea Sports Centre,5300 - Resaleable Items,06/01/2015,1062221-2,30.9,2101083 - Osgood Smith,OSGOOD-VENDING SUPPLIES
Tendring DC,http://statistics.data.gov.uk/id/local-authority-district/22UN,Life Opportunities,8520 - Frinton & Walton Swimming Pool,5311 - General Provisions - Vending,06/01/2015,1062231-1,126.58,2101083 - Osgood Smith,FWSP-OSGOOD SMITH
Tendring DC,http://statistics.data.gov.uk/id/local-authority-district/22UN,Life Opportunities,5860 - Manningtree Sports Centre,5311 - General Provisions - Vending,06/01/2015,1062346-1,40.6,2101083 - Osgood Smith,VENDING SUPPLIES
Tendring DC,http://statistics.data.gov.uk/id/local-authority-district/22UN,Life Opportunities,5860 - Manningtree Sports Centre,5311 - General Provisions - Vending,06/01/2015,1062346-2,17.74,2101083 - Osgood Smith,VENDING SUPPLIES
Tendring DC,http://statistics.data.gov.uk/id/local-authority-district/22UN,Life Opportunities,8540 - Leisure Centre Clacton,5311 - General Provisions - Vending,06/01/2015,1062366-1,108.15,2101083 - Osgood Smith,VENDING SUPPLIES
Tendring DC,http://statistics.data.gov.uk/id/local-authority-district/22UN,Life Opportunities,6160 - Princes Theatre,5306 - Confectionary,06/01/2015,1062367-1,260.71,2101083 - Osgood Smith,CONFECTIONARY THEATRE
Tendring DC,http://statistics.data.gov.uk/id/local-authority-district/22UN,Life Opportunities,6160 - Princes Theatre,5306 - Confectionary,06/01/2015,1062368-1,379.08,2101083 - Osgood Smith,CONFECTIONARY THEATRE
Tendring DC,http://statistics.data.gov.uk/id/local-authority-district/22UN,Life Opportunities,6160 - Princes Theatre,5306 - Confectionary,06/01/2015,1062369-1,699.22,2101083 - Osgood Smith,CONFECTIONARY THEATRE
Tendring DC,http://statistics.data.gov.uk/id/local-authority-district/22UN,Life Opportunities,6160 - Princes Theatre,5306 - Confectionary,06/01/2015,1062370-1,29.28,2101083 - Osgood Smith,CONFECTIONARY THEATRE
Tendring DC,http://statistics.data.gov.uk/id/local-authority-district/22UN,Life Opportunities,8520 - Frinton & Walton Swimming Pool,5311 - General Provisions - Vending,06/01/2015,1062414-1,104.52,2101083 - Osgood Smith,FWSP-OSGOOD SMITH
Tendring DC,http://statistics.data.gov.uk/id/local-authority-district/22UN,Life Opportunities,5860 - Manningtree Sports Centre,5311 - General Provisions - Vending,06/01/2015,1062415-1,27.21,2101083 - Osgood Smith,VENDING SERVICES
Tendring DC,http://statistics.data.gov.uk/id/local-authority-district/22UN,Life Opportunities,8540 - Leisure Centre Clacton,5311 - General Provisions - Vending,20/01/2015,1062568-1,-16.34,2101083 - Osgood Smith,VENDING CREDIT
Tendring DC,http://statistics.data.gov.uk/id/local-authority-district/22UN,Life Opportunities,8520 - Frinton & Walton Swimming Pool,5311 - General Provisions - Vending,27/01/2015,1062720-1,100.77,2101083 - Osgood Smith,FWSP-OSGOOD SMITH
Tendring DC,http://statistics.data.gov.uk/id/local-authority-district/22UN,Life Opportunities,8510 - Dovercourt Swimming Pool & All Weather Facilities,5311 - General Provisions - Vending,27/01/2015,1062721-1,146.13,2101083 - Osgood Smith,DOVERCOURT BAY-SWEETS
Tendring DC,http://statistics.data.gov.uk/id/local-authority-district/22UN,Life Opportunities,8510 - Dovercourt Swimming Pool & All Weather Facilities,5311 - General Provisions - Vending,27/01/2015,1062722-1,10.35,2101083 - Osgood Smith,DOVERCOURT BAY-SWEETS
Tendring DC,http://statistics.data.gov.uk/id/local-authority-district/22UN,Life Opportunities,5800 - Brightlingsea Sports Centre,5300 - Resaleable Items,20/01/2015,7016880-1,175.35,2101083 - Osgood Smith,OSGOODS SOFT DRINKS
Tendring DC,http://statistics.data.gov.uk/id/local-authority-district/22UN,Life Opportunities,5820 - Harwich Sports Centre,5311 - General Provisions - Vending,20/01/2015,7016897-1,55.32,2101083 - Osgood Smith,CANTEEN ORDER
Tendring DC,http://statistics.data.gov.uk/id/local-authority-district/22UN,Life Opportunities,5820 - Harwich Sports Centre,5311 - General Provisions - Vending,20/01/2015,7016898-1,84.6,2101083 - Osgood Smith,CANTEEN GOODS
Tendring DC,http://statistics.data.gov.uk/id/local-authority-district/22UN,Life Opportunities,8540 - Leisure Centre Clacton,5311 - General Provisions - Vending,20/01/2015,7017001-1,542,2101083 - Osgood Smith,VENDING SUPPLIES
Tendring DC,http://statistics.data.gov.uk/id/local-authority-district/22UN,Life Opportunities,8540 - Leisure Centre Clacton,5311 - General Provisions - Vending,20/01/2015,7017002-1,17.78,2101083 - Osgood Smith,VENDING SUPPLIES
Tendring DC,http://statistics.data.gov.uk/id/local-authority-district/22UN,Life Opportunities,8540 - Leisure Centre Clacton,5311 - General Provisions - Vending,20/01/2015,7017003-1,14.45,2101083 - Osgood Smith,VENDING SUPPLIES
Tendring DC,http://statistics.data.gov.uk/id/local-authority-district/22UN,Life Opportunities,8540 - Leisure Centre Clacton,5311 - General Provisions - Vending,20/01/2015,7017004-1,181.83,2101083 - Osgood Smith,VENDING SUPPLIES
Tendring DC,http://statistics.data.gov.uk/id/local-authority-district/22UN,Life Opportunities,5860 - Manningtree Sports Centre,5311 - General Provisions - Vending,20/01/2015,7017019-1,120.98,2101083 - Osgood Smith,VENDING SUPPLIES
Tendring DC,http://statistics.data.gov.uk/id/local-authority-district/22UN,Life Opportunities,8540 - Leisure Centre Clacton,5311 - General Provisions - Vending,27/01/2015,7017069-1,280.46,2101083 - Osgood Smith,VENDING SUPPLIES
Tendring DC,http://statistics.data.gov.uk/id/local-authority-district/22UN,Life Opportunities,5480 - HRA - Repair & Maintenance,2077 - Gas Service Contract  Servicing/Testing (Large Sca,27/01/2015,2117535-1,2960.95,2113206 - P&R Installation Company Ltd,Mechanical Svs Contract Val 18
Tendring DC,http://statistics.data.gov.uk/id/local-authority-district/22UN,Life Opportunities,5480 - HRA - Repair & Maintenance,2078 - Gas Service Contract Other Refurbishment/Repairs (,27/01/2015,2117535-2,1745.57,2113206 - P&R Installation Company Ltd,Mechanical Svs Contract Val 18
Tendring DC,http://statistics.data.gov.uk/id/local-authority-district/22UN,Life Opportunities,5480 - HRA - Repair & Maintenance,2077 - Gas Service Contract  Servicing/Testing (Large Sca,27/01/2015,2117536-1,2960.97,2113206 - P&R Installation Company Ltd,Mechanical Svs Contract LSB Val 19
Tendring DC,http://statistics.data.gov.uk/id/local-authority-district/22UN,Life Opportunities,5480 - HRA - Repair & Maintenance,2078 - Gas Service Contract Other Refurbishment/Repairs (,27/01/2015,2117536-2,3302.38,2113206 - P&R Installation Company Ltd,Mechanical Svs Contract LSB Val 19
Tendring DC,http://statistics.data.gov.uk/id/local-authority-district/22UN,Life Opportunities,5240 - HRA - Managing Tenancies,5242 - Tenant Relations,06/01/2015,1062291-1,10,REDACTED PERSONAL DATA,REDACTED PERSONAL DATA
Tendring DC,http://statistics.data.gov.uk/id/local-authority-district/22UN,Life Opportunities,H920 - Disabled Facilities Grants,C400 - Grant payments,13/01/2015,7016826-1,522,REDACTED PERSONAL DATA,REDACTED PERSONAL DATA
Tendring DC,http://statistics.data.gov.uk/id/local-authority-district/22UN,Life Opportunities,8540 - Leisure Centre Clacton,9283 - Memberships - DD,27/01/2015,1062651-1,116.66,REDACTED PERSONAL DATA,REDACTED PERSONAL DATA
Tendring DC,http://statistics.data.gov.uk/id/local-authority-district/22UN,Life Opportunities,5800 - Brightlingsea Sports Centre,4000 - Furniture,06/01/2015,1062220-1,986,2112933 - Phoenix Archery Club,ARCHERY EQUIP
Tendring DC,http://statistics.data.gov.uk/id/local-authority-district/22UN,Life Opportunities,5420 - HRA - Communal Cleaning,2706 - Communal Areas Cleaning Expenses,13/01/2015,7016757-1,3521.58,2107884 - Pinnacle Essex,CLEANING DEC 2014
Tendring DC,http://statistics.data.gov.uk/id/local-authority-district/22UN,Life Opportunities,5480 - HRA - Repair & Maintenance,2018 - Other Responsive Repairs,13/01/2015,7016774-1,412.5,2107848 - PMC Landscapes,13-18 CAMBRIDGE COURT
Tendring DC,http://statistics.data.gov.uk/id/local-authority-district/22UN,Life Opportunities,5480 - HRA - Repair & Maintenance,2018 - Other Responsive Repairs,13/01/2015,7016775-1,412.5,2107848 - PMC Landscapes,7-12 CAMBRIDGE COURT
Tendring DC,http://statistics.data.gov.uk/id/local-authority-district/22UN,Life Opportunities,6160 - Princes Theatre,4622 - Hired Services - Artistes and Production Companies,06/01/2015,1062419-1,36670.31,2111649 - Polka Dot Pantomimes,JACK & THE BEANSTALK 5TH
Tendring DC,http://statistics.data.gov.uk/id/local-authority-district/22UN,Life Opportunities,H920 - Disabled Facilities Grants,C400 - Grant payments,13/01/2015,7016830-1,514.2,REDACTED PERSONAL DATA,REDACTED PERSONAL DATA
Tendring DC,http://statistics.data.gov.uk/id/local-authority-district/22UN,Life Opportunities,H920 - Disabled Facilities Grants,C400 - Grant payments,13/01/2015,7016831-1,4836.8,REDACTED PERSONAL DATA,REDACTED PERSONAL DATA
Tendring DC,http://statistics.data.gov.uk/id/local-authority-district/22UN,Life Opportunities,"1580 - Benefits, Revenues and Customer Contact SU",4462 - Bailiffs and Tracing Agent Fees re debt recovery,06/01/2015,1062374-1,960,2114137 - Premier Locate Ltd,TRACE AND STATUS
Tendring DC,http://statistics.data.gov.uk/id/local-authority-district/22UN,Life Opportunities,H880 - New Build Initiatives and Acquisitions,C200 - Main Contractor,27/01/2015,1062738-1,200,REDACTED PERSONAL DATA,REDACTED PERSONAL DATA
Tendring DC,http://statistics.data.gov.uk/id/local-authority-district/22UN,Life Opportunities,5480 - HRA - Repair & Maintenance,2012 - Responsive Maintenance - Clearance And Cleaning,20/01/2015,7016909-1,135,REDACTED PERSONAL DATA,REDACTED PERSONAL DATA
Tendring DC,http://statistics.data.gov.uk/id/local-authority-district/22UN,Life Opportunities,5480 - HRA - Repair & Maintenance,2012 - Responsive Maintenance - Clearance And Cleaning,20/01/2015,7016910-1,95,REDACTED PERSONAL DATA,REDACTED PERSONAL DATA
Tendring DC,http://statistics.data.gov.uk/id/local-authority-district/22UN,Life Opportunities,5480 - HRA - Repair & Maintenance,2012 - Responsive Maintenance - Clearance And Cleaning,20/01/2015,7016911-1,20,REDACTED PERSONAL DATA,REDACTED PERSONAL DATA
Tendring DC,http://statistics.data.gov.uk/id/local-authority-district/22UN,Life Opportunities,5480 - HRA - Repair & Maintenance,2012 - Responsive Maintenance - Clearance And Cleaning,20/01/2015,7016912-1,75,2107707 - Professional Cleaning Services (Essex) Ltd,10 DE STAUNTON CLOSE
Tendring DC,http://statistics.data.gov.uk/id/local-authority-district/22UN,Life Opportunities,6160 - Princes Theatre,5160 - Advertising,20/01/2015,7016948-1,185.6,2107459 - Prospector,"WRESTLING, RIGOLETTA, RAY QUINN"
Tendring DC,http://statistics.data.gov.uk/id/local-authority-district/22UN,Life Opportunities,6160 - Princes Theatre,5160 - Advertising,20/01/2015,7016949-1,208,2107459 - Prospector,"JIVE ACES, J LONGTHORNE, 3 DEGREES"
Tendring DC,http://statistics.data.gov.uk/id/local-authority-district/22UN,Life Opportunities,5880 - Management Of Sport & Leisure Facilities,2100 - Building Repairs,06/01/2015,1062191-1,1182.9,2113149 - Quality Office Supplies Ltd,RECEPTION CHAIRS X 10
Tendring DC,http://statistics.data.gov.uk/id/local-authority-district/22UN,Life Opportunities,1760 - IT Direct Service Costs,6325 - Additional Services,06/01/2015,1062202-1,299,2113149 - Quality Office Supplies Ltd,AVIOR HIGH BACK CHAIR
Tendring DC,http://statistics.data.gov.uk/id/local-authority-district/22UN,Life Opportunities,1880 - Office Accommodation Expenses,4000 - Furniture,06/01/2015,1062202-2,200,2113149 - Quality Office Supplies Ltd,AVIOR HIGH BACK CHAIR
Tendring DC,http://statistics.data.gov.uk/id/local-authority-district/22UN,Life Opportunities,6740 - Careline,4040 - Equipment & Tools,13/01/2015,1062539-1,310,2113149 - Quality Office Supplies Ltd,2 X DESKS CARELINE
Tendring DC,http://statistics.data.gov.uk/id/local-authority-district/22UN,Life Opportunities,1880 - Office Accommodation Expenses,4000 - Furniture,13/01/2015,1062540-1,9.5,2113149 - Quality Office Supplies Ltd,KEY
Tendring DC,http://statistics.data.gov.uk/id/local-authority-district/22UN,Life Opportunities,1880 - Office Accommodation Expenses,4000 - Furniture,13/01/2015,1062541-1,79.99,2113149 - Quality Office Supplies Ltd,OFFICE CHAIR THEATRE
Tendring DC,http://statistics.data.gov.uk/id/local-authority-district/22UN,Life Opportunities,5880 - Management Of Sport & Leisure Facilities,2100 - Building Repairs,20/01/2015,7017022-1,354,2113149 - Quality Office Supplies Ltd,6 X RECEPTION CHAIRS (LIME)
Tendring DC,http://statistics.data.gov.uk/id/local-authority-district/22UN,Life Opportunities,"1580 - Benefits, Revenues and Customer Contact SU",4355 - Books & Periodicals,06/01/2015,1062364-1,720,2101987 - Rating & Valuation Reporter,RATING VALUATION REPORTER
Tendring DC,http://statistics.data.gov.uk/id/local-authority-district/22UN,Life Opportunities,H800 - Structural Repairs,C200 - Main Contractor,06/01/2015,1062247-1,1110.6,REDACTED PERSONAL DATA,REDACTED PERSONAL DATA
Tendring DC,http://statistics.data.gov.uk/id/local-authority-district/22UN,Life Opportunities,8520 - Frinton & Walton Swimming Pool,5300 - Resaleable Items,06/01/2015,1062234-1,33,2101127 - RLSS UK Enterprises Ltd,FWSP-LIFESAVERS DIRECT
Tendring DC,http://statistics.data.gov.uk/id/local-authority-district/22UN,Life Opportunities,8520 - Frinton & Walton Swimming Pool,4000 - Furniture,06/01/2015,1062235-1,137.2,2101127 - RLSS UK Enterprises Ltd,FWSP-LIFESAVERS DIRECT
Tendring DC,http://statistics.data.gov.uk/id/local-authority-district/22UN,Life Opportunities,H706 - Kitchen & Bathroom Replacement,C200 - Main Contractor,20/01/2015,1062570-1,3385,REDACTED PERSONAL DATA,REDACTED PERSONAL DATA
Tendring DC,http://statistics.data.gov.uk/id/local-authority-district/22UN,Life Opportunities,5480 - HRA - Repair & Maintenance,2010 - Responsive Maintenance - Painting And Decorating,20/01/2015,1062570-2,198.65,REDACTED PERSONAL DATA,REDACTED PERSONAL DATA
Tendring DC,http://statistics.data.gov.uk/id/local-authority-district/22UN,Life Opportunities,H706 - Kitchen & Bathroom Replacement,C200 - Main Contractor,20/01/2015,1062571-1,4210,REDACTED PERSONAL DATA,REDACTED PERSONAL DATA
Tendring DC,http://statistics.data.gov.uk/id/local-authority-district/22UN,Life Opportunities,5480 - HRA - Repair & Maintenance,2000 - Responsive Maintenance - Miscellaneous,20/01/2015,1062620-1,89933.63,2101187 - Roalco Limited,ROALCO
Tendring DC,http://statistics.data.gov.uk/id/local-authority-district/22UN,Life Opportunities,5480 - HRA - Repair & Maintenance,2000 - Responsive Maintenance - Miscellaneous,20/01/2015,1062621-1,48440.37,2101187 - Roalco Limited,ROALCO
Tendring DC,http://statistics.data.gov.uk/id/local-authority-district/22UN,Life Opportunities,5480 - HRA - Repair & Maintenance,2088 - Disabled Adaptations,27/01/2015,1062636-1,47.14,REDACTED PERSONAL DATA,REDACTED PERSONAL DATA
Tendring DC,http://statistics.data.gov.uk/id/local-authority-district/22UN,Life Opportunities,5480 - HRA - Repair & Maintenance,2088 - Disabled Adaptations,27/01/2015,1062637-1,159.8,REDACTED PERSONAL DATA,REDACTED PERSONAL DATA
Tendring DC,http://statistics.data.gov.uk/id/local-authority-district/22UN,Life Opportunities,5480 - HRA - Repair & Maintenance,2088 - Disabled Adaptations,27/01/2015,1062638-1,29.62,REDACTED PERSONAL DATA,REDACTED PERSONAL DATA
Tendring DC,http://statistics.data.gov.uk/id/local-authority-district/22UN,Life Opportunities,5820 - Harwich Sports Centre,2100 - Building Repairs,20/01/2015,7016902-1,107.46,REDACTED PERSONAL DATA,REDACTED PERSONAL DATA
Tendring DC,http://statistics.data.gov.uk/id/local-authority-district/22UN,Life Opportunities,5240 - HRA - Managing Tenancies,5242 - Tenant Relations,06/01/2015,1062294-1,10,REDACTED PERSONAL DATA,REDACTED PERSONAL DATA
Tendring DC,http://statistics.data.gov.uk/id/local-authority-district/22UN,Life Opportunities,5240 - HRA - Managing Tenancies,5242 - Tenant Relations,06/01/2015,1062296-1,10,REDACTED PERSONAL DATA,REDACTED PERSONAL DATA
Tendring DC,http://statistics.data.gov.uk/id/local-authority-district/22UN,Life Opportunities,5140 - Homelessness,4683 - Other Homelessness Expenses,13/01/2015,1062465-1,725,REDACTED PERSONAL DATA,REDACTED PERSONAL DATA
Tendring DC,http://statistics.data.gov.uk/id/local-authority-district/22UN,Life Opportunities,"1580 - Benefits, Revenues and Customer Contact SU",4700 - Postage,06/01/2015,1062309-1,975.17,2101139 - Royal Mail Group Ltd,"OUTGOING POST DEC RBS,THEATRE,RENTS"
Tendring DC,http://statistics.data.gov.uk/id/local-authority-district/22UN,Life Opportunities,6160 - Princes Theatre,4700 - Postage,06/01/2015,1062309-2,171.41,2101139 - Royal Mail Group Ltd,"OUTGOING POST DEC RBS,THEATRE,RENTS"
Tendring DC,http://statistics.data.gov.uk/id/local-authority-district/22UN,Life Opportunities,5260 - HRA - Rent Collection And Accounting,4700 - Postage,06/01/2015,1062309-3,17.93,2101139 - Royal Mail Group Ltd,"OUTGOING POST DEC RBS,THEATRE,RENTS"
Tendring DC,http://statistics.data.gov.uk/id/local-authority-district/22UN,Life Opportunities,"1580 - Benefits, Revenues and Customer Contact SU",4700 - Postage,06/01/2015,1062379-1,52.52,2101139 - Royal Mail Group Ltd,RESPONSE PLUS NOV/DEC 14
Tendring DC,http://statistics.data.gov.uk/id/local-authority-district/22UN,Life Opportunities,"1580 - Benefits, Revenues and Customer Contact SU",4700 - Postage,06/01/2015,1062379-2,1.4,2101139 - Royal Mail Group Ltd,RESPONSE PLUS NOV/DEC 14
Tendring DC,http://statistics.data.gov.uk/id/local-authority-district/22UN,Life Opportunities,6740 - Careline,4700 - Postage,13/01/2015,1062471-1,10,2101139 - Royal Mail Group Ltd,RESPONSE SERVICE
Tendring DC,http://statistics.data.gov.uk/id/local-authority-district/22UN,Life Opportunities,"1580 - Benefits, Revenues and Customer Contact SU",4700 - Postage,13/01/2015,1062472-1,1322.45,2101139 - Royal Mail Group Ltd,RENTS THEATRE RBS AIRSHOW CARELINE
Tendring DC,http://statistics.data.gov.uk/id/local-authority-district/22UN,Life Opportunities,5260 - HRA - Rent Collection And Accounting,4700 - Postage,13/01/2015,1062472-2,59.38,2101139 - Royal Mail Group Ltd,RENTS THEATRE RBS AIRSHOW CARELINE
Tendring DC,http://statistics.data.gov.uk/id/local-authority-district/22UN,Life Opportunities,6160 - Princes Theatre,4700 - Postage,13/01/2015,1062472-3,3338.28,2101139 - Royal Mail Group Ltd,RENTS THEATRE RBS AIRSHOW CARELINE
Tendring DC,http://statistics.data.gov.uk/id/local-authority-district/22UN,Life Opportunities,7620 - Air Show,4300 - Printing & Stationery,13/01/2015,1062472-4,18.55,2101139 - Royal Mail Group Ltd,RENTS THEATRE RBS AIRSHOW CARELINE
Tendring DC,http://statistics.data.gov.uk/id/local-authority-district/22UN,Life Opportunities,"1580 - Benefits, Revenues and Customer Contact SU",4700 - Postage,27/01/2015,1062712-1,1092.59,2101139 - Royal Mail Group Ltd,OUTGOING POST JAN 15
Tendring DC,http://statistics.data.gov.uk/id/local-authority-district/22UN,Life Opportunities,5260 - HRA - Rent Collection And Accounting,4700 - Postage,27/01/2015,1062712-2,33.61,2101139 - Royal Mail Group Ltd,OUTGOING POST JAN 15
Tendring DC,http://statistics.data.gov.uk/id/local-authority-district/22UN,Life Opportunities,6160 - Princes Theatre,4700 - Postage,27/01/2015,1062712-3,87.47,2101139 - Royal Mail Group Ltd,OUTGOING POST JAN 15
Tendring DC,http://statistics.data.gov.uk/id/local-authority-district/22UN,Life Opportunities,"1580 - Benefits, Revenues and Customer Contact SU",4700 - Postage,13/01/2015,7016759-1,485.16,2101139 - Royal Mail Group Ltd,OUT-GOING POST DEC 14
Tendring DC,http://statistics.data.gov.uk/id/local-authority-district/22UN,Life Opportunities,6160 - Princes Theatre,4700 - Postage,13/01/2015,7016759-2,2051.29,2101139 - Royal Mail Group Ltd,OUT-GOING POST DEC 14
Tendring DC,http://statistics.data.gov.uk/id/local-authority-district/22UN,Life Opportunities,6740 - Careline,4700 - Postage,13/01/2015,7016759-3,999.74,2101139 - Royal Mail Group Ltd,OUT-GOING POST DEC 14
Tendring DC,http://statistics.data.gov.uk/id/local-authority-district/22UN,Life Opportunities,5260 - HRA - Rent Collection And Accounting,4700 - Postage,13/01/2015,7016759-4,11.24,2101139 - Royal Mail Group Ltd,OUT-GOING POST DEC 14
Tendring DC,http://statistics.data.gov.uk/id/local-authority-district/22UN,Life Opportunities,5240 - HRA - Managing Tenancies,5242 - Tenant Relations,13/01/2015,7016760-1,70,2101139 - Royal Mail Group Ltd,633665007
Tendring DC,http://statistics.data.gov.uk/id/local-authority-district/22UN,Life Opportunities,5260 - HRA - Rent Collection And Accounting,4700 - Postage,20/01/2015,7016915-1,10.85,2101139 - Royal Mail Group Ltd,OUTGOING POST 29.12 - 2.1.15
Tendring DC,http://statistics.data.gov.uk/id/local-authority-district/22UN,Life Opportunities,6160 - Princes Theatre,4700 - Postage,20/01/2015,7016915-2,462.31,2101139 - Royal Mail Group Ltd,OUTGOING POST 29.12 - 2.1.15
Tendring DC,http://statistics.data.gov.uk/id/local-authority-district/22UN,Life Opportunities,"1580 - Benefits, Revenues and Customer Contact SU",4700 - Postage,20/01/2015,7016915-3,798.1,2101139 - Royal Mail Group Ltd,OUTGOING POST 29.12 - 2.1.15
Tendring DC,http://statistics.data.gov.uk/id/local-authority-district/22UN,Life Opportunities,6740 - Careline,4700 - Postage,20/01/2015,7016915-4,406.95,2101139 - Royal Mail Group Ltd,OUTGOING POST 29.12 - 2.1.15
Tendring DC,http://statistics.data.gov.uk/id/local-authority-district/22UN,Life Opportunities,5240 - HRA - Managing Tenancies,5242 - Tenant Relations,27/01/2015,7017080-1,2.14,2101139 - Royal Mail Group Ltd,161043000
Tendring DC,http://statistics.data.gov.uk/id/local-authority-district/22UN,Life Opportunities,6481 - Flood Support Schemes - Repair & Renew Grant Funded,4900 - Grants,20/01/2015,7016980-1,5000,REDACTED PERSONAL DATA,REDACTED PERSONAL DATA
Tendring DC,http://statistics.data.gov.uk/id/local-authority-district/22UN,Life Opportunities,5480 - HRA - Repair & Maintenance,2088 - Disabled Adaptations,06/01/2015,1062266-1,300,REDACTED PERSONAL DATA,REDACTED PERSONAL DATA
Tendring DC,http://statistics.data.gov.uk/id/local-authority-district/22UN,Life Opportunities,5480 - HRA - Repair & Maintenance,2088 - Disabled Adaptations,06/01/2015,1062266-2,146.3,REDACTED PERSONAL DATA,REDACTED PERSONAL DATA
Tendring DC,http://statistics.data.gov.uk/id/local-authority-district/22UN,Life Opportunities,H860 - Disabled Adaptations,C200 - Main Contractor,06/01/2015,1062267-1,485,2101280 - S Parkin,HARBOUR CRESCENT
Tendring DC,http://statistics.data.gov.uk/id/local-authority-district/22UN,Life Opportunities,H860 - Disabled Adaptations,C200 - Main Contractor,06/01/2015,1062267-2,103.43,2101280 - S Parkin,HARBOUR CRESCENT
Tendring DC,http://statistics.data.gov.uk/id/local-authority-district/22UN,Life Opportunities,5480 - HRA - Repair & Maintenance,2088 - Disabled Adaptations,06/01/2015,1062268-1,150,REDACTED PERSONAL DATA,REDACTED PERSONAL DATA
Tendring DC,http://statistics.data.gov.uk/id/local-authority-district/22UN,Life Opportunities,5480 - HRA - Repair & Maintenance,2088 - Disabled Adaptations,06/01/2015,1062268-2,23.85,REDACTED PERSONAL DATA,REDACTED PERSONAL DATA
Tendring DC,http://statistics.data.gov.uk/id/local-authority-district/22UN,Life Opportunities,H920 - Disabled Facilities Grants,C400 - Grant payments,27/01/2015,7017130-1,5954.67,REDACTED PERSONAL DATA,REDACTED PERSONAL DATA
Tendring DC,http://statistics.data.gov.uk/id/local-authority-district/22UN,Life Opportunities,5480 - HRA - Repair & Maintenance,2096 - Asbestos testing/removal,13/01/2015,1062437-1,200,REDACTED PERSONAL DATA,REDACTED PERSONAL DATA
Tendring DC,http://statistics.data.gov.uk/id/local-authority-district/22UN,Life Opportunities,5480 - HRA - Repair & Maintenance,2096 - Asbestos testing/removal,13/01/2015,1062437-2,320,REDACTED PERSONAL DATA,REDACTED PERSONAL DATA
Tendring DC,http://statistics.data.gov.uk/id/local-authority-district/22UN,Life Opportunities,5480 - HRA - Repair & Maintenance,2096 - Asbestos testing/removal,13/01/2015,1062438-1,600,REDACTED PERSONAL DATA,REDACTED PERSONAL DATA
Tendring DC,http://statistics.data.gov.uk/id/local-authority-district/22UN,Life Opportunities,5480 - HRA - Repair & Maintenance,2096 - Asbestos testing/removal,13/01/2015,1062438-2,700,REDACTED PERSONAL DATA,REDACTED PERSONAL DATA
Tendring DC,http://statistics.data.gov.uk/id/local-authority-district/22UN,Life Opportunities,H820 - Asbestos Management,C200 - Main Contractor,13/01/2015,1062439-1,150,REDACTED PERSONAL DATA,REDACTED PERSONAL DATA
Tendring DC,http://statistics.data.gov.uk/id/local-authority-district/22UN,Life Opportunities,H820 - Asbestos Management,C200 - Main Contractor,13/01/2015,1062439-2,240,REDACTED PERSONAL DATA,REDACTED PERSONAL DATA
Tendring DC,http://statistics.data.gov.uk/id/local-authority-district/22UN,Life Opportunities,5480 - HRA - Repair & Maintenance,2096 - Asbestos testing/removal,13/01/2015,1062440-1,80,REDACTED PERSONAL DATA,REDACTED PERSONAL DATA
Tendring DC,http://statistics.data.gov.uk/id/local-authority-district/22UN,Life Opportunities,5480 - HRA - Repair & Maintenance,2096 - Asbestos testing/removal,13/01/2015,1062440-2,20,REDACTED PERSONAL DATA,REDACTED PERSONAL DATA
Tendring DC,http://statistics.data.gov.uk/id/local-authority-district/22UN,Life Opportunities,H825 - Refurbishment of Door Entry Systems,C200 - Main Contractor,27/01/2015,2117534-1,12822.5,2113336 - Security Surveillance Systems Ltd,Communal Doors 14/15
Tendring DC,http://statistics.data.gov.uk/id/local-authority-district/22UN,Life Opportunities,1242 - Corporate Director (Life Opportunities),1710 - Training - Central Department Budget,20/01/2015,7016908-1,1100,2101839 - Shelter Training,COURSE 6.2.15
Tendring DC,http://statistics.data.gov.uk/id/local-authority-district/22UN,Life Opportunities,8510 - Dovercourt Swimming Pool & All Weather Facilities,4400 - Maintenance Under Service Agreements,20/01/2015,7016900-1,608.39,2102659 - Siemens Financial Services Ltd,DOVERCOURT POOL - RENTAL
Tendring DC,http://statistics.data.gov.uk/id/local-authority-district/22UN,Life Opportunities,5800 - Brightlingsea Sports Centre,4400 - Maintenance Under Service Agreements,20/01/2015,7016901-1,764.81,2102659 - Siemens Financial Services Ltd,SIEMENS - VENDING M/CHS
Tendring DC,http://statistics.data.gov.uk/id/local-authority-district/22UN,Life Opportunities,8540 - Leisure Centre Clacton,4400 - Maintenance Under Service Agreements,27/01/2015,7017068-1,1253.33,2102659 - Siemens Financial Services Ltd,11.1.15 - 10.4.15
Tendring DC,http://statistics.data.gov.uk/id/local-authority-district/22UN,Life Opportunities,8510 - Dovercourt Swimming Pool & All Weather Facilities,2100 - Building Repairs,13/01/2015,1062493-1,28.52,2100032 - Signs Made Easy,
Tendring DC,http://statistics.data.gov.uk/id/local-authority-district/22UN,Life Opportunities,5880 - Management Of Sport & Leisure Facilities,2100 - Building Repairs,27/01/2015,1062723-1,711.43,2100032 - Signs Made Easy,DOVERCOURT BAY-SIGNS
Tendring DC,http://statistics.data.gov.uk/id/local-authority-district/22UN,Life Opportunities,5800 - Brightlingsea Sports Centre,2100 - Building Repairs,20/01/2015,7016879-1,735,2100032 - Signs Made Easy,SIGNS MADE EASY
Tendring DC,http://statistics.data.gov.uk/id/local-authority-district/22UN,Life Opportunities,5480 - HRA - Repair & Maintenance,2089 - Sewer Repairs,20/01/2015,1062587-1,75,REDACTED PERSONAL DATA,REDACTED PERSONAL DATA
Tendring DC,http://statistics.data.gov.uk/id/local-authority-district/22UN,Life Opportunities,7600 - Tourist Information Centres,9356 - Commission Sales,13/01/2015,7016767-1,410,2113488 - Society of London Theatre,THEATRE TOKENS DEC 14
Tendring DC,http://statistics.data.gov.uk/id/local-authority-district/22UN,Life Opportunities,7600 - Tourist Information Centres,9356 - Commission Sales,13/01/2015,7016767-2,-20.5,2113488 - Society of London Theatre,THEATRE TOKENS DEC 14
Tendring DC,http://statistics.data.gov.uk/id/local-authority-district/22UN,Life Opportunities,5480 - HRA - Repair & Maintenance,2062 - Communal TV Aerials Repairs,13/01/2015,7016763-1,35,REDACTED PERSONAL DATA,REDACTED PERSONAL DATA
Tendring DC,http://statistics.data.gov.uk/id/local-authority-district/22UN,Life Opportunities,5480 - HRA - Repair & Maintenance,2062 - Communal TV Aerials Repairs,13/01/2015,7016764-1,45,REDACTED PERSONAL DATA,REDACTED PERSONAL DATA
Tendring DC,http://statistics.data.gov.uk/id/local-authority-district/22UN,Life Opportunities,5480 - HRA - Repair & Maintenance,2062 - Communal TV Aerials Repairs,20/01/2015,7016882-1,105,REDACTED PERSONAL DATA,REDACTED PERSONAL DATA
Tendring DC,http://statistics.data.gov.uk/id/local-authority-district/22UN,Life Opportunities,1242 - Corporate Director (Life Opportunities),1710 - Training - Central Department Budget,13/01/2015,7016769-1,50,2101898 - Southend-On-Sea Borough Council,T ROGERS ADVOCACY TRAINING
Tendring DC,http://statistics.data.gov.uk/id/local-authority-district/22UN,Life Opportunities,5360 - HRA - Sheltered Units,4710 - Telephones - Charges,20/01/2015,7016937-1,156.66,2108907 - Southern Communications Ltd,SOUTHERN COMMS JAN
Tendring DC,http://statistics.data.gov.uk/id/local-authority-district/22UN,Life Opportunities,5360 - HRA - Sheltered Units,4710 - Telephones - Charges,20/01/2015,7016937-10,1,2108907 - Southern Communications Ltd,SOUTHERN COMMS JAN
Tendring DC,http://statistics.data.gov.uk/id/local-authority-district/22UN,Life Opportunities,5360 - HRA - Sheltered Units,4710 - Telephones - Charges,20/01/2015,7016937-2,77.12,2108907 - Southern Communications Ltd,SOUTHERN COMMS JAN
Tendring DC,http://statistics.data.gov.uk/id/local-authority-district/22UN,Life Opportunities,5360 - HRA - Sheltered Units,4710 - Telephones - Charges,20/01/2015,7016937-3,108.85,2108907 - Southern Communications Ltd,SOUTHERN COMMS JAN
Tendring DC,http://statistics.data.gov.uk/id/local-authority-district/22UN,Life Opportunities,5360 - HRA - Sheltered Units,4710 - Telephones - Charges,20/01/2015,7016937-4,67.99,2108907 - Southern Communications Ltd,SOUTHERN COMMS JAN
Tendring DC,http://statistics.data.gov.uk/id/local-authority-district/22UN,Life Opportunities,5360 - HRA - Sheltered Units,4710 - Telephones - Charges,20/01/2015,7016937-5,31.54,2108907 - Southern Communications Ltd,SOUTHERN COMMS JAN
Tendring DC,http://statistics.data.gov.uk/id/local-authority-district/22UN,Life Opportunities,5360 - HRA - Sheltered Units,4710 - Telephones - Charges,20/01/2015,7016937-6,111.86,2108907 - Southern Communications Ltd,SOUTHERN COMMS JAN
Tendring DC,http://statistics.data.gov.uk/id/local-authority-district/22UN,Life Opportunities,5360 - HRA - Sheltered Units,4710 - Telephones - Charges,20/01/2015,7016937-7,99.53,2108907 - Southern Communications Ltd,SOUTHERN COMMS JAN
Tendring DC,http://statistics.data.gov.uk/id/local-authority-district/22UN,Life Opportunities,5360 - HRA - Sheltered Units,4710 - Telephones - Charges,20/01/2015,7016937-8,254.6,2108907 - Southern Communications Ltd,SOUTHERN COMMS JAN
Tendring DC,http://statistics.data.gov.uk/id/local-authority-district/22UN,Life Opportunities,7000 - CCTV,4718 - Fixed Communication Lines,20/01/2015,7016937-9,134.47,2108907 - Southern Communications Ltd,SOUTHERN COMMS JAN
Tendring DC,http://statistics.data.gov.uk/id/local-authority-district/22UN,Life Opportunities,H705 - Window/Door Replacement,C200 - Main Contractor,13/01/2015,1062532-1,78212.42,2112379 - Sovereign Group Ltd,WINDOW REPLACEMENT PROGRAMME-2015/15
Tendring DC,http://statistics.data.gov.uk/id/local-authority-district/22UN,Life Opportunities,H705 - Window/Door Replacement,C200 - Main Contractor,20/01/2015,1062576-1,706.88,REDACTED PERSONAL DATA,REDACTED PERSONAL DATA
Tendring DC,http://statistics.data.gov.uk/id/local-authority-district/22UN,Life Opportunities,H705 - Window/Door Replacement,C200 - Main Contractor,27/01/2015,1062708-1,1339.44,REDACTED PERSONAL DATA,REDACTED PERSONAL DATA
Tendring DC,http://statistics.data.gov.uk/id/local-authority-district/22UN,Life Opportunities,8520 - Frinton & Walton Swimming Pool,4000 - Furniture,06/01/2015,1062413-1,34.65,2101297 - SP Services,FWSP-SP SERVICES
Tendring DC,http://statistics.data.gov.uk/id/local-authority-district/22UN,Life Opportunities,5480 - HRA - Repair & Maintenance,2019 - Repair & Maintenance - Keys,06/01/2015,1062237-1,55,REDACTED PERSONAL DATA,REDACTED PERSONAL DATA
Tendring DC,http://statistics.data.gov.uk/id/local-authority-district/22UN,Life Opportunities,5480 - HRA - Repair & Maintenance,2019 - Repair & Maintenance - Keys,06/01/2015,1062273-1,55,REDACTED PERSONAL DATA,REDACTED PERSONAL DATA
Tendring DC,http://statistics.data.gov.uk/id/local-authority-district/22UN,Life Opportunities,5480 - HRA - Repair & Maintenance,2019 - Repair & Maintenance - Keys,13/01/2015,1062475-1,55,REDACTED PERSONAL DATA,REDACTED PERSONAL DATA
Tendring DC,http://statistics.data.gov.uk/id/local-authority-district/22UN,Life Opportunities,5480 - HRA - Repair & Maintenance,2019 - Repair & Maintenance - Keys,13/01/2015,7016766-1,82.5,REDACTED PERSONAL DATA,REDACTED PERSONAL DATA
Tendring DC,http://statistics.data.gov.uk/id/local-authority-district/22UN,Life Opportunities,5880 - Management Of Sport & Leisure Facilities,2100 - Building Repairs,06/01/2015,1062217-1,1235,2101278 - Sportsafe UK Ltd,SPORTSAFE MOVE & RECOVER EQPT
Tendring DC,http://statistics.data.gov.uk/id/local-authority-district/22UN,Life Opportunities,5800 - Brightlingsea Sports Centre,2100 - Building Repairs,20/01/2015,7016903-1,369.75,2101278 - Sportsafe UK Ltd,SPORTSAFE UK - SERVICE SPINNING BIKES
Tendring DC,http://statistics.data.gov.uk/id/local-authority-district/22UN,Life Opportunities,8540 - Leisure Centre Clacton,2100 - Building Repairs,20/01/2015,7016999-1,60,2101278 - Sportsafe UK Ltd,INSPECT/REPAIR ERGOMETER
Tendring DC,http://statistics.data.gov.uk/id/local-authority-district/22UN,Life Opportunities,6160 - Princes Theatre,4040 - Equipment & Tools,06/01/2015,1062375-1,48.32,2102268 - St John Ambulance Supplies,ABSORBEZE POWDER
Tendring DC,http://statistics.data.gov.uk/id/local-authority-district/22UN,Life Opportunities,6160 - Princes Theatre,4690 - Commission Costs to Ticket Agencies,13/01/2015,1062480-1,2730.6,2109308 - Standing Ovation Entertainments Ltd,TICKET SALES 1/12 TO 1/1/15
Tendring DC,http://statistics.data.gov.uk/id/local-authority-district/22UN,Life Opportunities,5480 - HRA - Repair & Maintenance,2070 - Lift/Stairlift Repairs,27/01/2015,1062634-1,2801,REDACTED PERSONAL DATA,REDACTED PERSONAL DATA
Tendring DC,http://statistics.data.gov.uk/id/local-authority-district/22UN,Life Opportunities,1880 - Office Accommodation Expenses,2100 - Building Repairs,13/01/2015,1062544-1,11.08,2101370 - Stannah Lift Services Ltd,SERVICE LIFT WEELEY & FRINTON DEC
Tendring DC,http://statistics.data.gov.uk/id/local-authority-district/22UN,Life Opportunities,1880 - Office Accommodation Expenses,2100 - Building Repairs,13/01/2015,1062544-2,11.08,2101370 - Stannah Lift Services Ltd,SERVICE LIFT WEELEY & FRINTON DEC
Tendring DC,http://statistics.data.gov.uk/id/local-authority-district/22UN,Life Opportunities,H920 - Disabled Facilities Grants,C400 - Grant payments,20/01/2015,7016976-1,4881,REDACTED PERSONAL DATA,REDACTED PERSONAL DATA
Tendring DC,http://statistics.data.gov.uk/id/local-authority-district/22UN,Life Opportunities,H920 - Disabled Facilities Grants,C400 - Grant payments,20/01/2015,7016977-1,2027,REDACTED PERSONAL DATA,REDACTED PERSONAL DATA
Tendring DC,http://statistics.data.gov.uk/id/local-authority-district/22UN,Life Opportunities,H920 - Disabled Facilities Grants,C400 - Grant payments,20/01/2015,1062581-1,702.89,REDACTED PERSONAL DATA,REDACTED PERSONAL DATA
Tendring DC,http://statistics.data.gov.uk/id/local-authority-district/22UN,Life Opportunities,H920 - Disabled Facilities Grants,C400 - Grant payments,13/01/2015,7016817-1,1169.26,2111405 - Swan Housing Association Ltd,"19 EARLHAMS CLOSE, DOVERCOURT CO12 4XA"
Tendring DC,http://statistics.data.gov.uk/id/local-authority-district/22UN,Life Opportunities,H920 - Disabled Facilities Grants,C400 - Grant payments,13/01/2015,7016818-1,678.97,REDACTED PERSONAL DATA,REDACTED PERSONAL DATA
Tendring DC,http://statistics.data.gov.uk/id/local-authority-district/22UN,Life Opportunities,H920 - Disabled Facilities Grants,C400 - Grant payments,13/01/2015,7016819-1,908.25,REDACTED PERSONAL DATA,REDACTED PERSONAL DATA
Tendring DC,http://statistics.data.gov.uk/id/local-authority-district/22UN,Life Opportunities,H920 - Disabled Facilities Grants,C400 - Grant payments,13/01/2015,7016820-1,775.05,REDACTED PERSONAL DATA,REDACTED PERSONAL DATA
Tendring DC,http://statistics.data.gov.uk/id/local-authority-district/22UN,Life Opportunities,H920 - Disabled Facilities Grants,C400 - Grant payments,13/01/2015,7016821-1,313.32,REDACTED PERSONAL DATA,REDACTED PERSONAL DATA
Tendring DC,http://statistics.data.gov.uk/id/local-authority-district/22UN,Life Opportunities,H920 - Disabled Facilities Grants,C400 - Grant payments,13/01/2015,7016822-1,483.67,REDACTED PERSONAL DATA,REDACTED PERSONAL DATA
Tendring DC,http://statistics.data.gov.uk/id/local-authority-district/22UN,Life Opportunities,H920 - Disabled Facilities Grants,C400 - Grant payments,13/01/2015,7016823-1,548.8,REDACTED PERSONAL DATA,REDACTED PERSONAL DATA
Tendring DC,http://statistics.data.gov.uk/id/local-authority-district/22UN,Life Opportunities,H920 - Disabled Facilities Grants,C400 - Grant payments,13/01/2015,7016824-1,786.49,REDACTED PERSONAL DATA,REDACTED PERSONAL DATA
Tendring DC,http://statistics.data.gov.uk/id/local-authority-district/22UN,Life Opportunities,H920 - Disabled Facilities Grants,C400 - Grant payments,27/01/2015,7017131-1,176.72,REDACTED PERSONAL DATA,REDACTED PERSONAL DATA
Tendring DC,http://statistics.data.gov.uk/id/local-authority-district/22UN,Life Opportunities,H920 - Disabled Facilities Grants,C400 - Grant payments,27/01/2015,7017132-1,180.38,REDACTED PERSONAL DATA,REDACTED PERSONAL DATA
Tendring DC,http://statistics.data.gov.uk/id/local-authority-district/22UN,Life Opportunities,H810 - Electrical Re-wiring,C200 - Main Contractor,20/01/2015,7017014-1,6300,2101393 - T J B Electrical Contracting,INGRAMS PIECE
Tendring DC,http://statistics.data.gov.uk/id/local-authority-district/22UN,Life Opportunities,H710 - Selected Improvements,C200 - Main Contractor,20/01/2015,1062619-1,15982.06,2114195 - T J Evers Ltd,CROOKED ELMS PHASE 3
Tendring DC,http://statistics.data.gov.uk/id/local-authority-district/22UN,Life Opportunities,9900 - General Fund Balance Sheet,B382 - Rechargeable Works - Other,20/01/2015,1062580-1,30,2101314 - T V Licensing,TV LICENCE HONEYCROFT
Tendring DC,http://statistics.data.gov.uk/id/local-authority-district/22UN,Life Opportunities,5360 - HRA - Sheltered Units,4650 - TV Licensing,20/01/2015,1062580-2,145.5,2101314 - T V Licensing,TV LICENCE HONEYCROFT
Tendring DC,http://statistics.data.gov.uk/id/local-authority-district/22UN,Life Opportunities,9900 - General Fund Balance Sheet,B382 - Rechargeable Works - Other,27/01/2015,7017136-1,82.5,2101314 - T V Licensing,TV LICENCE VYNTONER HOUSE
Tendring DC,http://statistics.data.gov.uk/id/local-authority-district/22UN,Life Opportunities,5360 - HRA - Sheltered Units,4650 - TV Licensing,27/01/2015,7017136-2,145.5,2101314 - T V Licensing,TV LICENCE VYNTONER HOUSE
Tendring DC,http://statistics.data.gov.uk/id/local-authority-district/22UN,Life Opportunities,6160 - Princes Theatre,2900 - Premises Licensing - Public Entertainment,20/01/2015,7016914-1,128,2109877 - Tenbac Ltd,MEMBERSHIP JAN 15 - DEC 15 & RADIO HIRE
Tendring DC,http://statistics.data.gov.uk/id/local-authority-district/22UN,Life Opportunities,8540 - Leisure Centre Clacton,5500 - Miscellaneous Expenses,06/01/2015,1062422-0,25,2101386 - Tendring District Council,Gymkins Party Supplies
Tendring DC,http://statistics.data.gov.uk/id/local-authority-district/22UN,Life Opportunities,8540 - Leisure Centre Clacton,5500 - Miscellaneous Expenses,06/01/2015,1062422-1,25,2101386 - Tendring District Council,Gymkins Party Supplies
Tendring DC,http://statistics.data.gov.uk/id/local-authority-district/22UN,Life Opportunities,8540 - Leisure Centre Clacton,5500 - Miscellaneous Expenses,06/01/2015,1062422-10,2.95,2101386 - Tendring District Council,Gymkins Party Supplies
Tendring DC,http://statistics.data.gov.uk/id/local-authority-district/22UN,Life Opportunities,8540 - Leisure Centre Clacton,5500 - Miscellaneous Expenses,06/01/2015,1062422-11,14.12,2101386 - Tendring District Council,Coin boxes/Memory stick
Tendring DC,http://statistics.data.gov.uk/id/local-authority-district/22UN,Life Opportunities,8540 - Leisure Centre Clacton,2100 - Building Repairs,06/01/2015,1062422-12,4.98,2101386 - Tendring District Council,Tape/hose connector
Tendring DC,http://statistics.data.gov.uk/id/local-authority-district/22UN,Life Opportunities,8540 - Leisure Centre Clacton,5500 - Miscellaneous Expenses,06/01/2015,1062422-13,2.48,2101386 - Tendring District Council,Water jugs
Tendring DC,http://statistics.data.gov.uk/id/local-authority-district/22UN,Life Opportunities,8540 - Leisure Centre Clacton,2100 - Building Repairs,06/01/2015,1062422-14,5.6,2101386 - Tendring District Council,Sleeve anchors
Tendring DC,http://statistics.data.gov.uk/id/local-authority-district/22UN,Life Opportunities,8540 - Leisure Centre Clacton,5500 - Miscellaneous Expenses,06/01/2015,1062422-15,2.83,2101386 - Tendring District Council,Cream for tea dance
Tendring DC,http://statistics.data.gov.uk/id/local-authority-district/22UN,Life Opportunities,8540 - Leisure Centre Clacton,5500 - Miscellaneous Expenses,06/01/2015,1062422-16,11.67,2101386 - Tendring District Council,Gateaux for tea dance
Tendring DC,http://statistics.data.gov.uk/id/local-authority-district/22UN,Life Opportunities,8540 - Leisure Centre Clacton,4300 - Printing & Stationery,06/01/2015,1062422-17,2.5,2101386 - Tendring District Council,Box file
Tendring DC,http://statistics.data.gov.uk/id/local-authority-district/22UN,Life Opportunities,8540 - Leisure Centre Clacton,2100 - Building Repairs,06/01/2015,1062422-18,2.48,2101386 - Tendring District Council,Batteries
Tendring DC,http://statistics.data.gov.uk/id/local-authority-district/22UN,Life Opportunities,8540 - Leisure Centre Clacton,5500 - Miscellaneous Expenses,06/01/2015,1062422-19,8.92,2101386 - Tendring District Council,Milk
Tendring DC,http://statistics.data.gov.uk/id/local-authority-district/22UN,Life Opportunities,8540 - Leisure Centre Clacton,5500 - Miscellaneous Expenses,06/01/2015,1062422-2,4.95,2101386 - Tendring District Council,Xmas decorations
Tendring DC,http://statistics.data.gov.uk/id/local-authority-district/22UN,Life Opportunities,8540 - Leisure Centre Clacton,4597 - Hired Services - Payments to Contractors,06/01/2015,1062422-20,13.64,2101386 - Tendring District Council,Stamps
Tendring DC,http://statistics.data.gov.uk/id/local-authority-district/22UN,Life Opportunities,8540 - Leisure Centre Clacton,5500 - Miscellaneous Expenses,06/01/2015,1062422-3,3,2101386 - Tendring District Council,Milk
Tendring DC,http://statistics.data.gov.uk/id/local-authority-district/22UN,Life Opportunities,8540 - Leisure Centre Clacton,2100 - Building Repairs,06/01/2015,1062422-4,16.66,2101386 - Tendring District Council,Extension lead
Tendring DC,http://statistics.data.gov.uk/id/local-authority-district/22UN,Life Opportunities,5880 - Management Of Sport & Leisure Facilities,5166 - Marketing and Promotion,06/01/2015,1062422-5,20.83,2101386 - Tendring District Council,Balloon gas
Tendring DC,http://statistics.data.gov.uk/id/local-authority-district/22UN,Life Opportunities,8540 - Leisure Centre Clacton,5500 - Miscellaneous Expenses,06/01/2015,1062422-6,10.29,2101386 - Tendring District Council,Milk
Tendring DC,http://statistics.data.gov.uk/id/local-authority-district/22UN,Life Opportunities,8540 - Leisure Centre Clacton,5500 - Miscellaneous Expenses,06/01/2015,1062422-7,22.57,2101386 - Tendring District Council,Urgent provisions
Tendring DC,http://statistics.data.gov.uk/id/local-authority-district/22UN,Life Opportunities,8540 - Leisure Centre Clacton,5500 - Miscellaneous Expenses,06/01/2015,1062422-8,6.79,2101386 - Tendring District Council,Urgent provisions
Tendring DC,http://statistics.data.gov.uk/id/local-authority-district/22UN,Life Opportunities,8540 - Leisure Centre Clacton,5500 - Miscellaneous Expenses,06/01/2015,1062422-9,0.77,2101386 - Tendring District Council,Gymkins Party Supplies
Tendring DC,http://statistics.data.gov.uk/id/local-authority-district/22UN,Life Opportunities,8510 - Dovercourt Swimming Pool & All Weather Facilities,4000 - Furniture,13/01/2015,2117494-1,8.33,2101337 - Tendring District Council,Petty Cash - Dovercourt Pool
Tendring DC,http://statistics.data.gov.uk/id/local-authority-district/22UN,Life Opportunities,8510 - Dovercourt Swimming Pool & All Weather Facilities,4300 - Printing & Stationery,13/01/2015,2117494-10,4.5,2101337 - Tendring District Council,Petty Cash - Dovercourt Pool
Tendring DC,http://statistics.data.gov.uk/id/local-authority-district/22UN,Life Opportunities,8510 - Dovercourt Swimming Pool & All Weather Facilities,4000 - Furniture,13/01/2015,2117494-2,8.76,2101337 - Tendring District Council,Petty Cash - Dovercourt Pool
Tendring DC,http://statistics.data.gov.uk/id/local-authority-district/22UN,Life Opportunities,8510 - Dovercourt Swimming Pool & All Weather Facilities,4300 - Printing & Stationery,13/01/2015,2117494-3,6.66,2101337 - Tendring District Council,Petty Cash - Dovercourt Pool
Tendring DC,http://statistics.data.gov.uk/id/local-authority-district/22UN,Life Opportunities,8510 - Dovercourt Swimming Pool & All Weather Facilities,4300 - Printing & Stationery,13/01/2015,2117494-4,2,2101337 - Tendring District Council,Petty Cash - Dovercourt Pool
Tendring DC,http://statistics.data.gov.uk/id/local-authority-district/22UN,Life Opportunities,8510 - Dovercourt Swimming Pool & All Weather Facilities,2100 - Building Repairs,13/01/2015,2117494-5,15.71,2101337 - Tendring District Council,Petty Cash - Dovercourt Pool
Tendring DC,http://statistics.data.gov.uk/id/local-authority-district/22UN,Life Opportunities,8510 - Dovercourt Swimming Pool & All Weather Facilities,4000 - Furniture,13/01/2015,2117494-6,4.16,2101337 - Tendring District Council,Petty Cash - Dovercourt Pool
Tendring DC,http://statistics.data.gov.uk/id/local-authority-district/22UN,Life Opportunities,5880 - Management Of Sport & Leisure Facilities,5166 - Marketing and Promotion,13/01/2015,2117494-7,9.99,2101337 - Tendring District Council,Petty Cash - Dovercourt Pool
Tendring DC,http://statistics.data.gov.uk/id/local-authority-district/22UN,Life Opportunities,8510 - Dovercourt Swimming Pool & All Weather Facilities,4300 - Printing & Stationery,13/01/2015,2117494-8,3.75,2101337 - Tendring District Council,Petty Cash - Dovercourt Pool
Tendring DC,http://statistics.data.gov.uk/id/local-authority-district/22UN,Life Opportunities,8510 - Dovercourt Swimming Pool & All Weather Facilities,2100 - Building Repairs,13/01/2015,2117494-9,11.25,2101337 - Tendring District Council,Petty Cash - Dovercourt Pool
Tendring DC,http://statistics.data.gov.uk/id/local-authority-district/22UN,Life Opportunities,8510 - Dovercourt Swimming Pool & All Weather Facilities,2100 - Building Repairs,13/01/2015,1062492-1,1265,2105926 - Tendring Pool & Spa,DBL
Tendring DC,http://statistics.data.gov.uk/id/local-authority-district/22UN,Life Opportunities,8510 - Dovercourt Swimming Pool & All Weather Facilities,4400 - Maintenance Under Service Agreements,13/01/2015,1062492-2,70,2105926 - Tendring Pool & Spa,DBL
Tendring DC,http://statistics.data.gov.uk/id/local-authority-district/22UN,Life Opportunities,5240 - HRA - Managing Tenancies,5248 - Estate Management Expenses,13/01/2015,1062470-1,121.09,2110688 - The Anglia Sign Casting Company,COMMUNITY GARDEN PLAQUE
Tendring DC,http://statistics.data.gov.uk/id/local-authority-district/22UN,Life Opportunities,"1580 - Benefits, Revenues and Customer Contact SU",4880 - Subscriptions Paid,06/01/2015,1062245-1,1050,2101471 - The Institute of Revenues Rating & Valuation,IRRV EA FORUM SERVICE JAN TO DEC 15
Tendring DC,http://statistics.data.gov.uk/id/local-authority-district/22UN,Life Opportunities,"1580 - Benefits, Revenues and Customer Contact SU",4880 - Subscriptions Paid,27/01/2015,1062706-1,103,REDACTED PERSONAL DATA,REDACTED PERSONAL DATA
Tendring DC,http://statistics.data.gov.uk/id/local-authority-district/22UN,Life Opportunities,"1580 - Benefits, Revenues and Customer Contact SU",4880 - Subscriptions Paid,27/01/2015,1062707-1,103,REDACTED PERSONAL DATA,REDACTED PERSONAL DATA
Tendring DC,http://statistics.data.gov.uk/id/local-authority-district/22UN,Life Opportunities,5480 - HRA - Repair & Maintenance,2005 - Responsive Maintenance - Carpentry And Joinery,20/01/2015,1062574-1,22.04,REDACTED PERSONAL DATA,REDACTED PERSONAL DATA
Tendring DC,http://statistics.data.gov.uk/id/local-authority-district/22UN,Life Opportunities,5480 - HRA - Repair & Maintenance,2016 - PVCu Window And Door Repairs,20/01/2015,1062574-2,2.96,REDACTED PERSONAL DATA,REDACTED PERSONAL DATA
Tendring DC,http://statistics.data.gov.uk/id/local-authority-district/22UN,Life Opportunities,5480 - HRA - Repair & Maintenance,2016 - PVCu Window And Door Repairs,20/01/2015,1062575-1,107.66,REDACTED PERSONAL DATA,REDACTED PERSONAL DATA
Tendring DC,http://statistics.data.gov.uk/id/local-authority-district/22UN,Life Opportunities,5480 - HRA - Repair & Maintenance,2005 - Responsive Maintenance - Carpentry And Joinery,20/01/2015,1062575-2,4.87,REDACTED PERSONAL DATA,REDACTED PERSONAL DATA
Tendring DC,http://statistics.data.gov.uk/id/local-authority-district/22UN,Life Opportunities,5480 - HRA - Repair & Maintenance,2016 - PVCu Window And Door Repairs,27/01/2015,1062643-1,113.69,REDACTED PERSONAL DATA,REDACTED PERSONAL DATA
Tendring DC,http://statistics.data.gov.uk/id/local-authority-district/22UN,Life Opportunities,5480 - HRA - Repair & Maintenance,2005 - Responsive Maintenance - Carpentry And Joinery,27/01/2015,1062643-2,9.74,REDACTED PERSONAL DATA,REDACTED PERSONAL DATA
Tendring DC,http://statistics.data.gov.uk/id/local-authority-district/22UN,Life Opportunities,H920 - Disabled Facilities Grants,C400 - Grant payments,27/01/2015,7017126-1,7765.33,REDACTED PERSONAL DATA,REDACTED PERSONAL DATA
Tendring DC,http://statistics.data.gov.uk/id/local-authority-district/22UN,Life Opportunities,7520 - Tourism Publicity Marketing Promotion,5160 - Advertising,06/01/2015,1062199-1,150,2108268 - Today Magazines Ltd,ESSEX WI NEWS JAN 15
Tendring DC,http://statistics.data.gov.uk/id/local-authority-district/22UN,Life Opportunities,6160 - Princes Theatre,5160 - Advertising,20/01/2015,7016934-1,130,2108268 - Today Magazines Ltd,ESSEX WI JAN 15 ADVERT
Tendring DC,http://statistics.data.gov.uk/id/local-authority-district/22UN,Life Opportunities,5480 - HRA - Repair & Maintenance,2018 - Other Responsive Repairs,13/01/2015,7016765-1,140,REDACTED PERSONAL DATA,REDACTED PERSONAL DATA
Tendring DC,http://statistics.data.gov.uk/id/local-authority-district/22UN,Life Opportunities,8510 - Dovercourt Swimming Pool & All Weather Facilities,4400 - Maintenance Under Service Agreements,06/01/2015,1062223-1,28.75,2101437 - Tower Security (Tendring) Ltd,DOVERCOURT POOL-CALL OUT
Tendring DC,http://statistics.data.gov.uk/id/local-authority-district/22UN,Life Opportunities,1880 - Office Accommodation Expenses,4632 - Security,27/01/2015,1062678-1,50.75,2101437 - Tower Security (Tendring) Ltd,CALLOUTS WEELEY JAN 15
Tendring DC,http://statistics.data.gov.uk/id/local-authority-district/22UN,Life Opportunities,8540 - Leisure Centre Clacton,4597 - Hired Services - Payments to Contractors,20/01/2015,7016994-1,64.75,2101437 - Tower Security (Tendring) Ltd,CAFE BREAK-IN 1.12.14
